Department Family,Entity,Transaction Date,Expense Type,Expense Area,Supplier  ,Transaction Number,Amount, Invoice Description
DFID,DFID,02/01/2014,Cleaning Costs ,West and Southern Africa ,Laurmann &Company Ltd ,101622-105 ,560.72,
DFID,DFID,02/01/2014,Facilities Management payments ,West and Southern Africa ,Conote Services Ltd ,101622-105 ,988.36,
DFID,DFID,02/01/2014,Secure Staff Accommodation ,West and Southern Africa ,Supplier Name withheld ,101618-101 ,"1,042.08",
DFID,DFID,02/01/2014,Direct Cost Payments for FCO ,West and Southern Africa ,Game Stores ,101618-101 ,"1,640.44",
DFID,DFID,02/01/2014,Repairs  Maint  Alter - Property & Constrct. Services ,West and Southern Africa ,Circuit Board (Nig) Ltd ,101622-105 ,"3,496.03",
DFID,DFID,02/01/2014,Secure Staff Accommodation ,West and Southern Africa ,Supplier Name withheld ,101618-101 ,"5,676.55",
DFID,DFID,03/01/2014,Hostile Environment Training ,Top Management Group ,Pilgrims Group ,100232-106 ,703.12,
DFID,DFID,03/01/2014,Project delivery costs - supplier services ,Joint Trade Policy Division ,RLabs ,203530-102 ,800.00,
DFID,DFID,03/01/2014,Hotels - Accommodation only ,West and Southern Africa ,Supplier Name withheld ,101622-103 ,848.28,
DFID,DFID,03/01/2014,Training - Travel & Subsistence ,East and Central Africa ,Safeway Travel and Tour ,101612-101 ,875.78,
DFID,DFID,03/01/2014,Air fares ,Human Resources ,Simranjit Singh ,100269-128 ,927.02,
DFID,DFID,03/01/2014,Project delivery costs - supplier services ,West and Southern Africa ,Crown Agents ,114206-102 ,987.98,
DFID,DFID,03/01/2014,Electricity ,Asia  Caribbean and Overseas Territories ,Neptune Properties ,100025-101 ,"1,022.38",
DFID,DFID,03/01/2014,Project delivery costs - supplier services ,Research and Evidence Division ,OXFORD POLICY MANAGEMENT ,203704-108 ,"1,095.90",
DFID,DFID,03/01/2014,Project delivery costs - supplier services ,West and Southern Africa ,PATRICK JAMES NOLEN ,202482-104 ,"1,350.00",
DFID,DFID,03/01/2014,Training - Course Fees ,Business Solutions Division Level ,Info Trek Sdn. Bhd. ,200001-101 ,"1,360.00",
DFID,DFID,03/01/2014,Project delivery costs - supplier services ,Asia  Caribbean and Overseas Territories ,PETER BROOKE ,114186-101 ,"1,600.00",
DFID,DFID,03/01/2014,Data Network -Satellite ,Western Asia and Stabilisation Division ,SPECTRA  GROUP UK LTD ,203940-106 ,"1,710.00",
DFID,DFID,03/01/2014,Subscriptions ,Communications Division ,Durrants lTD ,100197-101 ,"1,730.17",
DFID,DFID,03/01/2014,Secure Staff Accommodation ,West and Southern Africa ,Supplier Name withheld ,204049-102 ,"1,783.60",
DFID,DFID,03/01/2014,Project delivery costs - supplier services ,West and Southern Africa ,Ms Kerry Selvester ,113355-101 ,"1,820.70",
DFID,DFID,03/01/2014,Project delivery costs - supplier services ,West and Southern Africa ,Crown Agents ,104223-102 ,"1,980.00",
DFID,DFID,03/01/2014,Project delivery costs - supplier services ,Communications Division ,TRIPLE LINE CONSULTING LTD ,114423-102 ,"2,038.05",
DFID,DFID,03/01/2014,Project delivery costs - supplier services ,West and Southern Africa ,ECORYS UK Ltd. ,104200-104 ,"2,642.61",
DFID,DFID,03/01/2014,Secure Staff Accommodation ,West and Southern Africa ,Supplier Name withheld ,204049-102 ,"2,675.40",
DFID,DFID,03/01/2014,Project delivery costs - supplier services ,Asia  Caribbean and Overseas Territories ,QUADRA LTD ,114186-101 ,"2,750.00",
DFID,DFID,03/01/2014,Project delivery costs - supplier services ,International Relations Division ,ART OF LIVING ,202319-101 ,"3,025.00",
DFID,DFID,03/01/2014,Project delivery costs - supplier services ,International Relations Division ,ART OF LIVING ,202319-101 ,"3,710.00",
DFID,DFID,03/01/2014,Repairs  Maintenance and Alterations - Other Building Costs ,Group Operations ,MITIE Technical Facilities Management Ltd ,100106-101 ,"3,840.00",
DFID,DFID,03/01/2014,Project delivery costs - supplier services ,West and Southern Africa ,Ethics Institute of SA ,203161-104 ,"4,196.81",
DFID,DFID,03/01/2014,Project delivery costs - supplier services ,Asia  Caribbean and Overseas Territories ,PricewaterhouseCoopers Pvt.Ltd ,202927-104 ,"4,208.00",
DFID,DFID,03/01/2014,Project delivery costs - supplier services ,West and Southern Africa ,Crown Agents ,104223-102 ,"4,673.10",
DFID,DFID,03/01/2014,Project delivery costs - supplier services ,East and Central Africa ,IPA-International Procurement Agency (BV) ,203542-106 ,"4,852.47",
DFID,DFID,03/01/2014,Project delivery costs - supplier services ,West and Southern Africa ,Crown Agents ,104223-102 ,"5,553.67",
DFID,DFID,03/01/2014,Project delivery costs - supplier services ,West and Southern Africa ,Edward EUSTACE ,203714-102 ,"6,000.00",
DFID,DFID,03/01/2014,UK Staff overseas - Flexi Travel Allowance ,East and Central Africa ,Safeway Travel and Tour ,101612-101 ,"6,696.06",
DFID,DFID,03/01/2014,Aid Programme - Accountable Grant Payments ,Policy Division ,Global Canopy Programme ,201724-114 ,"6,841.05",
DFID,DFID,03/01/2014,Project delivery costs - supplier services ,East and Central Africa ,IPA-International Procurement Agency (BV) ,203542-106 ,"7,000.00",
DFID,DFID,03/01/2014,Project delivery costs - supplier services ,West and Southern Africa ,ECORYS UK Ltd. ,104200-104 ,"7,174.40",
DFID,DFID,03/01/2014,Project delivery costs - supplier services ,West and Southern Africa ,Edward EUSTACE ,203714-102 ,"7,411.70",
DFID,DFID,03/01/2014,Project delivery costs - supplier services ,Policy Division ,Earth Innovation Institute ,203034-105 ,"8,658.03",
DFID,DFID,03/01/2014,Project delivery costs - supplier services ,Asia  Caribbean and Overseas Territories ,J M R & N N Cameron ,114186-101 ,"9,374.32",
DFID,DFID,03/01/2014,Project delivery costs - supplier services ,East and Central Africa ,IPA-International Procurement Agency (BV) ,203542-106 ,"9,510.28",
DFID,DFID,03/01/2014,Project delivery costs - supplier services ,Western Asia and Stabilisation Division ,Crown Agents ,201846-101 ,"10,364.23",
DFID,DFID,03/01/2014,Secure Staff Accommodation ,West and Southern Africa ,Supplier Name withheld ,101610-101 ,"10,383.15",
DFID,DFID,03/01/2014,Secure Staff Accommodation ,West and Southern Africa ,Supplier Name withheld ,101610-101 ,"10,445.82",
DFID,DFID,03/01/2014,Project delivery costs - supplier services ,Western Asia and Stabilisation Division ,Supplier Name withheld ,203904-101 ,"10,530.00",
DFID,DFID,03/01/2014,Secure Staff Accommodation ,West and Southern Africa ,Supplier Name withheld ,101610-101 ,"10,730.38",
DFID,DFID,03/01/2014,Secure Staff Accommodation ,West and Southern Africa ,Supplier Name withheld ,101610-101 ,"10,731.68",
DFID,DFID,03/01/2014,Project delivery costs - supplier services ,Conflict Humanitarian and Security Division ,SOCIAL DEVELOPMENT DIRECT LTD ,203245-103 ,"10,747.96",
DFID,DFID,03/01/2014,Secure Staff Accommodation ,West and Southern Africa ,Supplier Name withheld ,100068-101 ,"10,825.65",
DFID,DFID,03/01/2014,Project delivery costs - supplier services ,Human Resources ,MidlandHR ,100272-101 ,"10,828.03",
DFID,DFID,03/01/2014,Project delivery costs - supplier services ,Asia  Caribbean and Overseas Territories ,DELOITTE TOUCHE TOHAMATSU INDIA PRIVATE LTD (DTTIPL) ,108003-101 ,"10,840.00",
DFID,DFID,03/01/2014,Project delivery costs - supplier services ,Asia  Caribbean and Overseas Territories ,SOCIAL DEVELOPMENT DIRECT LTD ,203484-101 ,"10,868.03",
DFID,DFID,03/01/2014,Project delivery costs - supplier services ,East and Central Africa ,HTSPE LTD ,200136-107 ,"11,148.00",
DFID,DFID,03/01/2014,Aid Programme - Accountable Grant Payments ,Policy Division ,Global Canopy Programme ,201724-114 ,"11,159.71",
DFID,DFID,03/01/2014,Contraceptives ,East and Central Africa ,IPA-International Procurement Agency (BV) ,202420-103 ,"11,268.43",
DFID,DFID,03/01/2014,Project delivery costs - supplier services ,West and Southern Africa ,ECORYS UK Ltd. ,104200-104 ,"11,362.50",
DFID,DFID,03/01/2014,Project delivery costs - supplier services ,Asia  Caribbean and Overseas Territories ,ERNST &  YOUNG PRIVATE LTD ,200599-101 ,"11,878.90",
DFID,DFID,03/01/2014,Project delivery costs - supplier services ,Communications Division ,TRIPLE LINE CONSULTING LTD ,100229-101 ,"12,069.41",
DFID,DFID,03/01/2014,Project delivery costs - supplier services ,West and Southern Africa ,Projset Uganda Limited ,203816-101 ,"12,560.00",
DFID,DFID,03/01/2014,Project delivery costs - supplier services ,Middle East & North Africa Division (MENAD) ,COFFEY INTERNATIONAL DEVELOPMENT LTD ,203789-101 ,"12,928.77",
DFID,DFID,03/01/2014,Project delivery costs - supplier services ,West and Southern Africa ,ECORYS UK Ltd. ,104200-104 ,"13,482.03",
DFID,DFID,03/01/2014,Project delivery costs - supplier services ,East and Central Africa ,International Law and Policy Institute ,200779-106 ,"14,441.00",
DFID,DFID,03/01/2014,Aid Programme - Other Financial Aid to Government ,Middle East & North Africa Division (MENAD) ,The Palestinian National Authority Ministry of Finance Palestinian Governance Facility ,202241-102 ,"14,749.00",
DFID,DFID,03/01/2014,Project delivery costs - supplier services ,East and Central Africa ,IPA-International Procurement Agency (BV) ,203542-106 ,"15,000.00",
DFID,DFID,03/01/2014,Project delivery costs - supplier services ,Asia  Caribbean and Overseas Territories ,ERNST &  YOUNG PRIVATE LTD ,200599-101 ,"15,168.00",
DFID,DFID,03/01/2014,Aid Programme - Core contributions ,Middle East & North Africa Division (MENAD) ,CPS ,201021-105 ,"15,734.26",
DFID,DFID,03/01/2014,Project delivery costs - supplier services ,Asia  Caribbean and Overseas Territories ,ERNST &  YOUNG PRIVATE LTD ,200599-101 ,"15,830.00",
DFID,DFID,03/01/2014,Project delivery costs - supplier services ,West and Southern Africa ,Crown Agents ,104223-102 ,"15,940.00",
DFID,DFID,03/01/2014,Project delivery costs - supplier services ,Human Resources ,Healix International Limited (Fees) ,202423-101 ,"17,152.80",
DFID,DFID,03/01/2014,Project delivery costs - supplier services ,East and Central Africa ,Office of Governor BOU ,200464-102 ,"20,000.00",
DFID,DFID,03/01/2014,Project delivery costs - supplier services ,East and Central Africa ,IPA-International Procurement Agency (BV) ,113400-111 ,"21,000.00",
DFID,DFID,03/01/2014,Aid Programme - Accountable Grant Payments ,West and Southern Africa ,Institute for Global Dialogue ,203622-104 ,"23,093.30",
DFID,DFID,03/01/2014,Project delivery costs - supplier services ,Asia  Caribbean and Overseas Territories ,CARE INTERNATIONAL ,114506-101 ,"25,148.63",
DFID,DFID,03/01/2014,Project delivery costs - supplier services ,East and Central Africa ,THE MEDIAE COMPANY ,202657-101 ,"25,250.00",
DFID,DFID,03/01/2014,Aid Programme - Accountable Grant Payments ,West and Southern Africa ,Farmers Union of Malawi ,202524-117 ,"28,347.91",
DFID,DFID,03/01/2014,Project delivery costs - supplier services ,East and Central Africa ,GRM INTERNATIONAL LTD (1) ,202596-108 ,"30,705.81",
DFID,DFID,03/01/2014,Project delivery costs - supplier services ,Asia  Caribbean and Overseas Territories ,CARE INTERNATIONAL ,114506-101 ,"33,796.96",
DFID,DFID,03/01/2014,DFID Purchased Relief Supplies ,West and Southern Africa ,Crown Agents ,114206-102 ,"34,068.16",
DFID,DFID,03/01/2014,Project delivery costs - supplier services ,West and Southern Africa ,EFFECTIVE DEVELOPMENT GROUP (EDG) ,113961-105 ,"37,531.09",
DFID,DFID,03/01/2014,Aid Programme - Partnership Programme Arrangements ,Policy Division ,MAPACTION ,202793-101 ,"37,789.50",
DFID,DFID,03/01/2014,Project delivery costs - supplier services ,Asia  Caribbean and Overseas Territories ,Population Council ,114506-101 ,"38,205.00",
DFID,DFID,03/01/2014,Project delivery costs - supplier services ,Middle East & North Africa Division (MENAD) ,COFFEY INTERNATIONAL DEVELOPMENT LTD ,203789-101 ,"38,967.45",
DFID,DFID,03/01/2014,Project delivery costs - supplier services ,East and Central Africa ,HEALTH PARTNERS INTERNATIONAL ,200250-115 ,"41,576.52",
DFID,DFID,03/01/2014,Project delivery costs - supplier services ,Policy Division ,OXFORD POLICY MANAGEMENT ,203324-101 ,"42,277.20",  
DFID,DFID,03/01/2014,Project delivery costs - supplier services ,West and Southern Africa ,Crown Agents ,104223-102 ,"43,322.38",
DFID,DFID,03/01/2014,Project delivery costs - supplier services ,Asia  Caribbean and Overseas Territories ,INFRASTRUCTURE PROFESSIONALS ENTERPRISE ,202765-101 ,"45,566.97",
DFID,DFID,03/01/2014,Project delivery costs - supplier services ,Asia  Caribbean and Overseas Territories ,ERNST &  YOUNG PRIVATE LTD ,200599-101 ,"46,205.50",
DFID,DFID,03/01/2014,Project delivery costs - supplier services ,Asia  Caribbean and Overseas Territories ,ERNST &  YOUNG PRIVATE LTD ,200599-101 ,"49,893.50",
DFID,DFID,03/01/2014,Project delivery costs - supplier services ,Asia  Caribbean and Overseas Territories ,CARE INTERNATIONAL ,114506-101 ,"49,982.39",
DFID,DFID,03/01/2014,Aid Programme - Core contributions ,Policy Division ,THE UN OFFICE on DRUGS AND CRIME ,200999-105 ,"50,000.00",
DFID,DFID,03/01/2014,Aid Programme - Accountable Grant Payments ,West and Southern Africa ,World Customs Organization ,203622-105 ,"50,000.00",
DFID,DFID,03/01/2014,Project delivery costs - supplier services ,East and Central Africa ,GRM INTERNATIONAL LTD (1) ,203539-102 ,"50,089.58",
DFID,DFID,03/01/2014,Project delivery costs - supplier services ,West and Southern Africa ,ECORYS UK Ltd. ,104200-104 ,"50,514.00",
DFID,DFID,03/01/2014,Project delivery costs - supplier services ,West and Southern Africa ,OPTIONS CONSULTANCY SERVICES LIMITED ,202721-104 ,"50,768.00",
DFID,DFID,03/01/2014,Project delivery costs - supplier services ,Research and Evidence Division ,OXFORD POLICY MANAGEMENT ,203193-101 ,"50,792.40",
DFID,DFID,03/01/2014,Project delivery costs - supplier services ,West and Southern Africa ,ECORYS UK Ltd. ,104200-104 ,"51,256.25",
DFID,DFID,03/01/2014,Aid Programme - Core contributions ,Policy Division ,INTOSAI Development Initiative ,203176-101 ,"52,943.60",
DFID,DFID,03/01/2014,Project delivery costs - supplier services ,East and Central Africa ,ADAM SMITH INTERNATIONAL ,201294-109 ,"54,017.89",
DFID,DFID,03/01/2014,Aid Programme - Accountable Grant Payments ,Asia  Caribbean and Overseas Territories ,THE ASIA FOUNDATION ,202798-102 ,"56,175.88",
DFID,DFID,03/01/2014,Aid Programme - Challenge Fund payments ,Western Asia and Stabilisation Division ,Supplier Name withheld ,200898-116 ,"56,271.27",
DFID,DFID,03/01/2014,Aid Programme - Accountable Grant Payments ,Research and Evidence Division ,ASSOCIATION OF COMMONWEALTH UNIVER ,201871-101 ,"56,562.00",
DFID,DFID,03/01/2014,Project delivery costs - supplier services ,West and Southern Africa ,EFFECTIVE DEVELOPMENT GROUP (EDG) ,113961-105 ,"63,612.74",
DFID,DFID,03/01/2014,Project delivery costs - supplier services ,Asia  Caribbean and Overseas Territories ,INFRASTRUCTURE PROFESSIONALS ENTERPRISE ,202765-101 ,"64,286.32",
DFID,DFID,03/01/2014,Project delivery costs - supplier services ,Asia  Caribbean and Overseas Territories ,CARE INTERNATIONAL ,114506-101 ,"64,735.48",
DFID,DFID,03/01/2014,Project delivery costs - supplier services ,Asia  Caribbean and Overseas Territories ,CARE INTERNATIONAL ,114506-101 ,"65,415.57",
DFID,DFID,03/01/2014,Aid Programme - Accountable Grant Payments ,Western Asia and Stabilisation Division ,SAVE THE CHILDREN ,203101-101 ,"69,176.90",
DFID,DFID,03/01/2014,Project delivery costs - supplier services ,Asia  Caribbean and Overseas Territories ,ERNST &  YOUNG PRIVATE LTD ,200599-101 ,"78,988.00",
DFID,DFID,03/01/2014,Project delivery costs - supplier services ,East and Central Africa ,IPA-International Procurement Agency (BV) ,113400-111 ,"80,000.00",
DFID,DFID,03/01/2014,Project delivery costs - supplier services ,Asia  Caribbean and Overseas Territories ,ERNST &  YOUNG PRIVATE LTD ,200599-101 ,"80,787.00",
DFID,DFID,03/01/2014,Project delivery costs - supplier services ,Asia  Caribbean and Overseas Territories ,ERNST &  YOUNG PRIVATE LTD ,200599-101 ,"80,787.00",
DFID,DFID,03/01/2014,Project delivery costs - supplier services ,Asia  Caribbean and Overseas Territories ,CARE INTERNATIONAL ,114506-101 ,"80,920.95",
DFID,DFID,03/01/2014,Project delivery costs - supplier services ,Asia  Caribbean and Overseas Territories ,CARE INTERNATIONAL ,114506-101 ,"80,920.95",
DFID,DFID,03/01/2014,Project delivery costs - supplier services ,Asia  Caribbean and Overseas Territories ,CARE INTERNATIONAL ,114506-101 ,"80,920.95",
DFID,DFID,03/01/2014,Project delivery costs - supplier services ,Asia  Caribbean and Overseas Territories ,INFRASTRUCTURE PROFESSIONALS ENTERPRISE ,203217-101 ,"84,427.30",
DFID,DFID,03/01/2014,DFID Purchased Relief Supplies ,West and Southern Africa ,Crown Agents ,104223-102 ,"85,531.05",
DFID,DFID,03/01/2014,Project delivery costs - supplier services ,West and Southern Africa ,COFFEY INTERNATIONAL DEVELOPMENT LTD ,202633-101 ,"88,723.20",
DFID,DFID,03/01/2014,Project delivery costs - supplier services ,Asia  Caribbean and Overseas Territories ,INFRASTRUCTURE PROFESSIONALS ENTERPRISE ,202765-101 ,"90,363.63",
DFID,DFID,03/01/2014,Project delivery costs - supplier services ,International Finance Division ,PRICEWATERHOUSECOOPERS ,202939-101 ,"92,977.84",
DFID,DFID,03/01/2014,Research & Development costs ,Research and Evidence Division ,WHO (GENEVA) ,203932-101 ,"99,440.00",
DFID,DFID,03/01/2014,Project delivery costs - supplier services ,West and Southern Africa ,WYG International ,114050-101 ,"100,135.50",
DFID,DFID,03/01/2014,Project delivery costs - supplier services ,Asia  Caribbean and Overseas Territories ,CARE INTERNATIONAL ,114506-101 ,"107,893.89",
DFID,DFID,03/01/2014,Project delivery costs - supplier services ,Asia  Caribbean and Overseas Territories ,CARE INTERNATIONAL ,114506-101 ,"107,893.89",
DFID,DFID,03/01/2014,Project delivery costs - supplier services ,Asia  Caribbean and Overseas Territories ,BMB MOTT  MACDONALD ,107480-101 ,"109,790.55",
DFID,DFID,03/01/2014,Project delivery costs - supplier services ,West and Southern Africa ,ADAM SMITH INTERNATIONAL  LTD ,203719-101 ,"121,249.00",
DFID,DFID,03/01/2014,Project delivery costs - supplier services ,Policy Division ,TRIPLE LINE CONSULTING LTD ,202035-101 ,"123,085.54",
DFID,DFID,03/01/2014,Aid Programme - Accountable Grant Payments ,Asia  Caribbean and Overseas Territories ,Infrastructure Development Company Limited (IDCOL) ,202976-101 ,"128,975.00",
DFID,DFID,03/01/2014,Aid Programme - Partnership Programme Arrangements ,Policy Division ,ARTICLE 19 ,202556-101 ,"135,671.75",
DFID,DFID,03/01/2014,Project delivery costs - supplier services ,Asia  Caribbean and Overseas Territories ,INFRASTRUCTURE PROFESSIONALS ENTERPRISE ,202765-101 ,"139,475.97",
DFID,DFID,03/01/2014,Project delivery costs - supplier services ,Asia  Caribbean and Overseas Territories ,INFRASTRUCTURE PROFESSIONALS ENTERPRISE ,114040-101 ,"140,405.06",
DFID,DFID,03/01/2014,Project delivery costs - supplier services ,West and Southern Africa ,GRM INTERNATIONAL LTD (1) ,104190-104 ,"147,084.08",
DFID,DFID,03/01/2014,Project delivery costs - supplier services ,West and Southern Africa ,MALARIA CONSORTIUM ,104223-101 ,"154,951.00",
DFID,DFID,03/01/2014,Project delivery costs - supplier services ,Asia  Caribbean and Overseas Territories ,CARE INTERNATIONAL ,114506-101 ,"161,840.83",
DFID,DFID,03/01/2014,Project delivery costs - supplier services ,Asia  Caribbean and Overseas Territories ,CARE INTERNATIONAL ,114506-101 ,"161,840.83",
DFID,DFID,03/01/2014,Project delivery costs - supplier services ,East and Central Africa ,HEALTH PARTNERS INTERNATIONAL ,200250-115 ,"162,867.34",
DFID,DFID,03/01/2014,Project delivery costs - supplier services ,Asia  Caribbean and Overseas Territories ,DELOITTE TOUCHE TOHAMATSU INDIA PRIVATE LTD (DTTIPL) ,108003-101 ,"163,322.00",
DFID,DFID,03/01/2014,Research & Development costs ,Research and Evidence Division ,International Food PolicyResearch Institute (IFRI ,201448-101 ,"164,158.00",
DFID,DFID,03/01/2014,Project delivery costs - supplier services ,Western Asia and Stabilisation Division ,Crown Agents ,113624-102 ,"173,446.55",
DFID,DFID,03/01/2014,Aid Programme - Accountable Grant Payments ,Policy Division ,Vital Voices Global Partnership ,202882-103 ,"174,204.64",
DFID,DFID,03/01/2014,Project delivery costs - supplier services ,West and Southern Africa ,COFFEY INTERNATIONAL DEVELOPMENT LTD ,104190-103 ,"177,983.56",
DFID,DFID,03/01/2014,Project delivery costs - supplier services ,West and Southern Africa ,GRM INTERNATIONAL LTD (1) ,202352-102 ,"186,034.94",
DFID,DFID,03/01/2014,DFID Purchased Relief Supplies ,West and Southern Africa ,Crown Agents ,104223-102 ,"187,069.74",
DFID,DFID,03/01/2014,Aid Programme - Accountable Grant Payments ,Policy Division ,POPULATION  SERVICES INTERNATIONAL ,202926-105 ,"194,020.00",
DFID,DFID,03/01/2014,Aid Programme - Core contributions ,Asia  Caribbean and Overseas Territories ,TECHNOLOGY DEVELOPMENT BOARD ,202927-107 ,"200,000.00",
DFID,DFID,03/01/2014,Aid Programme - Accountable Grant Payments ,Asia  Caribbean and Overseas Territories ,James P Grant School of Public Health  BRAC University ,201645-110 ,"204,770.44",
DFID,DFID,03/01/2014,DFID Purchased Relief Supplies ,West and Southern Africa ,Crown Agents ,104223-102 ,"205,691.45",
DFID,DFID,03/01/2014,Project delivery costs - supplier services ,West and Southern Africa ,GRM INTERNATIONAL LTD (1) ,202098-101 ,"221,952.28",
DFID,DFID,03/01/2014,Project delivery costs - supplier services ,East and Central Africa ,BMB Mott MacDonald-PO6116 ,202946-104 ,"222,634.13",
DFID,DFID,03/01/2014,Aid Programme - Accountable Grant Payments ,East and Central Africa ,FSD Kenya ,202692-110 ,"230,000.00",
DFID,DFID,03/01/2014,Project delivery costs - supplier services ,West and Southern Africa ,MALARIA CONSORTIUM ,104223-101 ,"231,764.00",
DFID,DFID,03/01/2014,Aid Programme - Accountable Grant Payments ,East and Central Africa ,PACT INC ,203382-106 ,"233,743.00",
DFID,DFID,03/01/2014,Aid Programme - Core contributions ,Policy Division ,THE UN OFFICE on DRUGS AND CRIME ,200999-101 ,"250,000.00",
DFID,DFID,03/01/2014,Aid Programme - Accountable Grant Payments ,East and Central Africa ,FSD Kenya ,201394-105 ,"250,000.00",
DFID,DFID,03/01/2014,Aid Programme - Accountable Grant Payments ,Asia  Caribbean and Overseas Territories ,Helvetas Nepal ,201489-101 ,"258,681.08",
DFID,DFID,03/01/2014,Aid Programme - Core contributions ,Policy Division ,Center on Budget and Policy Priorities ,203669-101 ,"272,563.20",
DFID,DFID,03/01/2014,Project delivery costs - supplier services ,Western Asia and Stabilisation Division ,ADAM SMITH INTERNATIONAL  LTD ,202328-102 ,"284,741.72",
DFID,DFID,03/01/2014,Aid Programme - Accountable Grant Payments ,West and Southern Africa ,Open Society Initiative for West Africa ,200274-108 ,"290,518.00",
DFID,DFID,03/01/2014,Research & Development costs ,Research and Evidence Division ,ADAM SMITH INTERNATIONAL  LTD ,202001-101 ,"293,518.00",
DFID,DFID,03/01/2014,DFID Purchased Relief Supplies ,Western Asia and Stabilisation Division ,Crown Agents ,201846-101 ,"296,120.82",
DFID,DFID,03/01/2014,Aid Programme - Accountable Grant Payments ,Asia  Caribbean and Overseas Territories ,Manusher Jonno Foundation ,202972-106 ,"312,284.00",
DFID,DFID,03/01/2014,Aid Programme - Accountable Grant Payments ,Asia  Caribbean and Overseas Territories ,Population Services Internation (usa) ,202759-101 ,"339,076.97",
DFID,DFID,03/01/2014,Aid Programme - Voluntary contributions ,Policy Division ,UIS ,203295-103 ,"350,000.00",
DFID,DFID,03/01/2014,Aid Programme - Voluntary contributions ,Policy Division ,Education for All Global Monitoring Report ,203295-104 ,"350,000.00",
DFID,DFID,03/01/2014,Aid Programme - Partnership Programme Arrangements ,Policy Division ,AVOCATS SANS FRONTIERES ,202739-101 ,"362,612.75",
DFID,DFID,03/01/2014,Project delivery costs - supplier services ,East and Central Africa ,Crown Agents ,203109-106 ,"370,739.76",
DFID,DFID,03/01/2014,Project delivery costs - supplier services ,East and Central Africa ,Futures Group Europe ,202547-102 ,"378,681.19",
DFID,DFID,03/01/2014,Project delivery costs - supplier services ,Asia  Caribbean and Overseas Territories ,BMB MOTT  MACDONALD ,107480-101 ,"390,597.58",
DFID,DFID,03/01/2014,Aid Programme - Accountable Grant Payments ,Asia  Caribbean and Overseas Territories ,ActionAid India ,108078-106 ,"436,783.52",
DFID,DFID,03/01/2014,Aid Programme - Voluntary contributions ,Policy Division ,Aids Fonds - STOP AIDS NOW! - Soa Aids Nederland ,203325-101 ,"443,750.00",
DFID,DFID,03/01/2014,Project delivery costs - supplier services ,Policy Division ,PRICEWATERHOUSECOOPERS ,114370-104 ,"460,886.66",
DFID,DFID,03/01/2014,Aid Programme - Accountable Grant Payments ,West and Southern Africa ,Musika Development Initiatives Ltd ,202999-102 ,"527,596.00",
DFID,DFID,03/01/2014,Aid Programme - Accountable Grant Payments ,West and Southern Africa ,Clinton Health Access Initiative ,203543-104 ,"539,566.75",
DFID,DFID,03/01/2014,Aid Programme - Accountable Grant Payments ,Communications Division ,UNICEF UK ,202197-101 ,"623,333.00",
DFID,DFID,03/01/2014,DFID Purchased Relief Supplies ,West and Southern Africa ,Crown Agents ,104223-102 ,"641,159.99",
DFID,DFID,03/01/2014,Aid Programme - Other Financial Aid to Government ,Asia  Caribbean and Overseas Territories , The Government of India ,203484-102 ,"652,375.41",
DFID,DFID,03/01/2014,Aid Programme - Accountable Grant Payments ,West and Southern Africa ,Clinton Health Access Initiative ,203924-103 ,"674,327.00",
DFID,DFID,03/01/2014,Aid Programme - Other Financial Aid to Government ,Asia  Caribbean and Overseas Territories , The Government of India ,203217-103 ,"683,001.38",
DFID,DFID,03/01/2014,Aid Programme - Voluntary contributions ,Policy Division ,Deutsche Gesellschaft fuer Internationale Zusammenarbeit (GIZ) GmbH ,202884-104 ,"700,000.00",
DFID,DFID,03/01/2014,Aid Programme - Voluntary contributions ,East and Central Africa ,UNDP CONTRIBUTIONS ACCOUNT ,203405-101 ,"810,000.00",
DFID,DFID,03/01/2014,Aid Programme - Other Financial Aid to Government ,West and Southern Africa ,Ministry of Finance  Ghana Health Sector Support Programme ,203648-102 ,"849,629.62",
DFID,DFID,03/01/2014,Project delivery costs - supplier services ,Western Asia and Stabilisation Division ,Supplier Name withheld ,202733-102 ,"985,960.16",
DFID,DFID,03/01/2014,Aid Programme - Joint programme contribution ,Asia  Caribbean and Overseas Territories ,Swiss Agency for Development and Cooperation SDC (Bangladesh) ,203229-101 ,"987,133.90",
DFID,DFID,03/01/2014,Aid Programme - Accountable Grant Payments ,Asia  Caribbean and Overseas Territories ,Infrastructure Development Company Limited (IDCOL) ,202976-102 ,"1,000,000.00",
DFID,DFID,03/01/2014,Aid Programme - Other Financial Aid to Government ,East and Central Africa ,Ministry of Finance Tanzania Water Supply ,203595-102 ,"1,000,000.00",
DFID,DFID,03/01/2014,Aid Programme - Humanitarian Material Relief Assistance and Services ,East and Central Africa ,WFP CONTRIBUTIONS UNIT ,203462-107 ,"1,000,000.00",
DFID,DFID,03/01/2014,Aid Programme - Humanitarian Material Relief Assistance and Services ,Western Asia and Stabilisation Division ,HANDS  ,203967-105 ,"1,238,507.00",
DFID,DFID,03/01/2014,Aid Programme - Voluntary contributions ,East and Central Africa ,WFP CONTRIBUTIONS UNIT ,203603-106 ,"1,300,000.00",
DFID,DFID,03/01/2014,Aid Programme - Accountable Grant Payments ,Western Asia and Stabilisation Division ,Education Fund for Sindh ,202378-103 ,"1,424,705.00",
DFID,DFID,03/01/2014,Aid Programme - Core contributions ,Research and Evidence Division ,INTERNATIONAL DEVELOPMENT RESEARCH CENTRE ,204321-101 ,"1,529,834.00",
DFID,DFID,03/01/2014,Aid Programme - Accountable Grant Payments ,International Finance Division ,FSD Kenya ,201394-102 ,"1,594,677.00",
DFID,DFID,03/01/2014,Aid Programme - Accountable Grant Payments ,East and Central Africa ,Act! (Act.Change.Transform) ,203574-111 ,"1,737,913.00",
DFID,DFID,03/01/2014,Aid Programme - Core contributions ,Research and Evidence Division ,The Global Alliance for TB Drug Development ,204086-101 ,"2,000,000.00",
DFID,DFID,03/01/2014,Aid Programme - Voluntary contributions ,Policy Division ,EUROPEAN FOREST INSTITUTE ,201724-110 ,"2,000,000.00",
DFID,DFID,03/01/2014,Project delivery costs - supplier services ,West and Southern Africa ,Crown Agents ,202732-104 ,"2,437,849.00",
DFID,DFID,03/01/2014,Aid Programme - Joint programme contribution ,East and Central Africa , USAID ,203671-101 ,"2,900,000.00",
DFID,DFID,03/01/2014,Aid Programme - Trust Funds contributions ,Asia  Caribbean and Overseas Territories ,ASIAN DEVELOPMENT.BANK ,204014-102 ,"3,800,000.00",
DFID,DFID,03/01/2014,Aid Programme - Other Financial Aid to Government ,Asia  Caribbean and Overseas Territories ,Government of Nepal LGCDP ,203764-102 ,"4,000,000.00",
DFID,DFID,03/01/2014,Aid Programme - Joint programme contribution ,East and Central Africa ,TRADEMARK EAST AFRICA ,203588-101 ,"4,000,000.00",
DFID,DFID,03/01/2014,Aid Programme - Joint programme contribution ,East and Central Africa , USAID ,204005-101 ,"5,000,000.00",
DFID,DFID,03/01/2014,Aid Programme - Humanitarian Material Relief Assistance and Services ,West and Southern Africa ,THE INTERNATIONAL COMMITTEE OF THE RED CROSS (ICRC) ,202909-103 ,"5,000,000.00",
DFID,DFID,03/01/2014,Aid Programme - Poverty Reduction Budget Support ,Asia  Caribbean and Overseas Territories ,Government of Nepal Health Sector Programme 2 ,201375-102 ,"8,000,000.00",
DFID,DFID,03/01/2014,Aid Programme - Core contributions ,International Relations Division ,FOOD AND AGRICULTURE ORGANISATION (USD) ,204058-101 ,"8,146,331.90",
DFID,DFID,03/01/2014,Aid Programme - Core contributions ,International Relations Division ,FOOD AND AGRICULTURE ORGANIZATION (EURO) ,204058-101 ,"8,265,474.06",
DFID,DFID,03/01/2014,Project delivery costs - supplier services ,West and Southern Africa ,Crown Agents ,202732-102 ,"9,861,072.35",
DFID,DFID,04/01/2014,Repairs  Maint  Alter - Property & Constrct. Services ,East and Central Africa ,NOLOT Consultancy and Professional Business ,100082-101 ,"1,371.38",
DFID,DFID,04/01/2014,Vehicle Hire Charges ,East and Central Africa ,Adika Tour and Travel PLC ,202913-104 ,"1,465.22",
DFID,DFID,06/01/2014,Hotels - Accommodation only ,International Finance Division ,Recipient name withheld ,100120-101 ,522.59,
DFID,DFID,06/01/2014,Contract & Agency Staff ,Human Resources ,MARGARET HODGE RECRUITMENT LTD ,100272-101 ,549.45,
DFID,DFID,06/01/2014,Contract & Agency Staff ,Human Resources ,MARGARET HODGE RECRUITMENT LTD ,100272-101 ,549.45,
DFID,DFID,06/01/2014,Contract & Agency Staff ,Human Resources ,MARGARET HODGE RECRUITMENT LTD ,100272-101 ,549.45,
DFID,DFID,06/01/2014,Contract & Agency Staff ,Human Resources ,MARGARET HODGE RECRUITMENT LTD ,100272-101 ,549.45,
DFID,DFID,06/01/2014,Hotels - Accommodation only ,Western Asia and Stabilisation Division ,Recipient name withheld ,201699-101 ,553.00,
DFID,DFID,06/01/2014,Hotels - Accommodation only ,Asia  Caribbean and Overseas Territories ,Recipient name withheld ,101603-102 ,632.09,
DFID,DFID,06/01/2014,Other travel costs ,Communications Division ,Recipient name withheld ,100154-101 ,659.94,
DFID,DFID,06/01/2014,Hotels - Accommodation only ,Western Asia and Stabilisation Division ,Recipient name withheld ,101624-101 ,688.98,
DFID,DFID,06/01/2014,Hostile Environment Training ,Western Asia and Stabilisation Division ,Matthew  Pullen ,203940-102 ,760.00,
DFID,DFID,06/01/2014,Hotels - Accommodation only ,Middle East & North Africa Division (MENAD) ,Recipient name withheld ,101619-101 ,873.48,
DFID,DFID,06/01/2014,Conferences  Seminars & Meeting/Event Resource ,Joint Trade Policy Division ,WILTON PARK ,100124-101 ,995.00,
DFID,DFID,06/01/2014,Contract & Agency Staff ,East and Central Africa ,Amy Mitchell-Bell ,100230-101 ,"1,050.00",
DFID,DFID,06/01/2014,Research & Development costs ,Research and Evidence Division ,Taylor & Francis ,201642-101 ,"2,145.60",
DFID,DFID,06/01/2014,Air fares ,Policy Division ,ABS Travel Inc. ,100277-101 ,"2,244.02",
DFID,DFID,06/01/2014,Repairs  Maint  Alter - Removal & waste disposal services ,Group Operations ,BYWATERS ,203717-101 ,"2,801.91",
DFID,DFID,06/01/2014,Training - Course Fees ,Research and Evidence Division ,UNIVERSITY OF LONDON INSTIT ,202392-101 ,"2,970.00",
DFID,DFID,06/01/2014,Project delivery costs - supplier services ,Western Asia and Stabilisation Division ,Crown Agents ,203941-102 ,"3,293.80",
DFID,DFID,06/01/2014,Project delivery costs - supplier services ,Western Asia and Stabilisation Division ,Acasus ,201337-101 ,"3,400.00",
DFID,DFID,06/01/2014,Project delivery costs - supplier services ,East and Central Africa ,HTSPE LTD ,204258-101 ,"4,030.00",
DFID,DFID,06/01/2014,Project delivery costs - supplier services ,Policy Division ,COFFEY INTERNATIONAL DEVELOPMENT LTD ,203950-102 ,"4,280.00",
DFID,DFID,06/01/2014,Project delivery costs - supplier services ,Human Resources ,MidlandHR ,100272-101 ,"4,950.00",
DFID,DFID,06/01/2014,Contract & Agency Staff ,Business Solutions Division Level ,ALLEGIS GROUP LIMITED ,200001-101 ,"5,616.00",
DFID,DFID,06/01/2014,Project delivery costs - supplier services ,West and Southern Africa ,Crown Agents ,202819-104 ,"5,775.54",
DFID,DFID,06/01/2014,Project delivery costs - supplier services ,East and Central Africa ,THE ENTERPRISE PARTNERSHIP ,101634-101 ,"6,240.00",
DFID,DFID,06/01/2014,Project delivery costs - supplier services ,East and Central Africa ,Roger Drew ,202989-104 ,"6,278.50",
DFID,DFID,06/01/2014,Secure Staff Accommodation ,Asia  Caribbean and Overseas Territories ,Supplier Name withheld ,201689-105 ,"7,045.97",
DFID,DFID,06/01/2014,Project delivery costs - supplier services ,Asia  Caribbean and Overseas Territories ,MAXWELL STAMP PLC ,114175-105 ,"7,960.12",
DFID,DFID,06/01/2014,Research & Development costs ,Research and Evidence Division ,THE UNIVERSITY OF GREENWICH ,202136-101 ,"8,537.00",
DFID,DFID,06/01/2014,Project delivery costs - supplier services ,Western Asia and Stabilisation Division ,Crown Agents ,203939-108 ,"9,090.00",
DFID,DFID,06/01/2014,Project delivery costs - supplier services ,Research and Evidence Division ,Michaela Raab ,203069-110 ,"9,872.15",
DFID,DFID,06/01/2014,Project delivery costs - supplier services ,West and Southern Africa ,Crown Agents ,202416-103 ,"10,612.54",
DFID,DFID,06/01/2014,Aid Programme - Other Financial Aid to Government ,Asia  Caribbean and Overseas Territories ,Government of Nepal RRRSDP NPR ,114453-101 ,"11,487.04",
DFID,DFID,06/01/2014,Project delivery costs - supplier services ,Policy Division ,PATH ,202674-101 ,"14,809.96",
DFID,DFID,06/01/2014,Aid Programme - Accountable Grant Payments ,Communications Division ,AAUK ,202197-101 ,"16,479.00",
DFID,DFID,06/01/2014,Project delivery costs - supplier services ,Policy Division ,HTSPE LTD ,202921-101 ,"16,502.65",
DFID,DFID,06/01/2014,Project delivery costs - supplier services ,East and Central Africa ,HTSPE LTD ,202900-101 ,"17,295.79",
DFID,DFID,06/01/2014,Project delivery costs - supplier services ,Western Asia and Stabilisation Division ,Crown Agents ,201846-101 ,"17,768.53",
DFID,DFID,06/01/2014,Project delivery costs - supplier services ,Asia  Caribbean and Overseas Territories ,HTSPE LTD ,202746-101 ,"18,960.00",
DFID,DFID,06/01/2014,Aid Programme - Accountable Grant Payments ,International Finance Division ,The Partnering Initiative ,203449-101 ,"20,000.00",
DFID,DFID,06/01/2014,Project delivery costs - supplier services ,East and Central Africa ,ADAM SMITH INTERNATIONAL  LTD ,200221-107 ,"21,947.06",
DFID,DFID,06/01/2014,Computer Consumables ,Business Solutions Division Level ,INSIGHT DIRECT (UK) LTD ,200003-142 ,"29,455.20",
DFID,DFID,06/01/2014,Project delivery costs - supplier services ,Asia  Caribbean and Overseas Territories ,UNDP CONTRIBUTIONS GBP ,203274-101 ,"30,675.00",
DFID,DFID,06/01/2014,Project delivery costs - supplier services ,East and Central Africa ,COFFEY INTERNATIONAL DEVELOPMENT LTD ,200892-102 ,"36,645.90",
DFID,DFID,06/01/2014,Project delivery costs - supplier services ,East and Central Africa ,OXFORD POLICY MANAGEMENT ,204288-101 ,"38,657.42",
DFID,DFID,06/01/2014,Project delivery costs - supplier services ,Asia  Caribbean and Overseas Territories ,COFFEY INTERNATIONAL DEVELOPMENT LTD ,202788-101 ,"42,005.28",
DFID,DFID,06/01/2014,Project delivery costs - supplier services ,West and Southern Africa ,Charles Kendall & Partners ,202214-103 ,"45,106.00",
DFID,DFID,06/01/2014,Project delivery costs - supplier services ,West and Southern Africa ,Charles Kendall & Partners ,202214-103 ,"45,106.00",
DFID,DFID,06/01/2014,Project delivery costs - supplier services ,Western Asia and Stabilisation Division ,OXFORD POLICY MANAGEMENT ,202413-102 ,"50,301.70",
DFID,DFID,06/01/2014,Project delivery costs - supplier services ,East and Central Africa ,HTSPE LTD ,202900-101 ,"51,213.50",
DFID,DFID,06/01/2014,Project delivery costs - supplier services ,Western Asia and Stabilisation Division ,Supplier Name withheld ,114488-101 ,"61,788.79",
DFID,DFID,06/01/2014,Aid Programme - Other Financial Aid to Government ,Asia  Caribbean and Overseas Territories ,Government of Nepal RRRSDP NPR ,114453-101 ,"75,123.65",
DFID,DFID,06/01/2014,Project delivery costs - supplier services ,Western Asia and Stabilisation Division ,Supplier Name withheld ,114525-107 ,"86,742.78",
DFID,DFID,06/01/2014,Project delivery costs - supplier services ,West and Southern Africa ,Crown Agents ,200625-105 ,"89,727.07",
DFID,DFID,06/01/2014,Project delivery costs - supplier services ,West and Southern Africa ,Charles Kendall & Partners ,202214-103 ,"106,200.00",
DFID,DFID,06/01/2014,Project delivery costs - supplier services ,East and Central Africa ,ADAM SMITH INTERNATIONAL  LTD ,202657-102 ,"114,639.62",
DFID,DFID,06/01/2014,Project delivery costs - supplier services ,Middle East & North Africa Division (MENAD) ,OXFORD POLICY MANAGEMENT ,202241-104 ,"115,923.88",
DFID,DFID,06/01/2014,Project delivery costs - supplier services ,Western Asia and Stabilisation Division ,Supplier Name withheld ,202112-102 ,"121,338.81",
DFID,DFID,06/01/2014,Project delivery costs - supplier services ,Asia  Caribbean and Overseas Territories ,MAXWELL STAMP PLC ,114175-101 ,"138,818.95",
DFID,DFID,06/01/2014,Project delivery costs - supplier services ,Policy Division ,IMPERIAL COLLEGE LONDON ,200706-101 ,"138,953.28",
DFID,DFID,06/01/2014,Aid Programme - Partnership Programme Arrangements ,Policy Division ,GENDER LINKS ,202576-101 ,"156,216.25",
DFID,DFID,06/01/2014,DFID Purchased Relief Supplies ,West and Southern Africa ,Crown Agents ,202819-104 ,"166,215.39",
DFID,DFID,06/01/2014,Project delivery costs - supplier services ,Policy Division ,PRICEWATERHOUSECOOPERS ,114370-104 ,"222,790.87",
DFID,DFID,06/01/2014,Project delivery costs - supplier services ,Western Asia and Stabilisation Division ,Supplier Name withheld ,201098-102 ,"251,767.20",
DFID,DFID,06/01/2014,Project delivery costs - supplier services ,Policy Division ,Crown Agents ,200706-102 ,"280,308.31",
DFID,DFID,06/01/2014,Project delivery costs - supplier services ,Western Asia and Stabilisation Division ,Supplier Name withheld ,201098-102 ,"289,735.71",
DFID,DFID,06/01/2014,Aid Programme - Other Financial Aid to Government ,Asia  Caribbean and Overseas Territories ,Government of Nepal RRRSDP NPR ,114453-101 ,"370,329.75",
DFID,DFID,06/01/2014,Project delivery costs - supplier services ,West and Southern Africa ,ADAM SMITH INTERNATIONAL ,201139-101 ,"466,133.76",
DFID,DFID,06/01/2014,DFID Purchased Relief Supplies ,Western Asia and Stabilisation Division ,Crown Agents ,201846-101 ,"507,672.31",
DFID,DFID,06/01/2014,Aid Programme - Accountable Grant Payments ,Policy Division ,BILL & MELINDA GATES FOUNDATION (USD) ,202918-104 ,"520,110.34",
DFID,DFID,06/01/2014,Project delivery costs - supplier services ,Western Asia and Stabilisation Division ,Supplier Name withheld ,202311-102 ,"599,687.98",
DFID,DFID,06/01/2014,Project delivery costs - supplier services ,East and Central Africa ,Mennonite Economic Development Associates of Canada ,202481-104 ,"641,012.77",
DFID,DFID,06/01/2014,Aid Programme - Accountable Grant Payments ,Policy Division ,UNITED NATIONS FOUNDATION ,204333-102 ,"1,646,000.00",
DFID,DFID,06/01/2014,Aid Programme - Core contributions ,Conflict Humanitarian and Security Division ,WFP CONTRIBUTIONS UNIT ,204119-101 ,"10,000,000.00",
DFID,DFID,06/01/2014,Aid Programme - Other Financial Aid to Government ,Asia  Caribbean and Overseas Territories , The Government of India ,201388-103 ,"10,000,000.00",
DFID,DFID,06/01/2014,Aid Programme - Other Financial Aid to Government ,Asia  Caribbean and Overseas Territories , The Government of India ,201388-104 ,"10,000,000.00",
DFID,DFID,07/01/2014,Contract & Agency Staff ,Human Resources ,MARGARET HODGE RECRUITMENT LTD ,100272-101 ,549.45,
DFID,DFID,07/01/2014,Subscriptions ,Communications Division ,THE PRESS ASSOCIATION ,100197-101 ,574.70,
DFID,DFID,07/01/2014,Repairs  Maint  Alter - Other Building Costs ,Group Operations ,ENERGY FITNESS PROFESSIONALS LTD ,203717-101 ,595.00,
DFID,DFID,07/01/2014,Repairs  Maint  Alter - Property & Constrct. Services ,West and Southern Africa ,Gylam Nigeria Limited ,100152-110 ,629.34,
DFID,DFID,07/01/2014,Repairs  Maint  Alter - Property & Constrct. Services ,West and Southern Africa ,Petliz Enterprise ,101637-101 ,656.24,
DFID,DFID,07/01/2014,Hotels - Accommodation only ,Western Asia and Stabilisation Division ,Recipient name withheld ,203944-109 ,663.52,
DFID,DFID,07/01/2014,Office Equipment - Purchases ,East and Central Africa ,IPA-International Procurement Agency (BV) ,101635-101 ,700.00,
DFID,DFID,07/01/2014,Contract & Agency Staff ,Finance and Corporate Performance Division ,Anderson Knight Ltd ,200173-103 ,716.62,
DFID,DFID,07/01/2014,Office Supplies ,Western Asia and Stabilisation Division ,Metro Cash & Carry  Pakistan  Islamabad ,101624-101 ,732.50,
DFID,DFID,07/01/2014,Aid Programme - Humanitarian Material Relief Assistance and Services ,Western Asia and Stabilisation Division ,Maj Fayyaz Ali ,202930-103 ,745.58,
DFID,DFID,07/01/2014,Hostile Environment Training ,Research and Evidence Division ,Pilgrims Group ,202392-113 ,760.97,
DFID,DFID,07/01/2014,Repairs  Maint  Alter - Property & Constrct. Services ,West and Southern Africa ,Petliz Enterprise ,101637-101 ,792.96,
DFID,DFID,07/01/2014,Contract & Agency Staff ,Finance and Corporate Performance Division ,Hays Specialist Recruitment Ltd ,100201-101 ,932.40,
DFID,DFID,07/01/2014,Project delivery costs - supplier services ,West and Southern Africa ,CHARLES KENDALL & PARTNERS LIMITED (PROCUREMENT) ,113961-106 ,948.57,
DFID,DFID,07/01/2014,Facilities Management payments ,West and Southern Africa ,Fracham Company ,101622-105 ,971.36,
DFID,DFID,07/01/2014,Training - Travel & Subsistence ,West and Southern Africa ,Mukwa Travel and Tours ,101637-102 ,"1,007.79",
DFID,DFID,07/01/2014,Contract & Agency Staff ,Internal Audit ,Hays Specialist Recruitment Ltd ,100121-101 ,"1,035.01",
DFID,DFID,07/01/2014,Hotels - Accommodation only ,West and Southern Africa ,Recipient name withheld ,100096-101 ,"1,062.92",
DFID,DFID,07/01/2014,Contract & Agency Staff ,Internal Audit ,Hays Specialist Recruitment Ltd ,100121-101 ,"1,063.77",
DFID,DFID,07/01/2014,Contract & Agency Staff ,Finance and Corporate Performance Division ,Hays Specialist Recruitment Ltd ,100201-101 ,"1,165.50",
DFID,DFID,07/01/2014,Storage & Distribution costs ,Business Solutions Division Level ,TNT Express (UK) Ltd ,200001-101 ,"1,196.06",
DFID,DFID,07/01/2014,Hotels - Accommodation only ,Western Asia and Stabilisation Division ,Indus Guest House ,101624-101 ,"1,197.52",
DFID,DFID,07/01/2014,Medical/Health Services ,East and Central Africa ,Unity Resources Group ,202586-101 ,"1,320.74",
DFID,DFID,07/01/2014,Medical/Health Services ,East and Central Africa ,Unity Resources Group ,202594-101 ,"1,320.75",
DFID,DFID,07/01/2014,Repairs  Maint  Alter - Property & Constrct. Services ,West and Southern Africa ,Gylam Nigeria Limited ,101622-105 ,"1,337.36",
DFID,DFID,07/01/2014,Contract & Agency Staff ,Business Solutions Division Level ,OPIN SYSTEMS LIMITED ,200001-101 ,"1,920.00",
DFID,DFID,07/01/2014,Project delivery costs - supplier services ,Western Asia and Stabilisation Division ,SixtyOne Whitehall ,203939-103 ,"2,160.00",
DFID,DFID,07/01/2014,Project delivery costs - supplier services ,East and Central Africa ,Odessa Centre Ltd ,200762-103 ,"2,363.00",
DFID,DFID,07/01/2014,Contract & Agency Staff ,International Finance Division ,Hays Specialist Recruitment Ltd ,100120-101 ,"2,617.08",
DFID,DFID,07/01/2014,Conferences  Seminars & Meeting/Event Resource ,Research and Evidence Division ,Senate House Events  University of London ,100039-114 ,"2,668.42",
DFID,DFID,07/01/2014,Project delivery costs - supplier services ,Middle East & North Africa Division (MENAD) ,GRM INTERNATIONAL LTD (1) ,114307-101 ,"2,997.11",
DFID,DFID,07/01/2014,Project delivery costs - supplier services ,Western Asia and Stabilisation Division ,Supplier Name withheld ,202297-101 ,"3,000.00",
DFID,DFID,07/01/2014,Contract & Agency Staff ,International Finance Division ,MANPOWER PLC ,100120-101 ,"3,020.58",
DFID,DFID,07/01/2014,Project delivery costs - supplier services ,East and Central Africa ,Cesear Mloka ,204010-102 ,"3,052.50",
DFID,DFID,07/01/2014,Generators & spares ,West and Southern Africa ,Genmec Limited ,101618-101 ,"3,545.12",
DFID,DFID,07/01/2014,Auditors Remuneration & Expenses - Cash ,West and Southern Africa ,Deloitte ,202559-108 ,"3,596.84",
DFID,DFID,07/01/2014,Aid Programme - Joint programme contribution ,Policy Division ,Deutsche Gesellschaft fuer Internationale Zusammenarbeit (GIZ) GmbH ,202957-101 ,"3,958.44",
DFID,DFID,07/01/2014,Project delivery costs - supplier services ,East and Central Africa ,COFFEY INTERNATIONAL DEVELOPMENT LTD ,202913-101 ,"5,274.00",
DFID,DFID,07/01/2014,Legal costs ,Finance and Corporate Performance Division ,MICHELMORES SOLICITORS ,100008-101 ,"5,302.38",
DFID,DFID,07/01/2014,Conferences  Seminars & Meeting/Event Resource ,Research and Evidence Division ,Senate House Events  University of London ,100039-114 ,"5,497.50",
DFID,DFID,07/01/2014,Project delivery costs - supplier services ,West and Southern Africa ,COFFEY INTERNATIONAL DEVELOPMENT LTD ,104190-109 ,"5,588.02",
DFID,DFID,07/01/2014,Project delivery costs - supplier services ,West and Southern Africa ,CHARLES KENDALL & PARTNERS LIMITED (PROCUREMENT) ,113961-106 ,"6,688.77",
DFID,DFID,07/01/2014,Contract Catering Services ,Conflict Humanitarian and Security Division ,FCO SERVICES ,100049-101 ,"8,840.40",
DFID,DFID,07/01/2014,Aid Programme - Accountable Grant Payments ,Conflict Humanitarian and Security Division ,INTERNATIONAL RESCUE COMMITTEE ,204072-102 ,"9,800.00",
DFID,DFID,07/01/2014,Project delivery costs - supplier services ,West and Southern Africa ,Finda E.M Koroma ,203719-102 ,"9,946.15",
DFID,DFID,07/01/2014,Project delivery costs - supplier services ,Western Asia and Stabilisation Division ,Crown Agents ,201846-101 ,"10,789.50",
DFID,DFID,07/01/2014,Aid Programme - Accountable Grant Payments ,Western Asia and Stabilisation Division ,Supplier Name withheld ,203474-102 ,"10,958.00",
DFID,DFID,07/01/2014,Project delivery costs - supplier services ,West and Southern Africa ,CHARLES KENDALL & PARTNERS LIMITED (PROCUREMENT) ,113961-106 ,"11,130.00",
DFID,DFID,07/01/2014,Project delivery costs - supplier services ,International Finance Division ,DEVELOPING MARKETS ASSOCIATES LTD ,201464-103 ,"14,195.00",
DFID,DFID,07/01/2014,Project delivery costs - supplier services ,West and Southern Africa ,Crown Agents ,200625-105 ,"15,069.48",
DFID,DFID,07/01/2014,Project delivery costs - supplier services ,Western Asia and Stabilisation Division ,Crown Agents ,201846-101 ,"15,394.48",
DFID,DFID,07/01/2014,Aid Programme - Development Awareness Fund payments ,Communications Division ,Crown Agents ,114423-101 ,"16,711.32",
DFID,DFID,07/01/2014,Project delivery costs - supplier services ,Asia  Caribbean and Overseas Territories ,HTSPE LTD ,201739-101 ,"17,465.87",
DFID,DFID,07/01/2014,Project delivery costs - supplier services ,Asia  Caribbean and Overseas Territories ,OXFORD POLICY MANAGEMENT ,202123-105 ,"17,887.84",
DFID,DFID,07/01/2014,Project delivery costs - supplier services ,Research and Evidence Division ,GHK CONSULTING LTD ,201433-106 ,"19,099.25",
DFID,DFID,07/01/2014,Project delivery costs - supplier services ,West and Southern Africa ,GHK CONSULTING LTD ,201433-107 ,"19,099.25",
DFID,DFID,07/01/2014,Project delivery costs - supplier services ,Policy Division ,IMC Worldwide Ltd. ,202628-102 ,"20,400.00",
DFID,DFID,07/01/2014,Project delivery costs - supplier services ,International Finance Division ,Nathan Associates London Ltd ,114009-101 ,"24,275.04",
DFID,DFID,07/01/2014,Project delivery costs - supplier services ,Asia  Caribbean and Overseas Territories ,GHK CONSULTING LTD ,203484-101 ,"24,414.00",
DFID,DFID,07/01/2014,Project delivery costs - supplier services ,Policy Division ,PATH ,202674-101 ,"24,817.17",
DFID,DFID,07/01/2014,Project delivery costs - supplier services ,East and Central Africa ,HTSPE LTD ,204258-101 ,"29,722.11",
DFID,DFID,07/01/2014,Project delivery costs - supplier services ,West and Southern Africa ,OXFORD POLICY MANAGEMENT ,202643-103 ,"31,748.25",
DFID,DFID,07/01/2014,Aid Programme - Challenge Fund payments ,Western Asia and Stabilisation Division ,Supplier Name withheld ,200898-116 ,"36,271.86",
DFID,DFID,07/01/2014,Project delivery costs - supplier services ,Policy Division ,Crown Agents ,200706-102 ,"38,660.08",
DFID,DFID,07/01/2014,Hostile Environment Training ,Western Asia and Stabilisation Division ,GroundTruth Consulting ,203940-102 ,"44,130.00",
DFID,DFID,07/01/2014,Project delivery costs - supplier services ,Policy Division ,Triple Line Crown Agents JV. ,201242-101 ,"47,129.15",
DFID,DFID,07/01/2014,Project delivery costs - supplier services ,West and Southern Africa ,OXFORD POLICY MANAGEMENT ,202643-103 ,"69,916.90",
DFID,DFID,07/01/2014,Aid Programme - Other Financial Aid to Government ,Western Asia and Stabilisation Division ,Supplier Name withheld ,202300-103 ,"91,894.47",
DFID,DFID,07/01/2014,Aid Programme - Core contributions ,Middle East & North Africa Division (MENAD) ,UN RELIEF AND WORKS AGENCY ,202885-101 ,"99,000.00",
DFID,DFID,07/01/2014,Project delivery costs - supplier services ,Conflict Humanitarian and Security Division , Overseas Development Institute ,203249-103 ,"100,000.00",
DFID,DFID,07/01/2014,Project delivery costs - supplier services ,Policy Division ,Crown Agents Bank ,201724-129 ,"111,359.08",
DFID,DFID,07/01/2014,Aid Programme - Challenge Fund payments ,Western Asia and Stabilisation Division ,Supplier Name withheld ,200898-116 ,"117,036.27",
DFID,DFID,07/01/2014,Project delivery costs - supplier services ,International Finance Division ,Nathan Associates London Ltd ,114009-102 ,"118,648.17",
DFID,DFID,07/01/2014,Aid Programme - Accountable Grant Payments ,Asia  Caribbean and Overseas Territories ,GVEP INTERNATIONAL LTD ,201986-101 ,"123,842.00",
DFID,DFID,07/01/2014,Project delivery costs - supplier services ,Western Asia and Stabilisation Division ,Tsamota ,204304-103 ,"142,852.70",
DFID,DFID,07/01/2014,Project delivery costs - supplier services ,Asia  Caribbean and Overseas Territories ,PRICEWATERHOUSECOOPERS ,203281-101 ,"167,887.37",
DFID,DFID,07/01/2014,Project delivery costs - supplier services ,Western Asia and Stabilisation Division ,OXFORD POLICY MANAGEMENT ,202367-103 ,"168,788.31",
DFID,DFID,07/01/2014,Project delivery costs - supplier services ,Policy Division ,Crown Agents Bank ,201724-128 ,"174,984.00",
DFID,DFID,07/01/2014,Aid Programme - Core contributions ,Policy Division ,INTOSAI Development Initiative ,203176-102 ,"207,116.25",
DFID,DFID,07/01/2014,Aid Programme - Accountable Grant Payments ,West and Southern Africa ,TechnoServe  Incorporated ,204112-101 ,"218,221.43",
DFID,DFID,07/01/2014,Project delivery costs - supplier services ,East and Central Africa ,Crown Agents ,203109-106 ,"281,066.17",
DFID,DFID,07/01/2014,Project delivery costs - supplier services ,Policy Division ,IMPERIAL COLLEGE LONDON ,200706-101 ,"314,193.75",
DFID,DFID,07/01/2014,DFID Purchased Relief Supplies ,Western Asia and Stabilisation Division ,Crown Agents ,201846-101 ,"317,512.17",
DFID,DFID,07/01/2014,Project delivery costs - supplier services ,West and Southern Africa ,Abt Associates ,202342-102 ,"330,786.80",
DFID,DFID,07/01/2014,Project delivery costs - supplier services ,East and Central Africa ,CARDNO EMERGING MARKETS (UK) LTD ,202551-102 ,"341,878.97",
DFID,DFID,07/01/2014,DFID Purchased Relief Supplies ,Western Asia and Stabilisation Division ,Crown Agents ,201846-101 ,"439,842.33",
DFID,DFID,07/01/2014,Project delivery costs - supplier services ,Western Asia and Stabilisation Division ,DAI Europe ,114433-102 ,"678,423.28",
DFID,DFID,07/01/2014,Aid Programme - Accountable Grant Payments ,West and Southern Africa ,POLICY AND LEGAL ADVOCACY CENTRE ,200274-109 ,"832,661.30",
DFID,DFID,07/01/2014,Aid Programme - Trust Funds contributions ,Research and Evidence Division ,IBRD HSBC T ,204343-101 ,"3,000,000.00",
DFID,DFID,07/01/2014,Aid Programme - Trust Funds contributions ,Policy Division ,IBRD HSBC T ,202954-101 ,"3,500,000.00",
DFID,DFID,08/01/2014,Contract & Agency Staff ,Human Resources ,Anderson Knight Ltd ,100270-104 ,597.18,
DFID,DFID,08/01/2014,Telephone Usage & services ,East and Central Africa ,ETC ,100082-101 ,600.56,
DFID,DFID,08/01/2014,Hotels - Accommodation only ,International Finance Division ,Recipient name withheld ,202259-101 ,611.08,
DFID,DFID,08/01/2014,Hostile Environment Training ,West and Southern Africa ,Pilgrims Group ,100189-101 ,634.14,
DFID,DFID,08/01/2014,Telephone Usage & services ,East and Central Africa ,Uganda Telecom ,101635-101 ,682.92,
DFID,DFID,08/01/2014,Office Equipment - Purchases ,Group Operations ,Environment Protection Ltd ,203717-101 ,696.00,
DFID,DFID,08/01/2014,Recruitment costs ,East and Central Africa ,aikan Uganda Limited ,100234-101 ,786.51,
DFID,DFID,08/01/2014,Hostile Environment Training ,Human Resources ,Pilgrims Group ,100269-158 ,802.14,
DFID,DFID,08/01/2014,Hostile Environment Training ,Middle East & North Africa Division (MENAD) ,Pilgrims Group ,100307-101 ,802.14,
DFID,DFID,08/01/2014,Aid Programme - Humanitarian Material Relief Assistance and Services ,Western Asia and Stabilisation Division ,TOURISM PROMOTION SERVICES/ ISLAMABA ,202930-103 ,875.61,
DFID,DFID,08/01/2014,Hostile Environment Training ,Middle East & North Africa Division (MENAD) ,Pilgrims Group ,204084-101 ,962.57,
DFID,DFID,08/01/2014,Training - Course Fees ,Research and Evidence Division ,OFFICE FOR NATIONAL STATISTICS ,100039-114 ,"1,000.00",
DFID,DFID,08/01/2014,Data Network -Satellite ,East and Central Africa ,ETC ,100082-101 ,"1,014.46",
DFID,DFID,08/01/2014,Hostile Environment Training ,Western Asia and Stabilisation Division ,Supplier Name withheld ,101601-110 ,"1,027.14",
DFID,DFID,08/01/2014,Project delivery costs - supplier services ,East and Central Africa ,MARK MCGIVERN ,101612-101 ,"1,100.00",
DFID,DFID,08/01/2014,Telephone Usage & services ,East and Central Africa ,Ethio Telecom ,100082-101 ,"1,108.11",
DFID,DFID,08/01/2014,Recruitment costs ,Human Resources ,Syme Drummond Ltd ,100266-104 ,"1,281.40",
DFID,DFID,08/01/2014,Other passenger transport ,East and Central Africa ,Crown Agents ,202974-108 ,"1,438.56",
DFID,DFID,08/01/2014,Project delivery costs - supplier services ,West and Southern Africa ,PATRICK JAMES NOLEN ,114050-101 ,"1,500.00",
DFID,DFID,08/01/2014,Contract & Agency Staff ,Finance and Corporate Performance Division ,Search Consultancy Ltd ,100201-101 ,"1,663.20",
DFID,DFID,08/01/2014,Contract & Agency Staff ,Finance and Corporate Performance Division ,Search Consultancy Ltd ,100201-101 ,"1,663.20",
DFID,DFID,08/01/2014,Other Building Products ,Group Operations ,BCL ,203717-101 ,"1,797.60",
DFID,DFID,08/01/2014,Project delivery costs - supplier services ,Western Asia and Stabilisation Division ,Crown Agents ,203938-104 ,"2,424.00",
DFID,DFID,08/01/2014,Contract & Agency Staff ,Group Operations ,MANPOWER PLC ,100161-101 ,"2,617.18",
DFID,DFID,08/01/2014,Computer hardware maintenance ,Business Solutions Division Level ,NORTHGATE HR LIMITED ,200002-105 ,"2,919.84",
DFID,DFID,08/01/2014,Project delivery costs - supplier services ,Western Asia and Stabilisation Division ,Crown Agents ,203938-104 ,"3,333.00",
DFID,DFID,08/01/2014,Aid Programme - Humanitarian Material Relief Assistance and Services ,Western Asia and Stabilisation Division ,FAZAL SAID KHAN ,203787-106 ,"3,475.20",
DFID,DFID,08/01/2014,Project delivery costs - supplier services ,Asia  Caribbean and Overseas Territories ,MP Ensystems Advisory Private Limited ,114320-124 ,"4,206.82",
DFID,DFID,08/01/2014,Aid Programme - Accountable Grant Payments ,Policy Division ,Triple Line Crown Agents JV ,202035-101 ,"4,811.56",
DFID,DFID,08/01/2014,Project delivery costs - supplier services ,Western Asia and Stabilisation Division ,Crown Agents ,203938-101 ,"4,848.00",
DFID,DFID,08/01/2014,Project delivery costs - supplier services ,East and Central Africa ,LUEK ,204033-101 ,"4,882.40",
DFID,DFID,08/01/2014,Project delivery costs - supplier services ,Western Asia and Stabilisation Division ,Supplier Name withheld ,202190-105 ,"5,281.00",
DFID,DFID,08/01/2014,Storage & Distribution costs ,Business Solutions Division Level ,TNT Express (UK) Ltd ,200001-101 ,"5,388.67",
DFID,DFID,08/01/2014,Project delivery costs - supplier services ,West and Southern Africa ,CAMBRIDGE EDUCATION LTD ,202623-115 ,"5,928.04",
DFID,DFID,08/01/2014,Project delivery costs - supplier services ,Western Asia and Stabilisation Division ,Crown Agents ,201846-101 ,"6,027.72",
DFID,DFID,08/01/2014,Project delivery costs - supplier services ,Policy Division ,MR PAUL BALOGUN ,203368-104 ,"6,543.20",
DFID,DFID,08/01/2014,Project delivery costs - supplier services ,Policy Division , Overseas Development Institute ,202653-101 ,"8,667.27",
DFID,DFID,08/01/2014,Project delivery costs - supplier services ,East and Central Africa ,Crown Agents ,203382-101 ,"8,840.00",
DFID,DFID,08/01/2014,Project delivery costs - supplier services ,East and Central Africa ,Sasun Tsirunyan ,202394-103 ,"9,957.72",
DFID,DFID,08/01/2014,Project delivery costs - supplier services ,West and Southern Africa ,National Crime Agency ,201107-104 ,"10,256.02",
DFID,DFID,08/01/2014,Project delivery costs - supplier services ,Asia  Caribbean and Overseas Territories ,FCO SERVICES ,100114-104 ,"10,631.16",
DFID,DFID,08/01/2014,Project delivery costs - supplier services ,Research and Evidence Division ,OXFORD POLICY MANAGEMENT ,203705-111 ,"10,732.80",
DFID,DFID,08/01/2014,Project delivery costs - supplier services ,Research and Evidence Division ,OXFORD POLICY MANAGEMENT ,203706-107 ,"10,732.80",
DFID,DFID,08/01/2014,Project delivery costs - supplier services ,Research and Evidence Division ,OXFORD POLICY MANAGEMENT ,203704-108 ,"10,732.80",
DFID,DFID,08/01/2014,Project delivery costs - supplier services ,International Finance Division ,PRICEWATERHOUSECOOPERS ,202939-106 ,"11,155.53",
DFID,DFID,08/01/2014,Project delivery costs - supplier services ,East and Central Africa ,The Curriculum Foundation Ltd ,202315-110 ,"12,894.76",
DFID,DFID,08/01/2014,Project delivery costs - supplier services ,West and Southern Africa ,ADAM SMITH INTERNATIONAL  LTD ,203824-103 ,"14,665.04",
DFID,DFID,08/01/2014,Project delivery costs - supplier services ,Policy Division ,PRICEWATERHOUSECOOPERS ,114370-105 ,"17,000.00",
DFID,DFID,08/01/2014,Operating Lease rental of buildings ,West and Southern Africa ,JUSTICE CORNELIUS AUGUSTINE HARDING ,100214-101 ,"17,600.00",
DFID,DFID,08/01/2014,Project delivery costs - supplier services ,East and Central Africa ,The Curriculum Foundation Ltd ,202315-110 ,"18,000.00",
DFID,DFID,08/01/2014,Project delivery costs - supplier services ,East and Central Africa ,Crown Agents ,203382-101 ,"19,600.00",
DFID,DFID,08/01/2014,Project delivery costs - supplier services ,East and Central Africa ,OXFORD POLICY MANAGEMENT ,202657-110 ,"21,483.73",
DFID,DFID,08/01/2014,Operating Lease rental of buildings ,West and Southern Africa ,JUSTICE CORNELIUS AUGUSTINE HARDING ,101629-101 ,"26,400.00",Annual rental for the DFID Sierra Leone Office from  1 Jan - 31 Dec 2014 
DFID,DFID,08/01/2014,Project delivery costs - supplier services ,Policy Division ,iMEDIA ASSOCIATES LTD ,202629-102 ,"26,463.00",
DFID,DFID,08/01/2014,Aid Programme - Accountable Grant Payments ,Policy Division ,Triple Line Crown Agents JV ,202035-101 ,"26,806.00",
DFID,DFID,08/01/2014,Project delivery costs - supplier services ,Research and Evidence Division ,CAB INTERNATIONAL ,112152-102 ,"27,727.46",
DFID,DFID,08/01/2014,Project delivery costs - supplier services ,East and Central Africa ,KPMG EAST AFRICA LTD ,201866-109 ,"36,569.94",
DFID,DFID,08/01/2014,Recruitment costs ,International Relations Division ,HM REVENUE AND CUSTOMS,100086-101 ,"41,000.00",DFID funding for the European Faststreamer Programme 2013/2014 
DFID,DFID,08/01/2014,Project delivery costs - supplier services ,Western Asia and Stabilisation Division ,Supplier Name withheld ,202109-102 ,"44,151.43",
DFID,DFID,08/01/2014,Project delivery costs - supplier services ,West and Southern Africa ,COFFEY INTERNATIONAL DEVELOPMENT LTD ,202468-102 ,"44,661.18",
DFID,DFID,08/01/2014,Project delivery costs - supplier services ,Western Asia and Stabilisation Division ,Supplier Name withheld ,202190-105 ,"47,671.00",
DFID,DFID,08/01/2014,Project delivery costs - supplier services ,West and Southern Africa ,OXFORD POLICY MANAGEMENT ,202461-101 ,"51,425.00",
DFID,DFID,08/01/2014,Project delivery costs - supplier services ,Western Asia and Stabilisation Division ,Supplier Name withheld ,202109-102 ,"75,130.17",
DFID,DFID,08/01/2014,Project delivery costs - supplier services ,International Finance Division ,PRICEWATERHOUSECOOPERS ,202939-103 ,"81,822.31",
DFID,DFID,08/01/2014,Project delivery costs - supplier services ,Policy Division ,KPMG Development Services ,114143-101 ,"90,856.02",
DFID,DFID,08/01/2014,Research & Development costs ,Research and Evidence Division , OECD ,204380-101 ,"92,625.00",
DFID,DFID,08/01/2014,Aid Programme - Trust Funds contributions ,Western Asia and Stabilisation Division ,Supplier Name withheld ,200898-115 ,"100,000.00",
DFID,DFID,08/01/2014,Aid Programme - Joint programme contribution ,Asia  Caribbean and Overseas Territories ,THE BRITISH RED CROSS SOCIETY ,202433-105 ,"107,103.00",
DFID,DFID,08/01/2014,Project delivery costs - supplier services ,Asia  Caribbean and Overseas Territories ,CHRISTIAN AID ,113311-101 ,"108,216.68",
DFID,DFID,08/01/2014,Project delivery costs - supplier services ,West and Southern Africa ,OXFORD POLICY MANAGEMENT ,201874-103 ,"118,649.08",
DFID,DFID,08/01/2014,Project delivery costs - supplier services ,West and Southern Africa ,ADAM SMITH INTERNATIONAL  LTD ,203824-103 ,"119,700.00",
DFID,DFID,08/01/2014,Project delivery costs - supplier services ,West and Southern Africa ,KPMG Auditores e Consultores SA ,103993-101 ,"130,184.07",
DFID,DFID,08/01/2014,Project delivery costs - supplier services ,International Finance Division ,PRICEWATERHOUSECOOPERS ,202939-101 ,"130,829.39",
DFID,DFID,08/01/2014,Project delivery costs - supplier services ,East and Central Africa ,BRITISH COUNCIL ,203468-101 ,"140,842.67",
DFID,DFID,08/01/2014,Project delivery costs - supplier services ,Asia  Caribbean and Overseas Territories ,GHK CONSULTING LTD ,203484-101 ,"159,893.00",
DFID,DFID,08/01/2014,DFID Purchased Relief Supplies ,Western Asia and Stabilisation Division ,Crown Agents ,201846-101 ,"172,220.66",
DFID,DFID,08/01/2014,Project delivery costs - supplier services ,Asia  Caribbean and Overseas Territories ,GHK CONSULTING LTD ,203484-101 ,"174,651.00",
DFID,DFID,08/01/2014,Aid Programme - Accountable Grant Payments ,Communications Division ,CHRISTIAN AID ,202197-101 ,"222,937.00",
DFID,DFID,08/01/2014,Project delivery costs - supplier services ,West and Southern Africa ,COFFEY INTERNATIONAL DEVELOPMENT LTD ,104190-109 ,"232,743.70",
DFID,DFID,08/01/2014,Research & Development costs ,Research and Evidence Division ,CENTRE FOR ECONOMIC POLICY RESEARCH ,202835-101 ,"245,563.06",
DFID,DFID,08/01/2014,Aid Programme - Accountable Grant Payments ,Research and Evidence Division ,SCIDEV.NET ,114034-103 ,"298,790.00",
DFID,DFID,08/01/2014,Project delivery costs - supplier services ,Policy Division ,PRICEWATERHOUSECOOPERS ,114370-105 ,"348,262.70",
DFID,DFID,08/01/2014,Project delivery costs - supplier services ,Western Asia and Stabilisation Division ,Crown Agents ,202741-104 ,"430,800.00",
DFID,DFID,08/01/2014,Project delivery costs - supplier services ,West and Southern Africa ,Society for Family  Health ,114206-101 ,"442,943.08",
DFID,DFID,08/01/2014,Project delivery costs - supplier services ,Policy Division ,PRICEWATERHOUSECOOPERS ,202372-102 ,"540,776.04",
DFID,DFID,08/01/2014,Project delivery costs - supplier services ,East and Central Africa ,WHO (GENEVA) ,203155-102 ,"734,624.00",
DFID,DFID,08/01/2014,Aid Programme - Partnership Programme Arrangements ,Policy Division ,MARIE STOPES INTERNATIONAL ,202625-101 ,"1,088,263.00",
DFID,DFID,08/01/2014,Aid Programme - Core contributions ,International Finance Division ,SG HAMBROS BANK & TRUST LTD (USD) ,203232-102 ,"1,143,000.00",
DFID,DFID,09/01/2014,Hotels - Accommodation only ,Research and Evidence Division ,Recipient name withheld ,100039-114 ,509.60,
DFID,DFID,09/01/2014,Contract & Agency Staff ,Human Resources ,MARGARET HODGE RECRUITMENT LTD ,100272-101 ,521.66,
DFID,DFID,09/01/2014,Training - Travel & Subsistence ,Western Asia and Stabilisation Division ,Recipient name withheld ,203940-102 ,536.44,
DFID,DFID,09/01/2014,Contract & Agency Staff ,Human Resources ,MARGARET HODGE RECRUITMENT LTD ,100272-101 ,549.45,
DFID,DFID,09/01/2014,Contract & Agency Staff ,Human Resources ,MARGARET HODGE RECRUITMENT LTD ,100272-101 ,549.45,
DFID,DFID,09/01/2014,Contract & Agency Staff ,Human Resources ,MARGARET HODGE RECRUITMENT LTD ,100272-101 ,549.45,
DFID,DFID,09/01/2014,Contract & Agency Staff ,Human Resources ,MARGARET HODGE RECRUITMENT LTD ,100272-101 ,549.45,
DFID,DFID,09/01/2014,Contract & Agency Staff ,Human Resources ,MARGARET HODGE RECRUITMENT LTD ,100272-101 ,549.45,
DFID,DFID,09/01/2014,Legal costs ,East and Central Africa ,Sebalu & Lule ,101635-101 ,565.66,
DFID,DFID,09/01/2014,Subscriptions ,Asia  Caribbean and Overseas Territories ,BRITISH HIGH COMMISSION ,100113-103 ,588.50,
DFID,DFID,09/01/2014,Legal costs ,West and Southern Africa ,TREASURY SOLICITORS CASH ACC ,114050-101 ,590.40,
DFID,DFID,09/01/2014,Facilities Management payments ,East and Central Africa ,Dovetail Construction Ltd ,101634-101 ,593.65,
DFID,DFID,09/01/2014,Project delivery costs - supplier services ,Western Asia and Stabilisation Division ,Crown Agents ,203938-101 ,606.00,
DFID,DFID,09/01/2014,Telephone Usage & services ,Western Asia and Stabilisation Division ,Supplier Name withheld ,100011-110 ,613.65,
DFID,DFID,09/01/2014,Contract & Agency Staff ,Human Resources ,MARGARET HODGE RECRUITMENT LTD ,100272-101 ,617.96,
DFID,DFID,09/01/2014,Contract & Agency Staff ,Human Resources ,MARGARET HODGE RECRUITMENT LTD ,100272-101 ,621.40,
DFID,DFID,09/01/2014,Hotels - Accommodation only ,International Finance Division ,Recipient name withheld ,100111-101 ,623.81,
DFID,DFID,09/01/2014,Contract & Agency Staff ,Human Resources ,MARGARET HODGE RECRUITMENT LTD ,100272-101 ,657.38,
DFID,DFID,09/01/2014,Contract & Agency Staff ,Human Resources ,MARGARET HODGE RECRUITMENT LTD ,100272-101 ,657.61,
DFID,DFID,09/01/2014,Contract & Agency Staff ,Human Resources ,MARGARET HODGE RECRUITMENT LTD ,100272-101 ,707.74,
DFID,DFID,09/01/2014,Contract & Agency Staff ,Human Resources ,MARGARET HODGE RECRUITMENT LTD ,100272-101 ,718.68,
DFID,DFID,09/01/2014,Project delivery costs - supplier services ,Middle East & North Africa Division (MENAD) ,Crown Agents ,202486-107 ,720.00,
DFID,DFID,09/01/2014,Contract & Agency Staff ,Human Resources ,MARGARET HODGE RECRUITMENT LTD ,100272-101 ,722.13,
DFID,DFID,09/01/2014,Contract & Agency Staff ,Human Resources ,MARGARET HODGE RECRUITMENT LTD ,100272-101 ,722.13,
DFID,DFID,09/01/2014,Contract & Agency Staff ,Human Resources ,MARGARET HODGE RECRUITMENT LTD ,100272-101 ,736.52,
DFID,DFID,09/01/2014,Hotels - Accommodation only ,Conflict Humanitarian and Security Division ,Recipient name withheld ,202410-101 ,741.50,
DFID,DFID,09/01/2014,Hotels - Accommodation only ,Finance and Corporate Performance Division ,Recipient name withheld ,202438-101 ,751.84,
DFID,DFID,09/01/2014,Contract & Agency Staff ,Human Resources ,MARGARET HODGE RECRUITMENT LTD ,100272-101 ,834.37,
DFID,DFID,09/01/2014,Project delivery costs - supplier services ,Western Asia and Stabilisation Division ,Crown Agents ,202368-103 ,964.70,
DFID,DFID,09/01/2014,Facilities Management payments ,Asia  Caribbean and Overseas Territories ,CB RICHARD ELLIS SOUTH ASIA PVT LTD ,201689-105 ,990.29,
DFID,DFID,09/01/2014,Recruitment costs ,Human Resources ,Hays Specialist Recruitment Ltd ,100270-102 ,"1,080.00",
DFID,DFID,09/01/2014,Project delivery costs - supplier services ,West and Southern Africa ,MARK MCGIVERN ,101610-101 ,"1,100.00",
DFID,DFID,09/01/2014,Contract & Agency Staff ,Finance and Corporate Performance Division ,Hays Specialist Recruitment Ltd ,100201-101 ,"1,106.10",
DFID,DFID,09/01/2014,Contract & Agency Staff ,Finance and Corporate Performance Division ,Hays Specialist Recruitment Ltd ,100201-101 ,"1,106.10",
DFID,DFID,09/01/2014,Aid Programme - Voluntary contributions ,East and Central Africa ,Crown Agents ,202974-108 ,"1,109.01",
DFID,DFID,09/01/2014,Facilities Management payments ,Asia  Caribbean and Overseas Territories ,Firesec India Systems (P) Ltd. ,201689-105 ,"1,201.35",
DFID,DFID,09/01/2014,Training Providers/Facilitation Services ,West and Southern Africa ,Capita  Business Services ,100189-101 ,"1,252.00",
DFID,DFID,09/01/2014,Hotels - Accommodation only ,Conflict Humanitarian and Security Division ,Recipient name withheld ,202410-101 ,"1,283.57",
DFID,DFID,09/01/2014,Project delivery costs - supplier services ,Western Asia and Stabilisation Division ,Crown Agents ,203940-104 ,"1,307.28",
DFID,DFID,09/01/2014,Air fares ,Western Asia and Stabilisation Division ,Recipient name withheld ,101601-110 ,"1,348.61",
DFID,DFID,09/01/2014,Travel - Subsistence ,Policy Division ,William Chilufya ,203184-101 ,"1,389.38",
DFID,DFID,09/01/2014,Project delivery costs - supplier services ,West and Southern Africa ,Crown Agents ,113961-108 ,"1,457.51",
DFID,DFID,09/01/2014,Project delivery costs - supplier services ,Western Asia and Stabilisation Division ,Crown Agents ,203938-101 ,"1,458.40",
DFID,DFID,09/01/2014,Training - Course Fees ,Research and Evidence Division ,Recipient name withheld ,202392-103 ,"1,500.00",
DFID,DFID,09/01/2014,Project delivery costs - supplier services ,East and Central Africa ,Crown Agents ,202891-108 ,"1,526.86",
DFID,DFID,09/01/2014,Project delivery costs - supplier services ,Asia  Caribbean and Overseas Territories ,Centre for Promoting Accountability ,202765-102 ,"1,654.88",
DFID,DFID,09/01/2014,Conferences  Seminars & Meeting/Event Resource ,Research and Evidence Division ,BIS ,202332-103 ,"1,710.00",
DFID,DFID,09/01/2014,Project delivery costs - supplier services ,Western Asia and Stabilisation Division ,Crown Agents ,203939-108 ,"1,764.25",
DFID,DFID,09/01/2014,Project delivery costs - supplier services ,Western Asia and Stabilisation Division ,Crown Agents ,203938-103 ,"1,837.78",
DFID,DFID,09/01/2014,Project delivery costs - supplier services ,East and Central Africa ,Crown Agents ,114318-105 ,"1,842.81",
DFID,DFID,09/01/2014,Telephone Usage & services ,Western Asia and Stabilisation Division ,Supplier Name withheld ,101601-110 ,"1,963.69",
DFID,DFID,09/01/2014,Conferences  Seminars & Meeting/Event Resource ,Research and Evidence Division ,BIS ,202332-103 ,"2,290.00",
DFID,DFID,09/01/2014,Facilities Management payments ,Asia  Caribbean and Overseas Territories ,SSD ELECTRO-MECH PRIVATE LIMITED ,201689-105 ,"2,341.89",
DFID,DFID,09/01/2014,Office Equipment - Purchases ,East and Central Africa ,IPA-International Procurement Agency (BV) ,202586-101 ,"2,500.32",
DFID,DFID,09/01/2014,Project delivery costs - supplier services ,Western Asia and Stabilisation Division ,Crown Agents ,203938-101 ,"2,504.89",
DFID,DFID,09/01/2014,Repairs  Maint  Alter - Property & Constrct. Services ,East and Central Africa ,DMS AFRICA ,202586-101 ,"2,506.70",
DFID,DFID,09/01/2014,Bank Charges/Services ,Finance and Corporate Performance Division ,Crown Agents ,100008-101 ,"2,528.50",
DFID,DFID,09/01/2014,Office Equipment - Purchases ,Group Operations ,Sitelink Communications Ltd ,203716-101 ,"2,641.20",
DFID,DFID,09/01/2014,Project delivery costs - supplier services ,East and Central Africa ,Crown Agents ,203466-103 ,"2,733.05",
DFID,DFID,09/01/2014,Project delivery costs - supplier services ,Western Asia and Stabilisation Division ,Crown Agents ,203938-101 ,"2,760.70",
DFID,DFID,09/01/2014,Project delivery costs - supplier services ,Conflict Humanitarian and Security Division ,Althea Rivas ,203244-104 ,"2,845.80",
DFID,DFID,09/01/2014,Conferences  Seminars & Meeting/Event Resource ,Research and Evidence Division ,BIS ,202332-103 ,"2,850.00",
DFID,DFID,09/01/2014,Project delivery costs - supplier services ,East and Central Africa ,Paulina Mrosso ,203213-103 ,"2,947.62",
DFID,DFID,09/01/2014,Office Equipment - Purchases ,East and Central Africa ,IPA-International Procurement Agency (BV) ,202594-101 ,"2,965.54",
DFID,DFID,09/01/2014,Repairs  Maint  Alter - Property & Constrct. Services ,East and Central Africa ,DMS AFRICA ,202594-101 ,"3,000.00",
DFID,DFID,09/01/2014,Aid Programme - Humanitarian Material Relief Assistance and Services ,Middle East & North Africa Division (MENAD) ,Crown Agents ,204007-103 ,"3,006.57",
DFID,DFID,09/01/2014,Project delivery costs - supplier services ,Asia  Caribbean and Overseas Territories ,ERM India Private Limited ,107955-101 ,"3,175.33",
DFID,DFID,09/01/2014,Project delivery costs - supplier services ,Western Asia and Stabilisation Division ,Crown Agents ,203940-104 ,"3,422.76",
DFID,DFID,09/01/2014,Contract & Agency Staff ,Finance and Corporate Performance Division ,HUDSON GLOBAL RESOURCES LTD ,100201-101 ,"3,498.28",
DFID,DFID,09/01/2014,Project delivery costs - supplier services ,Western Asia and Stabilisation Division ,Crown Agents ,203938-103 ,"3,631.49",
DFID,DFID,09/01/2014,Conferences  Seminars & Meeting/Event Resource ,Research and Evidence Division ,BIS ,202332-103 ,"3,640.00",
DFID,DFID,09/01/2014,Project delivery costs - supplier services ,Policy Division ,PRICEWATERHOUSECOOPERS ,114370-104 ,"3,873.46",
DFID,DFID,09/01/2014,DFID Purchased Relief Supplies ,Asia  Caribbean and Overseas Territories ,Crown Agents ,203400-109 ,"4,621.96",
DFID,DFID,09/01/2014,Project delivery costs - supplier services ,Middle East & North Africa Division (MENAD) ,Crown Agents ,202486-103 ,"4,687.47",
DFID,DFID,09/01/2014,Project delivery costs - supplier services ,Research and Evidence Division ,PRICEWATERHOUSECOOPERS ,200822-101 ,"4,894.10",
DFID,DFID,09/01/2014,Project delivery costs - supplier services ,West and Southern Africa ,SOCIAL DEVELOPMENT DIRECT LTD ,202370-108 ,"4,978.80",
DFID,DFID,09/01/2014,Project delivery costs - supplier services ,East and Central Africa ,Crown Agents ,202891-108 ,"6,260.00",
DFID,DFID,09/01/2014,Training - Course Fees ,East and Central Africa ,Capita  Business Services ,202586-101 ,"6,463.41",
DFID,DFID,09/01/2014,Contract & Agency Staff ,Finance and Corporate Performance Division ,HUDSON GLOBAL RESOURCES LTD ,100201-101 ,"7,344.48",
DFID,DFID,09/01/2014,Project delivery costs - supplier services ,West and Southern Africa ,Crown Agents ,100153-101 ,"7,741.22",
DFID,DFID,09/01/2014,Project delivery costs - supplier services ,East and Central Africa ,Deveaux International Governance Consultants Inc. ,203466-103 ,"8,000.00",
DFID,DFID,09/01/2014,Project delivery costs - supplier services ,East and Central Africa ,Crown Agents ,203775-107 ,"8,165.00",
DFID,DFID,09/01/2014,Project delivery costs - supplier services ,Conflict Humanitarian and Security Division ,Crown Agents ,203249-103 ,"8,250.00",
DFID,DFID,09/01/2014,Project delivery costs - supplier services ,Western Asia and Stabilisation Division ,Crown Agents ,201846-101 ,"8,279.53",
DFID,DFID,09/01/2014,Office Equipment - Purchases ,West and Southern Africa ,Genet and Partners ,100215-101 ,"8,673.36",
DFID,DFID,09/01/2014,Aid Programme - Humanitarian Material Relief Assistance and Services ,Conflict Humanitarian and Security Division ,Crown Agents ,204351-101 ,"10,099.20",
DFID,DFID,09/01/2014,Project delivery costs - supplier services ,Policy Division ,OXFORD POLICY MANAGEMENT ,203368-102 ,"11,232.00",
DFID,DFID,09/01/2014,Project delivery costs - supplier services ,East and Central Africa ,HTSPE LTD ,204258-101 ,"11,630.90",
DFID,DFID,09/01/2014,Project delivery costs - supplier services ,Western Asia and Stabilisation Division ,Crown Agents ,203940-101 ,"12,120.00",
DFID,DFID,09/01/2014,Facilities Management payments ,Asia  Caribbean and Overseas Territories ,CB RICHARD ELLIS SOUTH ASIA PVT LTD ,201689-105 ,"12,377.61",
DFID,DFID,09/01/2014,Project delivery costs - supplier services ,Joint Trade Policy Division ,Crown Agents ,202089-101 ,"14,016.52",
DFID,DFID,09/01/2014,Aid Programme - Humanitarian Material Relief Assistance and Services ,Conflict Humanitarian and Security Division ,Crown Agents ,204351-101 ,"14,145.60",
DFID,DFID,09/01/2014,DFID Purchased Relief Supplies ,Asia  Caribbean and Overseas Territories ,Crown Agents ,203400-109 ,"14,353.31",
DFID,DFID,09/01/2014,Recruitment costs ,Human Resources ,Syme Drummond Ltd ,100268-101 ,"14,582.16",
DFID,DFID,09/01/2014,Repairs  Maint  Alter - Property & Constrct. Services ,East and Central Africa ,DMS AFRICA ,202586-101 ,"14,996.24",
DFID,DFID,09/01/2014,Repairs  Maint  Alter - Property & Constrct. Services ,East and Central Africa ,DMS AFRICA ,202594-101 ,"15,000.00",
DFID,DFID,09/01/2014,Project delivery costs - supplier services ,Asia  Caribbean and Overseas Territories ,Crown Agents ,202433-103 ,"15,177.60",
DFID,DFID,09/01/2014,Project delivery costs - supplier services ,International Finance Division ,THE SPRINGFIELD CENTRE ,114178-101 ,"15,339.44",
DFID,DFID,09/01/2014,Project delivery costs - supplier services ,Western Asia and Stabilisation Division ,Crown Agents ,203940-101 ,"15,453.00",
DFID,DFID,09/01/2014,Project delivery costs - supplier services ,East and Central Africa ,REPIM ,113303-115 ,"17,438.51",
DFID,DFID,09/01/2014,Project delivery costs - supplier services ,West and Southern Africa ,Michael Fuchs ,200681-101 ,"18,457.16",
DFID,DFID,09/01/2014,Project delivery costs - supplier services ,East and Central Africa ,Crown Agents ,200239-113 ,"18,630.00",
DFID,DFID,09/01/2014,Project delivery costs - supplier services ,Asia  Caribbean and Overseas Territories ,TURNER & TOWNSEND ,100114-104 ,"18,675.88",
DFID,DFID,09/01/2014,Aid Programme - Humanitarian Material Relief Assistance and Services ,Middle East & North Africa Division (MENAD) ,Crown Agents ,204007-102 ,"19,183.07",
DFID,DFID,09/01/2014,Project delivery costs - supplier services ,International Finance Division ,THE SPRINGFIELD CENTRE ,114178-101 ,"19,467.92",
DFID,DFID,09/01/2014,DFID Purchased Relief Supplies ,West and Southern Africa ,Crown Agents ,114206-102 ,"19,710.82",
DFID,DFID,09/01/2014,Training Providers/Facilitation Services ,West and Southern Africa ,Capita Resourcing Ltd ,101622-106 ,"19,848.82",
DFID,DFID,09/01/2014,DFID Purchased Relief Supplies ,Asia  Caribbean and Overseas Territories ,Crown Agents ,203400-109 ,"22,336.85",
DFID,DFID,09/01/2014,Project delivery costs - supplier services ,Western Asia and Stabilisation Division ,Crown Agents ,203940-104 ,"27,323.47",
DFID,DFID,09/01/2014,Secure Staff Accommodation ,East and Central Africa ,Supplier Name withheld ,101634-101 ,"28,026.18",Secure Staff Accommodation - DFID Tanzania
DFID,DFID,09/01/2014,Project delivery costs - supplier services ,Policy Division ,KPMG LLP ,202647-101 ,"29,131.24",
DFID,DFID,09/01/2014,Aid Programme - Humanitarian Material Relief Assistance and Services ,Middle East & North Africa Division (MENAD) ,Crown Agents ,204007-103 ,"29,271.23",
DFID,DFID,09/01/2014,Project delivery costs - supplier services ,Conflict Humanitarian and Security Division ,Crown Agents ,203249-103 ,"29,597.66",
DFID,DFID,09/01/2014,Project delivery costs - supplier services ,International Finance Division ,OXFORD POLICY MANAGEMENT ,200634-105 ,"32,304.00",
DFID,DFID,09/01/2014,Project delivery costs - supplier services ,Asia  Caribbean and Overseas Territories ,Crown Agents ,203400-109 ,"33,149.17",
DFID,DFID,09/01/2014,Project delivery costs - supplier services ,West and Southern Africa ,OXFORD POLICY MANAGEMENT ,104223-101 ,"33,836.80",
DFID,DFID,09/01/2014,Project delivery costs - supplier services ,Asia  Caribbean and Overseas Territories ,DELOITTE TOUCHE TOHMATSU INDIA PRIVA ,203224-101 ,"34,477.76",
DFID,DFID,09/01/2014,Project delivery costs - supplier services ,Asia  Caribbean and Overseas Territories ,Intellectual Capital Advisory Services Private Limited ,202927-101 ,"35,214.18",
DFID,DFID,09/01/2014,Secure Staff Accommodation ,East and Central Africa ,Supplier Name withheld ,101634-101 ,"38,493.91",Secure Staff Accommodation - DFID Tanzania
DFID,DFID,09/01/2014,Project delivery costs - supplier services ,Western Asia and Stabilisation Division ,Crown Agents ,203940-104 ,"41,037.34",
DFID,DFID,09/01/2014,Project delivery costs - supplier services ,Research and Evidence Division ,Crown Agents ,114010-101 ,"42,852.92",
DFID,DFID,09/01/2014,Aid Programme - Humanitarian Material Relief Assistance and Services ,Middle East & North Africa Division (MENAD) ,Crown Agents ,204007-102 ,"48,778.80",
DFID,DFID,09/01/2014,Project delivery costs - supplier services ,Asia  Caribbean and Overseas Territories ,TURNER & TOWNSEND ,202433-108 ,"49,429.56",
DFID,DFID,09/01/2014,Project delivery costs - supplier services ,West and Southern Africa ,Crown Agents ,104223-102 ,"50,118.75",
DFID,DFID,09/01/2014,Project delivery costs - supplier services ,Policy Division , Overseas Development Institute ,202948-111 ,"52,930.39",
DFID,DFID,09/01/2014,Project delivery costs - supplier services ,Policy Division ,ITAD LTD ,201724-134 ,"53,935.00",
DFID,DFID,09/01/2014,Project delivery costs - supplier services ,International Finance Division ,PRICEWATERHOUSECOOPERS ,202939-106 ,"58,783.55",
DFID,DFID,09/01/2014,Research & Development costs ,Research and Evidence Division ,Utrecht University - Physical Geography ,202125-106 ,"65,000.00",
DFID,DFID,09/01/2014,Project delivery costs - supplier services ,Policy Division ,KPMG Development Services ,114143-101 ,"67,123.78",
DFID,DFID,09/01/2014,Aid Programme - Accountable Grant Payments ,East and Central Africa ,CRANFIELD UNIVERSITY ,203510-101 ,"79,257.00",
DFID,DFID,09/01/2014,Project delivery costs - supplier services ,Communications Division ,Pearson ,201469-103 ,"87,759.00",
DFID,DFID,09/01/2014,DFID Purchased Relief Supplies ,West and Southern Africa ,CHARLES KENDALL & PARTNERS LIMITED (PROCUREMENT) ,202214-106 ,"119,350.66",
DFID,DFID,09/01/2014,Educational Supplies/Aids ,Asia  Caribbean and Overseas Territories ,Crown Agents ,107480-102 ,"123,665.30",
DFID,DFID,09/01/2014,Project delivery costs - supplier services ,West and Southern Africa ,HEALTH PARTNERS INTERNATIONAL ,104227-102 ,"139,673.52",
DFID,DFID,09/01/2014,Project delivery costs - supplier services ,Western Asia and Stabilisation Division ,OXFORD POLICY MANAGEMENT ,202378-102 ,"142,598.00",
DFID,DFID,09/01/2014,Project delivery costs - supplier services ,Communications Division ,Pearson ,201469-103 ,"148,144.00",
DFID,DFID,09/01/2014,Aid Programme - Humanitarian Material Relief Assistance and Services ,Conflict Humanitarian and Security Division ,Crown Agents ,204351-101 ,"209,571.42",
DFID,DFID,09/01/2014,Project delivery costs - supplier services ,Joint Trade Policy Division ,Crown Agents ,202089-102 ,"211,415.32",
DFID,DFID,09/01/2014,DFID Purchased Relief Supplies ,Western Asia and Stabilisation Division ,Crown Agents ,201846-101 ,"236,557.95",
DFID,DFID,09/01/2014,Project delivery costs - supplier services ,East and Central Africa ,Crown Agents ,200221-105 ,"265,064.30",
DFID,DFID,09/01/2014,Research & Development costs ,Research and Evidence Division ,Crown Agents Bank ,114010-102 ,"287,382.68",
DFID,DFID,09/01/2014,Aid Programme - Trust Funds contributions ,Finance and Corporate Performance Division ,UNDP CONTRIBUTIONS GBP ,204296-104 ,"310,000.00",
DFID,DFID,09/01/2014,Project delivery costs - supplier services ,Research and Evidence Division ,PRICEWATERHOUSECOOPERS ,200822-101 ,"334,186.32",
DFID,DFID,09/01/2014,Project delivery costs - supplier services ,West and Southern Africa ,DAI Europe ,201857-102 ,"399,110.11",
DFID,DFID,09/01/2014,Aid Programme - Other Financial Aid to Government ,West and Southern Africa ,Zambia Public Procurement Authority ,201618-101 ,"1,005,633.60",
DFID,DFID,09/01/2014,DFID Purchased Relief Supplies ,West and Southern Africa ,Crown Agents ,114206-102 ,"1,089,326.37",
DFID,DFID,09/01/2014,DFID Purchased Relief Supplies ,West and Southern Africa ,Crown Agents ,104223-102 ,"2,029,975.18",
DFID,DFID,10/01/2014,Hotels - Accommodation only ,Asia  Caribbean and Overseas Territories ,Recipient name withheld ,202403-101 ,518.16,
DFID,DFID,10/01/2014,Water charges ,East and Central Africa ,Aqua Cool Limited (Tsh) ,100230-101 ,545.48,
DFID,DFID,10/01/2014,Data network- remote working ,West and Southern Africa ,Broadband Digital Solutions (BSD) ,101618-101 ,550.17,
DFID,DFID,10/01/2014,Hotels - Accommodation only ,Middle East & North Africa Division (MENAD) ,Recipient name withheld ,101619-101 ,589.76,
DFID,DFID,10/01/2014,Repairs  Maint  Alter - Property & Constrct. Services ,West and Southern Africa ,GreyStone Park Electrical ,101638-103 ,625.15,
DFID,DFID,10/01/2014,Hotels - Accommodation only ,International Finance Division ,Recipient name withheld ,202259-101 ,660.75,
DFID,DFID,10/01/2014,Hotels - Accommodation only ,International Finance Division ,Recipient name withheld ,202259-101 ,662.88,
DFID,DFID,10/01/2014,Training - Course Fees ,Research and Evidence Division ,EML Learning Ltd. ,202392-105 ,690.00,
DFID,DFID,10/01/2014,Project delivery costs - supplier services ,Asia  Caribbean and Overseas Territories ,SPC MANAGEMENT SERVICES PRIVATE LIMI ,114177-101 ,698.61,
DFID,DFID,10/01/2014,Contract & Agency Staff ,Finance and Corporate Performance Division ,MICHAEL PAGE INTERNATIONAL RECRUITMENT LIMITED ,100201-101 ,698.78,
DFID,DFID,10/01/2014,Contract & Agency Staff ,Finance and Corporate Performance Division ,Hays Specialist Recruitment Ltd ,100201-101 ,699.30,
DFID,DFID,10/01/2014,Contract & Agency Staff ,Finance and Corporate Performance Division ,Hays Specialist Recruitment Ltd ,100201-101 ,699.30,
DFID,DFID,10/01/2014,Training - Course Fees ,Research and Evidence Division ,UNIVERSITY OF SOUTHAMPTON ,100039-114 ,700.00,
DFID,DFID,10/01/2014,Contract & Agency Staff ,International Finance Division ,Hays Specialist Recruitment Ltd ,100120-101 ,705.12,
DFID,DFID,10/01/2014,Furniture & Fittings ,West and Southern Africa ,Dalmann - Hardwood Furniture Mozambi ,100149-101 ,714.26,
DFID,DFID,10/01/2014,Office Supplies ,Finance and Corporate Performance Division ,Williams Lea ,100182-101 ,776.69,
DFID,DFID,10/01/2014,Hotels - Accommodation only ,West and Southern Africa ,Hotel Cardoso S A R L ,202462-104 ,832.08,
DFID,DFID,10/01/2014,Vehicle Repairs & Maintenance ,West and Southern Africa ,Countrywide Car Hire (2007) Limited ,100144-101 ,840.53,
DFID,DFID,10/01/2014,Vehicle Repairs & Maintenance ,East and Central Africa ,British High Commission(Tsh) ,100230-101 ,868.21,
DFID,DFID,10/01/2014,Facilities Management payments ,East and Central Africa ,British High Commission(Tsh) ,101634-101 ,903.87,
DFID,DFID,10/01/2014,Vehicle Repairs & Maintenance ,West and Southern Africa ,TOYOTA MALAWI ,101618-101 ,915.86,
DFID,DFID,10/01/2014,Contract & Agency Staff ,International Finance Division ,Hays Specialist Recruitment Ltd ,100120-101 ,"1,003.44",
DFID,DFID,10/01/2014,Recruitment costs ,Human Resources ,Hays Specialist Recruitment Ltd ,100270-102 ,"1,080.00",
DFID,DFID,10/01/2014,Contract Catering Services ,Asia  Caribbean and Overseas Territories ,THE GOURMET FACTORY ,201689-105 ,"1,115.43",
DFID,DFID,10/01/2014,Data Network - land lines ,Business Solutions Division Level ,COLT TELECOMMUNICATIONS ,200002-124 ,"1,125.00",
DFID,DFID,10/01/2014,Contract & Agency Staff ,Finance and Corporate Performance Division ,MICHAEL PAGE INTERNATIONAL RECRUITMENT LIMITED ,100201-101 ,"1,161.30",
DFID,DFID,10/01/2014,Project delivery costs - supplier services ,Western Asia and Stabilisation Division ,Crown Agents ,204308-105 ,"1,508.04",
DFID,DFID,10/01/2014,Telephone Usage & services ,East and Central Africa ,VODACOM TANZANIA LTD ,101634-101 ,"1,537.37",
DFID,DFID,10/01/2014,Contract & Agency Staff ,Finance and Corporate Performance Division ,ESOTERIC DATA SOLUTIONS LTD ,202836-101 ,"1,620.00",
DFID,DFID,10/01/2014,Project delivery costs - supplier services ,West and Southern Africa ,SAANA CONSULTING LTD ,114050-101 ,"1,782.84",
DFID,DFID,10/01/2014,Office Supplies ,East and Central Africa ,British High Commission(Tsh) ,100230-101 ,"1,794.98",
DFID,DFID,10/01/2014,Oil - Other Utilities ,East and Central Africa ,British High Commission(Tsh) ,101634-101 ,"1,826.91",
DFID,DFID,10/01/2014,Data network- remote working ,West and Southern Africa ,Skyband Corporation LTD ,101618-101 ,"1,913.83",
DFID,DFID,10/01/2014,Contract & Agency Staff ,International Finance Division ,Hays Specialist Recruitment Ltd ,100120-101 ,"2,061.12",
DFID,DFID,10/01/2014,Telephone Usage & services ,East and Central Africa ,VODACOM TANZANIA LTD ,100230-101 ,"2,123.94",
DFID,DFID,10/01/2014,Project delivery costs - supplier services ,Asia  Caribbean and Overseas Territories ,Crown Agents ,107548-101 ,"2,823.20",
DFID,DFID,10/01/2014,Electricity ,East and Central Africa ,Tanzania Electric supply company Ltd ,101634-101 ,"2,879.62",
DFID,DFID,10/01/2014,FCO shared service charges ,East and Central Africa ,British High Commission(Tsh) ,101634-101 ,"2,970.87",
DFID,DFID,10/01/2014,Project delivery costs - supplier services ,Asia  Caribbean and Overseas Territories ,Meghraj Capital Advisors Private Limited ,114320-119 ,"2,973.39",
DFID,DFID,10/01/2014,Project delivery costs - supplier services ,Business Solutions Division Level ,SAPPHIRE TECHNOLOGIES LTD ,200003-165 ,"3,564.00",
DFID,DFID,10/01/2014,Storage & Distribution costs ,West and Southern Africa ,PICKFORDS LTD ,101622-106 ,"4,625.24",
DFID,DFID,10/01/2014,Contract & Agency Staff ,Finance and Corporate Performance Division ,HUDSON GLOBAL RESOURCES LTD ,100201-101 ,"5,255.09",
DFID,DFID,10/01/2014,Contract & Agency Staff ,Finance and Corporate Performance Division ,HUDSON GLOBAL RESOURCES LTD ,100201-101 ,"7,040.40",
DFID,DFID,10/01/2014,Secure Staff Accommodation ,East and Central Africa ,Supplier Name withheld ,100082-101 ,"7,534.07",
DFID,DFID,10/01/2014,Project delivery costs - supplier services ,East and Central Africa ,Simon L White ,101634-101 ,"8,425.31",
DFID,DFID,10/01/2014,Telephone Usage & services ,Business Solutions Division Level ,VODAFONE LIMITED ,200002-185 ,"8,996.69",
DFID,DFID,10/01/2014,Telephone Usage & services ,Business Solutions Division Level ,VODAFONE LIMITED ,203329-103 ,"8,996.69",
DFID,DFID,10/01/2014,Project delivery costs - supplier services ,Western Asia and Stabilisation Division ,Supplier Name withheld ,201023-114 ,"15,041.00",
DFID,DFID,10/01/2014,Project delivery costs - supplier services ,Asia  Caribbean and Overseas Territories ,GHK INTERNATIONAL LTD ,203893-102 ,"16,562.50",
DFID,DFID,10/01/2014,Project delivery costs - supplier services ,Western Asia and Stabilisation Division ,Supplier Name withheld ,201023-114 ,"16,686.50",
DFID,DFID,10/01/2014,Project delivery costs - supplier services ,East and Central Africa ,LTS International Ltd. ,201866-106 ,"20,095.09",
DFID,DFID,10/01/2014,Project delivery costs - supplier services ,West and Southern Africa ,SAANA CONSULTING LTD ,114050-101 ,"26,828.40",
DFID,DFID,10/01/2014,Training Providers/Facilitation Services ,Policy Division ,HOME OFFICE ,100191-101 ,"30,000.00",DFID Contribution to Civil Service Reform Agenda
DFID,DFID,10/01/2014,Project delivery costs - supplier services ,Asia  Caribbean and Overseas Territories ,HTSPE LTD ,114058-101 ,"38,585.40",
DFID,DFID,10/01/2014,Computer software maintenance ,Business Solutions Division Level ,ORACLE CORPORATION UK LIMITED ,200002-112 ,"40,344.31",Annual Oracle Support & Maintenance contract for Electronic Document Records Management System November 2013- December 2014 
DFID,DFID,10/01/2014,Project delivery costs - supplier services ,Asia  Caribbean and Overseas Territories ,OXFORD POLICY MANAGEMENT ,202123-105 ,"50,206.12",
DFID,DFID,10/01/2014,Aid Programme - Accountable Grant Payments ,West and Southern Africa ,WAR CHILD UK ,203823-103 ,"57,013.46",
DFID,DFID,10/01/2014,Aid Programme - Voluntary contributions ,East and Central Africa ,UNDP CONTRIBUTIONS GBP ,203961-105 ,"61,524.00",
DFID,DFID,10/01/2014,Project delivery costs - supplier services ,Policy Division ,PATH ,202674-101 ,"62,999.05",
DFID,DFID,10/01/2014,Project delivery costs - supplier services ,East and Central Africa ,DAI Europe ,202596-105 ,"65,186.20",
DFID,DFID,10/01/2014,Project delivery costs - supplier services ,Policy Division ,OXFORD POLICY MANAGEMENT ,203324-101 ,"66,574.20",
DFID,DFID,10/01/2014,Aid Programme - Challenge Fund payments ,Policy Division ,Triple Line Crown Agents JV. ,201242-101 ,"81,442.20",
DFID,DFID,10/01/2014,Project delivery costs - supplier services ,Western Asia and Stabilisation Division ,Crown Agents ,100186-101 ,"92,105.50",
DFID,DFID,10/01/2014,Data Network - land lines ,Business Solutions Division Level ,VODAFONE LIMITED ,203329-103 ,"97,108.85",ECHO Overseas Voice Rentals - November 2013
DFID,DFID,10/01/2014,Data Network - land lines ,Business Solutions Division Level ,VODAFONE LIMITED ,200002-185 ,"97,108.86",ECHO Overseas Voice Rentals - November 2013
DFID,DFID,10/01/2014,Project delivery costs - supplier services ,Policy Division ,OXFORD POLICY MANAGEMENT ,203324-101 ,"106,519.20",
DFID,DFID,10/01/2014,Project delivery costs - supplier services ,West and Southern Africa ,Crown Agents Bank ,202183-101 ,"135,915.59",
DFID,DFID,10/01/2014,Project delivery costs - supplier services ,West and Southern Africa ,HEALTH PARTNERS INTERNATIONAL ,202694-101 ,"139,356.12",
DFID,DFID,10/01/2014,Project delivery costs - supplier services ,Research and Evidence Division ,INASP ,204155-101 ,"177,076.25",
DFID,DFID,10/01/2014,Project delivery costs - supplier services ,East and Central Africa ,Deloitte Consulting Pvt Ltd Co. ,202913-101 ,"197,465.88",
DFID,DFID,10/01/2014,Project delivery costs - supplier services ,West and Southern Africa ,Crown Agents ,104025-101 ,"205,670.40",
DFID,DFID,10/01/2014,Property rates ,Group Operations ,SOUTH LANARKSHIRE COUNCIL ,100106-101 ,"224,667.00",Property rates for DFID HQ (Abercrombie House) 2013/14 (1st October - 31st March 2013) 
DFID,DFID,10/01/2014,Aid Programme - Accountable Grant Payments ,West and Southern Africa ,AgDevCo ,201862-103 ,"500,000.00",
DFID,DFID,10/01/2014,Aid Programme - Partnership Programme Arrangements ,Policy Division ,WORLD VISION UNITED KINGDOM ,202642-101 ,"984,441.25",
DFID,DFID,10/01/2014,Aid Programme - Trust Funds contributions ,Policy Division ,United Nations Environment Programme (UNEP) ,201733-113 ,"2,000,000.00",
DFID,DFID,10/01/2014,Aid Programme - Trust Funds contributions ,West and Southern Africa ,IBRD HSBC T ,204113-101 ,"2,500,000.00",
DFID,DFID,10/01/2014,Aid Programme - Accountable Grant Payments ,Policy Division ,BBC Media Action ,202629-101 ,"3,200,000.00",
DFID,DFID,10/01/2014,Aid Programme - Core contributions ,Western Asia and Stabilisation Division ,Supplier Name withheld ,203629-102 ,"5,000,000.00",
DFID,DFID,10/01/2014,Aid Programme - Poverty Reduction Budget Support ,West and Southern Africa ,Ministry of Education (Zambia) Financial Support for the 2013 Education Sector Budget Support ,203001-101 ,"6,000,000.00",
DFID,DFID,10/01/2014,Aid Programme - Trust Funds contributions ,Policy Division ,IBRD HSBC T ,202956-101 ,"6,600,000.00",
DFID,DFID,10/01/2014,Encashment of Promissory Notes ,International Finance Division ,INTERNATIONAL DEVELOPMENT ASSOCIATION,200018-103 ,"19,670,000.00",
DFID,DFID,10/01/2014,Aid Programme - Voluntary contributions ,International Relations Division ,UNFPA ,203855-102 ,"25,000,000.00",
DFID,DFID,10/01/2014,Aid Programme - Voluntary contributions ,International Relations Division ,UNFPA ,203855-101 ,"36,400,000.00",
DFID,DFID,10/01/2014,Encashment of Promissory Notes ,International Finance Division ,INTERNATIONAL DEVELOPMENT ASSOCIATION,200269-105 ,"60,820,000.00",
DFID,DFID,10/01/2014,Encashment of Promissory Notes ,International Finance Division ,INTERNATIONAL DEVELOPMENT ASSOCIATION,202969-103 ,"118,547,500.00",
DFID,DFID,12/01/2014,Storage & Distribution costs ,Western Asia and Stabilisation Division ,Recipient name withheld ,101601-110 ,"1,357.94",
DFID,DFID,12/01/2014,Project delivery costs - supplier services ,Asia  Caribbean and Overseas Territories ,HTSPE LTD ,203035-102 ,"1,577.53",
DFID,DFID,12/01/2014,Project delivery costs - supplier services ,Middle East & North Africa Division (MENAD) ,Crown Agents ,202486-103 ,"21,139.20",
DFID,DFID,12/01/2014,Project delivery costs - supplier services ,Asia  Caribbean and Overseas Territories ,OXFORD POLICY MANAGEMENT ,202123-106 ,"22,056.68",
DFID,DFID,12/01/2014,Project delivery costs - supplier services ,Asia  Caribbean and Overseas Territories ,FOREIGN AND COMMONWEALTH OFFICE (FCO) ,100151-102 ,"133,897.84",
DFID,DFID,12/01/2014,Project delivery costs - supplier services ,West and Southern Africa ,ADAM SMITH INTERNATIONAL  LTD ,202539-106 ,"632,299.71",
DFID,DFID,13/01/2014,Mobile telephones & accessories ,East and Central Africa ,MTN RWANDACELL ,101628-101 ,516.08,
DFID,DFID,13/01/2014,Hotels - Accommodation only ,Policy Division ,Recipient name withheld ,100274-107 ,517.22,
DFID,DFID,13/01/2014,Project delivery costs - supplier services ,Western Asia and Stabilisation Division ,Crown Agents ,203939-103 ,541.90,
DFID,DFID,13/01/2014,Repairs  Maint  Alter - Property & Constrct. Services ,East and Central Africa ,Beta Engineering Services PLC ,100082-101 ,597.59,
DFID,DFID,13/01/2014,Conferences  Seminars & Meeting/Event Resource ,Research and Evidence Division ,JOHN BRIGGS ,100039-108 ,617.34,
DFID,DFID,13/01/2014,Hostile Environment Training ,Policy Division ,Pilgrims Group ,202402-105 ,634.14,
DFID,DFID,13/01/2014,Office Equipment - Maintenance ,West and Southern Africa ,Recipient name withheld ,101622-107 ,641.36,
DFID,DFID,13/01/2014,Contract & Agency Staff ,Finance and Corporate Performance Division ,Hays Specialist Recruitment Ltd ,100201-101 ,691.20,
DFID,DFID,13/01/2014,Conference Travel & Subsistence ,East and Central Africa ,SATGURU TRAVEL & TOURS SERVICE ,101628-101 ,742.87,
DFID,DFID,13/01/2014,Telephone Usage & services ,West and Southern Africa ,Vodacom ,100068-101 ,961.06,
DFID,DFID,13/01/2014,Secure Staff Accommodation ,Asia  Caribbean and Overseas Territories ,Supplier Name withheld ,101621-103 ,965.99,
DFID,DFID,13/01/2014,Contract & Agency Staff ,Finance and Corporate Performance Division ,Search Consultancy Ltd ,100201-101 ,997.92,
DFID,DFID,13/01/2014,Hostile Environment Training ,Internal Audit ,Pilgrims Group ,100121-101 ,"1,027.14",
DFID,DFID,13/01/2014,Contract & Agency Staff ,Finance and Corporate Performance Division ,MICHAEL PAGE INTERNATIONAL RECRUITMENT LIMITED ,100201-101 ,"1,161.30",
DFID,DFID,13/01/2014,Water charges ,West and Southern Africa ,Komawara ,101638-103 ,"1,368.07",
DFID,DFID,13/01/2014,Secure Staff Accommodation ,Asia  Caribbean and Overseas Territories ,Supplier Name withheld ,101621-103 ,"1,369.55",
DFID,DFID,13/01/2014,Copywriting and Editorial Services ,Asia  Caribbean and Overseas Territories ,Jessica M. Keralis  MPH ,200581-113 ,"1,460.81",
DFID,DFID,13/01/2014,Secure Staff Accommodation ,Asia  Caribbean and Overseas Territories ,Supplier Name withheld ,101621-103 ,"1,460.86",
DFID,DFID,13/01/2014,Secure Staff Accommodation ,Asia  Caribbean and Overseas Territories ,Supplier Name withheld ,100150-103 ,"1,515.64",
DFID,DFID,13/01/2014,Project delivery costs - supplier services ,East and Central Africa ,IPA-International Procurement Agency (BV) ,200250-116 ,"1,659.50",
DFID,DFID,13/01/2014,Contract & Agency Staff ,Finance and Corporate Performance Division ,Search Consultancy Ltd ,100201-101 ,"1,663.20",
DFID,DFID,13/01/2014,Hotels - Accommodation only ,Western Asia and Stabilisation Division ,FOREIGN AND COMMONWEALTH OFFICE (FCO) ,101624-101 ,"1,688.00",
DFID,DFID,13/01/2014,Telephone Usage & services ,West and Southern Africa ,Vodacom ,101610-101 ,"1,735.15",
DFID,DFID,13/01/2014,Secure Staff Accommodation ,Asia  Caribbean and Overseas Territories ,Supplier Name withheld ,101621-103 ,"1,826.07",
DFID,DFID,13/01/2014,Secure Staff Accommodation ,Asia  Caribbean and Overseas Territories ,Supplier Name withheld ,101621-103 ,"1,826.07",
DFID,DFID,13/01/2014,Facilities Management payments ,East and Central Africa ,JMC Umoja House ,100230-101 ,"1,880.07",
DFID,DFID,13/01/2014,Secure Staff Accommodation ,Asia  Caribbean and Overseas Territories ,Supplier Name withheld ,101621-103 ,"2,099.98",
DFID,DFID,13/01/2014,Data Network - land lines ,Business Solutions Division Level ,VODAFONE LIMITED ,203329-103 ,"2,147.64",
DFID,DFID,13/01/2014,Secure Staff Accommodation ,Asia  Caribbean and Overseas Territories ,Supplier Name withheld ,101621-103 ,"2,191.29",
DFID,DFID,13/01/2014,Secure Staff Accommodation ,Asia  Caribbean and Overseas Territories ,Supplier Name withheld ,101621-103 ,"2,191.29",
DFID,DFID,13/01/2014,Secure Staff Accommodation ,Asia  Caribbean and Overseas Territories ,Supplier Name withheld ,101621-103 ,"2,191.29",
DFID,DFID,13/01/2014,Secure Staff Accommodation ,Asia  Caribbean and Overseas Territories ,Supplier Name withheld ,101621-103 ,"2,191.29",
DFID,DFID,13/01/2014,Storage & Distribution costs ,West and Southern Africa ,PICKFORDS LTD ,101618-101 ,"2,203.97",
DFID,DFID,13/01/2014,Vehicle Petrol & Oil ,West and Southern Africa ,British Embassy Kinshasa (DRC) ,101610-101 ,"2,235.08",
DFID,DFID,13/01/2014,Secure Staff Accommodation ,Asia  Caribbean and Overseas Territories ,Supplier Name withheld ,101621-103 ,"2,282.59",
DFID,DFID,13/01/2014,Aid Programme - Joint programme contribution ,Asia  Caribbean and Overseas Territories ,FOREIGN AND COMMONWEALTH OFFICE (FCO) ,203478-101 ,"2,329.17",
DFID,DFID,13/01/2014,Secure Staff Accommodation ,Asia  Caribbean and Overseas Territories ,Supplier Name withheld ,101621-103 ,"2,373.89",
DFID,DFID,13/01/2014,Project delivery costs - supplier services ,Finance and Corporate Performance Division ,Unit 4 ,204245-101 ,"2,376.00",
DFID,DFID,13/01/2014,Project delivery costs - supplier services ,Communications Division ,Digital My Way ,100154-101 ,"2,437.50",
DFID,DFID,13/01/2014,Secure Staff Accommodation ,Asia  Caribbean and Overseas Territories ,Supplier Name withheld ,101621-103 ,"2,465.20",
DFID,DFID,13/01/2014,Secure Staff Accommodation ,Asia  Caribbean and Overseas Territories ,Supplier Name withheld ,101621-103 ,"2,465.20",
DFID,DFID,13/01/2014,Storage & Distribution costs ,East and Central Africa ,PICKFORDS LTD ,101630-101 ,"2,577.16",
DFID,DFID,13/01/2014,Secure Staff Accommodation ,Asia  Caribbean and Overseas Territories ,Supplier Name withheld ,101621-103 ,"2,739.11",
DFID,DFID,13/01/2014,Contract & Agency Staff ,Business Solutions Division Level ,ALLEGIS GROUP LIMITED ,200001-101 ,"2,808.00",
DFID,DFID,13/01/2014,Secure Staff Accommodation ,Asia  Caribbean and Overseas Territories ,Supplier Name withheld ,101621-103 ,"2,891.28",
DFID,DFID,13/01/2014,Storage & Distribution costs ,Western Asia and Stabilisation Division ,PICKFORDS LTD ,101624-101 ,"2,928.54",
DFID,DFID,13/01/2014,Project delivery costs - supplier services ,Western Asia and Stabilisation Division ,PARTY INGREDIENTS LTD ,203939-103 ,"2,935.44",
DFID,DFID,13/01/2014,DFID Purchased Relief Supplies ,East and Central Africa ,IPA-International Procurement Agency (BV) ,203109-102 ,"2,988.15",
DFID,DFID,13/01/2014,other information and communication technologies ,Business Solutions Division Level ,VODAFONE LIMITED ,200004-121 ,"3,300.00",
DFID,DFID,13/01/2014,Project delivery costs - supplier services ,Finance and Corporate Performance Division ,Unit 4 ,204245-101 ,"3,476.04",
DFID,DFID,13/01/2014,Hotels - Accommodation only ,Western Asia and Stabilisation Division ,FOREIGN AND COMMONWEALTH OFFICE (FCO) ,101624-101 ,"3,923.00",
DFID,DFID,13/01/2014,Repairs  Maint  Alter - Property & Constrct. Services ,Western Asia and Stabilisation Division ,FOREIGN AND COMMONWEALTH OFFICE (FCO) ,101624-101 ,"3,977.68",
DFID,DFID,13/01/2014,Hotels - Accommodation only ,West and Southern Africa ,Capital Hotel ,200469-117 ,"4,447.18",
DFID,DFID,13/01/2014,Storage & Distribution costs ,East and Central Africa ,PICKFORDS LTD ,101625-102 ,"4,534.89",
DFID,DFID,13/01/2014,Aid Programme - Accountable Grant Payments ,Conflict Humanitarian and Security Division ,UK-Med ,202878-102 ,"4,696.33",
DFID,DFID,13/01/2014,other information and communication technologies ,Western Asia and Stabilisation Division ,Supplier Name withheld ,100011-110 ,"4,873.85",
DFID,DFID,13/01/2014,Oil - Other Utilities ,Western Asia and Stabilisation Division ,FOREIGN AND COMMONWEALTH OFFICE (FCO) ,101624-101 ,"5,047.93",
DFID,DFID,13/01/2014,Facilities Management payments ,Asia  Caribbean and Overseas Territories ,John Sanday Associates Pvt. Ltd ,100150-103 ,"5,084.47",
DFID,DFID,13/01/2014,other information and communication technologies ,Business Solutions Division Level ,VODAFONE LIMITED ,200004-121 ,"6,528.00",
DFID,DFID,13/01/2014,Project delivery costs - supplier services ,East and Central Africa ,RSM Tenon Limited ,200250-111 ,"6,619.26",
DFID,DFID,13/01/2014,Data Network - land lines ,Business Solutions Division Level ,VODAFONE LIMITED ,203329-103 ,"7,027.20",
DFID,DFID,13/01/2014,Training Providers/Facilitation Services ,East and Central Africa ,Capita  Business Services ,101635-101 ,"7,148.47",
DFID,DFID,13/01/2014,Facilities Management payments ,East and Central Africa ,JMC Umoja House ,101634-101 ,"7,519.66",
DFID,DFID,13/01/2014,Project delivery costs - supplier services ,West and Southern Africa ,MARK MCGIVERN ,101620-101 ,"7,700.00",
DFID,DFID,13/01/2014,DFID Purchased Relief Supplies ,West and Southern Africa ,CHARLES KENDALL & PARTNERS LIMITED (PROCUREMENT) ,202214-106 ,"8,089.11",
DFID,DFID,13/01/2014,Secure Staff Accommodation ,East and Central Africa ,Supplier Name withheld ,101612-101 ,"9,007.35",
DFID,DFID,13/01/2014,Storage & Distribution costs ,West and Southern Africa ,PICKFORDS LTD ,101610-101 ,"9,791.09",
DFID,DFID,13/01/2014,Storage & Distribution costs ,East and Central Africa ,PICKFORDS LTD ,101616-101 ,"10,308.63",
DFID,DFID,13/01/2014,Project delivery costs - supplier services ,East and Central Africa ,OpenCities Ltd ,202991-104 ,"11,837.72",
DFID,DFID,13/01/2014,Hostile Environment Training ,Conflict Humanitarian and Security Division ,Crown Agents ,100049-101 ,"12,648.00",
DFID,DFID,13/01/2014,Project delivery costs - supplier services ,West and Southern Africa ,RIVER PATH ASSOCIATES ,202643-102 ,"15,837.05",
DFID,DFID,13/01/2014,Project delivery costs - supplier services ,East and Central Africa ,HTSPE LTD ,200221-105 ,"16,097.73",
DFID,DFID,13/01/2014,Project delivery costs - supplier services ,Human Resources ,Healix International Limited (Fees) ,202423-101 ,"17,152.80",
DFID,DFID,13/01/2014,Project delivery costs - supplier services ,Finance and Corporate Performance Division ,ATOS CONSULTING LIMITED ,204296-103 ,"20,276.50",
DFID,DFID,13/01/2014,Project delivery costs - supplier services ,Policy Division , Overseas Development Institute ,202653-101 ,"21,720.00",
DFID,DFID,13/01/2014,Repairs  Maint  Alter - Property & Constrct. Services ,East and Central Africa ,SAFECON Electro Mechanical Works PLC ,101612-101 ,"24,661.13",
DFID,DFID,13/01/2014,Aid Programme - Accountable Grant Payments ,Policy Division ,Triple Line Crown Agents JV ,202035-101 ,"25,825.00",
DFID,DFID,13/01/2014,DFID Purchased Relief Supplies ,West and Southern Africa ,CHARLES KENDALL & PARTNERS LIMITED (PROCUREMENT) ,202214-106 ,"28,722.61",
DFID,DFID,13/01/2014,Subscriptions ,Research and Evidence Division ,Taylor & Francis ,202348-103 ,"29,076.92",Annual subscription (2014) for online access to essential journals covering various DFID related subject areas for use by DFID advisers
DFID,DFID,13/01/2014,Project delivery costs - supplier services ,Policy Division ,IOD PARC ,203493-101 ,"33,510.00",
DFID,DFID,13/01/2014,Project delivery costs - supplier services ,West and Southern Africa ,OXFORD POLICY MANAGEMENT ,103269-101 ,"35,126.02",
DFID,DFID,13/01/2014,other information and communication technologies ,Western Asia and Stabilisation Division ,Supplier Name withheld ,101601-110 ,"35,741.53",Internet Service Charges for Secure Staff Accommodation for period February to July 2014 � DFID Afghanistan 
DFID,DFID,13/01/2014,Project delivery costs - supplier services ,Policy Division ,PRICEWATERHOUSECOOPERS ,202648-101 ,"41,978.32",
DFID,DFID,13/01/2014,Project delivery costs - supplier services ,Asia  Caribbean and Overseas Territories ,VERULAM ASSOCIATES LTD ,200593-112 ,"42,000.00",
DFID,DFID,13/01/2014,Aid Programme - Accountable Grant Payments ,Policy Division ,Triple Line Crown Agents JV ,202035-101 ,"46,633.91",
DFID,DFID,13/01/2014,Project delivery costs - supplier services ,Policy Division ,VIVID ECONOMICS LIMITED ,203134-101 ,"47,030.40",
DFID,DFID,13/01/2014,Project delivery costs - supplier services ,Asia  Caribbean and Overseas Territories ,PRICEWATERHOUSECOOPERS ,203964-101 ,"47,821.21",
DFID,DFID,13/01/2014,Aid Programme - Accountable Grant Payments ,Conflict Humanitarian and Security Division ,CARE INTERNATIONAL ,201898-103 ,"48,472.42",
DFID,DFID,13/01/2014,Project delivery costs - supplier services ,West and Southern Africa ,PRICEWATERHOUSECOOPERS ,203824-104 ,"55,493.33",
DFID,DFID,13/01/2014,Project delivery costs - supplier services ,Policy Division ,PRICEWATERHOUSECOOPERS ,202648-101 ,"57,904.22",
DFID,DFID,13/01/2014,DFID Purchased Relief Supplies ,West and Southern Africa ,IPA-International Procurement Agency (BV) ,203714-103 ,"62,249.84",
DFID,DFID,13/01/2014,Repairs  Maintenance and Alterations - Other Building Costs ,Group Operations ,MITIE Technical Facilities Management Ltd ,100106-101 ,"91,110.72",Essential Building Repairs � DFID HQ Abercrombie House
DFID,DFID,13/01/2014,Project delivery costs - supplier services ,West and Southern Africa ,OPTIONS CONSULTANCY SERVICES LIMITED ,202214-103 ,"93,700.00",
DFID,DFID,13/01/2014,Project delivery costs - supplier services ,East and Central Africa ,BMB  MOTT  MACDONALD ,202511-102 ,"111,394.77",
DFID,DFID,13/01/2014,Property rates ,Group Operations ,CITY OF WESTMINSTER ,203717-101 ,"159,820.00",Property Rates for DFID HQ 22 Whitehall 
DFID,DFID,13/01/2014,Project delivery costs - supplier services ,West and Southern Africa ,HEALTH PARTNERS INTERNATIONAL ,202694-101 ,"181,147.02",
DFID,DFID,13/01/2014,Project delivery costs - supplier services ,Middle East & North Africa Division (MENAD) ,ADAM SMITH INTERNATIONAL  LTD ,203646-103 ,"196,790.00",
DFID,DFID,13/01/2014,Aid Programme - Humanitarian Material Relief Assistance and Services ,Conflict Humanitarian and Security Division ,Pan American Health Organisation ,204395-101 ,"228,000.00",
DFID,DFID,13/01/2014,Fund monies to be managed and dispersed by the supplier ,East and Central Africa ,Crown Agents ,203109-106 ,"327,880.00",
DFID,DFID,13/01/2014,Project delivery costs - supplier services ,East and Central Africa ,BMB  MOTT  MACDONALD ,202511-102 ,"461,083.67",
DFID,DFID,13/01/2014,Project delivery costs - supplier services ,West and Southern Africa ,ADAM SMITH INTERNATIONAL  LTD ,202539-106 ,"496,620.40",
DFID,DFID,13/01/2014,Aid Programme - Voluntary contributions ,Policy Division ,WHO (GENEVA) ,202924-101 ,"500,000.00",
DFID,DFID,13/01/2014,Aid Programme - Voluntary contributions ,Policy Division ,WHO (GENEVA) ,203066-101 ,"595,600.00",
DFID,DFID,13/01/2014,Project delivery costs - supplier services ,Western Asia and Stabilisation Division ,MSI ,202413-104 ,"700,749.00",
DFID,DFID,13/01/2014,Aid Programme - Accountable Grant Payments ,Policy Division ,LIVERPOOL SCHOOL OF TROPICAL MEDICINE ,201177-101 ,"1,175,603.00",
DFID,DFID,14/01/2014,Air fares ,Business Solutions Division Level ,Saimon Overseas Ltd ,200001-101 ,569.66,
DFID,DFID,14/01/2014,Conferences  Seminars & Meeting/Event Resource ,West and Southern Africa ,RedR UK ,100189-101 ,587.92,
DFID,DFID,14/01/2014,Contract & Agency Staff ,Human Resources ,Anderson Knight Ltd ,100270-104 ,597.18,
DFID,DFID,14/01/2014,Contract & Agency Staff ,Human Resources ,Anderson Knight Ltd ,100270-104 ,597.18,
DFID,DFID,14/01/2014,Contract & Agency Staff ,Human Resources ,Anderson Knight Ltd ,100270-104 ,597.18,
DFID,DFID,14/01/2014,Telephone Usage & services ,East and Central Africa ,Ethio Telecom ,100082-101 ,601.12,
DFID,DFID,14/01/2014,Training Providers/Facilitation Services ,International Finance Division ,EML Learning Ltd. ,100120-101 ,700.00,
DFID,DFID,14/01/2014,Contract & Agency Staff ,Finance and Corporate Performance Division ,Anderson Knight Ltd ,200173-103 ,716.62,
DFID,DFID,14/01/2014,Training - Course Fees ,Research and Evidence Division ,Capita  Business Services ,202392-101 ,821.00,
DFID,DFID,14/01/2014,Storage & Distribution costs ,Western Asia and Stabilisation Division ,PICKFORDS LTD ,101624-101 ,844.94,
DFID,DFID,14/01/2014,Hotels - Accommodation only ,Asia  Caribbean and Overseas Territories ,Hotel Himalaya Pvt Ltd ,100084-101 ,849.74,
DFID,DFID,14/01/2014,FCO shared service charges ,Western Asia and Stabilisation Division ,Supplier Name withheld ,101601-110 ,868.00,
DFID,DFID,14/01/2014,Hotels - Accommodation only ,Asia  Caribbean and Overseas Territories ,Recipient name withheld ,201689-102 ,870.65,
DFID,DFID,14/01/2014,Vehicle Repairs & Maintenance ,Asia  Caribbean and Overseas Territories ,Rahimafrooz Distribution Limited ,100025-101 ,910.62,
DFID,DFID,14/01/2014,Vehicle Repairs & Maintenance ,Asia  Caribbean and Overseas Territories ,Rahimafrooz Distribution Limited ,100025-101 ,910.62,
DFID,DFID,14/01/2014,Mobile telephones & accessories ,West and Southern Africa ,MCell ,101620-101 ,949.35,
DFID,DFID,14/01/2014,Data Network -Satellite ,East and Central Africa ,Ethio Telecom ,202913-104 ,"1,015.42",
DFID,DFID,14/01/2014,Project delivery costs - supplier services ,West and Southern Africa ,MARK MCGIVERN ,100096-101 ,"1,100.00",
DFID,DFID,14/01/2014,Repairs  Maintenance and Alterations - Other Building Costs ,West and Southern Africa ,IT Centre ,100144-101 ,"1,136.10",
DFID,DFID,14/01/2014,Repairs  Maintenance and Alterations - Other Building Costs ,West and Southern Africa ,IT Centre ,101618-101 ,"1,136.10",
DFID,DFID,14/01/2014,Project delivery costs - supplier services ,Human Resources ,Saxton Bampfylde ,100269-128 ,"1,770.00",
DFID,DFID,14/01/2014,Training - Travel & Subsistence ,West and Southern Africa ,Ulendo Safaris ,101618-101 ,"1,820.34",
DFID,DFID,14/01/2014,Aid Programme - Accountable Grant Payments ,International Finance Division ,The Partnering Initiative ,203449-101 ,"1,950.00",
DFID,DFID,14/01/2014,Project delivery costs - supplier services ,East and Central Africa ,SERVICE FOR GENERATIONS INTERNATIONAL ,101635-101 ,"2,167.87",
DFID,DFID,14/01/2014,Data Network - land lines ,Business Solutions Division Level ,VODAFONE LIMITED ,200002-185 ,"2,327.50",
DFID,DFID,14/01/2014,Data Network - land lines ,Business Solutions Division Level ,VODAFONE LIMITED ,203329-103 ,"2,327.50",
DFID,DFID,14/01/2014,Project delivery costs - supplier services ,East and Central Africa ,OXFORD POLICY MANAGEMENT ,202377-103 ,"2,457.38",
DFID,DFID,14/01/2014,Project delivery costs - supplier services ,East and Central Africa ,OXFORD POLICY MANAGEMENT ,202994-104 ,"3,023.99",
DFID,DFID,14/01/2014,Contract & Agency Staff ,Finance and Corporate Performance Division ,HUDSON GLOBAL RESOURCES LTD ,100201-101 ,"4,142.88",
DFID,DFID,14/01/2014,Project delivery costs - supplier services ,Western Asia and Stabilisation Division ,Hampshire Police Authority ,204309-101 ,"4,217.78",
DFID,DFID,14/01/2014,Storage & Distribution costs ,West and Southern Africa ,PICKFORDS LTD ,101620-101 ,"4,256.81",
DFID,DFID,14/01/2014,DFID Purchased Relief Supplies ,West and Southern Africa ,CHARLES KENDALL & PARTNERS LIMITED (PROCUREMENT) ,202214-106 ,"5,815.81",
DFID,DFID,14/01/2014,Storage & Distribution costs ,East and Central Africa ,PICKFORDS LTD ,202594-101 ,"5,871.60",
DFID,DFID,14/01/2014,Project delivery costs - supplier services ,West and Southern Africa ,MORSON INTERNATIONAL ,100152-114 ,"7,058.92",
DFID,DFID,14/01/2014,FCO shared service charges ,Western Asia and Stabilisation Division ,Supplier Name withheld ,101601-110 ,"8,358.00",
DFID,DFID,14/01/2014,Project delivery costs - supplier services ,Middle East & North Africa Division (MENAD) ,Sussex Police ,202486-113 ,"9,013.90",
DFID,DFID,14/01/2014,Project delivery costs - supplier services ,Human Resources ,Saxton Bampfylde ,100269-128 ,"9,240.00",
DFID,DFID,14/01/2014,Project delivery costs - supplier services ,Human Resources ,Saxton Bampfylde ,100269-128 ,"9,240.00",
DFID,DFID,14/01/2014,FCO shared service charges ,Western Asia and Stabilisation Division ,Supplier Name withheld ,101601-110 ,"10,227.00",
DFID,DFID,14/01/2014,FCO shared service charges ,Western Asia and Stabilisation Division ,Supplier Name withheld ,101601-110 ,"10,636.00",
DFID,DFID,14/01/2014,Telephone Usage & services ,Business Solutions Division Level ,VODAFONE LIMITED ,200002-187 ,"11,708.47",
DFID,DFID,14/01/2014,FCO shared service charges ,Western Asia and Stabilisation Division ,Supplier Name withheld ,101601-110 ,"11,999.00",
DFID,DFID,14/01/2014,Hardware -monitors ,Business Solutions Division Level ,INTEGRAL COMPUTER LIMITED ,200003-168 ,"13,343.26",
DFID,DFID,14/01/2014,Aid Programme - Accountable Grant Payments ,Conflict Humanitarian and Security Division ,Vera Institute of Justice ,201898-103 ,"13,811.57",
DFID,DFID,14/01/2014,Storage & Distribution costs ,East and Central Africa ,PICKFORDS LTD ,101635-101 ,"15,150.53",
DFID,DFID,14/01/2014,Project delivery costs - supplier services ,Asia  Caribbean and Overseas Territories ,MAXWELL STAMP PLC ,107370-101 ,"18,104.29",
DFID,DFID,14/01/2014,Storage & Distribution costs ,West and Southern Africa ,PICKFORDS LTD ,101638-101 ,"24,722.62",
DFID,DFID,14/01/2014,Aid Programme - Accountable Grant Payments ,Western Asia and Stabilisation Division ,NATIONAL RURAL SUPPORT PROGRAMME (NRSP) ,200694-104 ,"25,614.00",
DFID,DFID,14/01/2014,Aid Programme - Accountable Grant Payments ,Western Asia and Stabilisation Division ,NATIONAL RURAL SUPPORT PROGRAMME (NRSP) ,200694-104 ,"27,146.00",
DFID,DFID,14/01/2014,Project delivery costs - supplier services ,West and Southern Africa ,IMC Worldwide Ltd. ,203819-103 ,"28,045.00",
DFID,DFID,14/01/2014,Project delivery costs - supplier services ,Finance and Corporate Performance Division ,Unit 4 ,204245-101 ,"28,296.00",
DFID,DFID,14/01/2014,Project delivery costs - supplier services ,West and Southern Africa ,Charles Kendall & Partners ,202214-103 ,"31,641.49",
DFID,DFID,14/01/2014,Project delivery costs - supplier services ,East and Central Africa ,Crown Agents ,203466-103 ,"34,425.60",
DFID,DFID,14/01/2014,Project delivery costs - supplier services ,East and Central Africa ,Population Council ,202913-101 ,"38,601.00",
DFID,DFID,14/01/2014,Project delivery costs - supplier services ,East and Central Africa ,HTSPE LTD ,201575-103 ,"44,240.37",
DFID,DFID,14/01/2014,Aid Programme - Accountable Grant Payments ,International Relations Division ,ECDPM GBP ,203009-101 ,"48,312.87",
DFID,DFID,14/01/2014,Project delivery costs - supplier services ,Asia  Caribbean and Overseas Territories ,GHK CONSULTING LTD ,114168-101 ,"73,988.00",
DFID,DFID,14/01/2014,Aid Programme - Accountable Grant Payments ,Asia  Caribbean and Overseas Territories ,Transparency International Berlin ,202788-102 ,"83,561.00",
DFID,DFID,14/01/2014,Aid Programme - Partnership Programme Arrangements ,Policy Division ,COLLABORATIVE LEARNING PROJECTS ,202829-101 ,"114,038.25",
DFID,DFID,14/01/2014,Aid Programme - Accountable Grant Payments ,Asia  Caribbean and Overseas Territories ,Oxfam (India) Trust ,108078-107 ,"119,886.00",
DFID,DFID,14/01/2014,Project delivery costs - supplier services ,Western Asia and Stabilisation Division ,McKinsey & Co  Inc UK ,202697-109 ,"124,650.00",
DFID,DFID,14/01/2014,Project delivery costs - supplier services ,East and Central Africa ,ATOS CONSULTING LIMITED ,203542-102 ,"131,761.85",
DFID,DFID,14/01/2014,Aid Programme - Humanitarian Material Relief Assistance and Services ,Conflict Humanitarian and Security Division ,Internews Europe ,204351-101 ,"139,000.00",
DFID,DFID,14/01/2014,Aid Programme - Accountable Grant Payments ,Research and Evidence Division ,BRITISH RED CROSS ,203704-106 ,"247,625.00",
DFID,DFID,14/01/2014,Aid Programme - Voluntary contributions ,Policy Division ,United Nations Forum on Forests ,201724-121 ,"315,322.00",
DFID,DFID,14/01/2014,Aid Programme - Other Financial Aid to Government ,Asia  Caribbean and Overseas Territories ,Government of Nepal RRRSDP NPR ,114453-101 ,"321,823.18",
DFID,DFID,14/01/2014,Contraceptives ,East and Central Africa ,IPA-International Procurement Agency (BV) ,202420-103 ,"381,980.56",
DFID,DFID,14/01/2014,Aid Programme - Partnership Programme Arrangements ,Policy Division ,  Norwegian Refugee Council ,202688-101 ,"635,786.50",
DFID,DFID,14/01/2014,Aid Programme - Accountable Grant Payments ,East and Central Africa ,FOUNDATION FOR CIVIL SOCIETY ,113540-102 ,"683,760.00",
DFID,DFID,14/01/2014,Aid Programme - Voluntary contributions ,Policy Division ,UNDP CONTRIBUTIONS GBP ,203565-102 ,"1,000,000.00",
DFID,DFID,15/01/2014,Mobile telephones & accessories ,Policy Division ,VODAFONE CORPORATE ,100191-101 ,550.14,
DFID,DFID,15/01/2014,Air fares ,Asia  Caribbean and Overseas Territories ,CTCE/KALIKA Joint Venture ,101621-101 ,591.51,
DFID,DFID,15/01/2014,Training - Travel & Subsistence ,West and Southern Africa ,Premier Travel ,101638-101 ,594.30,
DFID,DFID,15/01/2014,Contract & Agency Staff ,Human Resources ,Anderson Knight Ltd ,100270-104 ,597.18,
DFID,DFID,15/01/2014,Contract & Agency Staff ,Human Resources ,Anderson Knight Ltd ,100270-104 ,597.18,
DFID,DFID,15/01/2014,Contract & Agency Staff ,Human Resources ,Anderson Knight Ltd ,100270-104 ,597.18,
DFID,DFID,15/01/2014,Contract & Agency Staff ,Human Resources ,Anderson Knight Ltd ,100270-104 ,597.18,
DFID,DFID,15/01/2014,Contract & Agency Staff ,Human Resources ,Anderson Knight Ltd ,100270-104 ,597.18,
DFID,DFID,15/01/2014,Contract & Agency Staff ,Human Resources ,Anderson Knight Ltd ,100270-104 ,597.18,
DFID,DFID,15/01/2014,Project delivery costs - supplier services ,East and Central Africa ,AccessKenya Group Ltd ,204258-101 ,606.10,
DFID,DFID,15/01/2014,Training - Travel & Subsistence ,East and Central Africa ,Southern Sun Hotels(T) Ltd (USD) ,101612-101 ,623.10,
DFID,DFID,15/01/2014,Hotels - Accommodation only ,Western Asia and Stabilisation Division ,PEARL CONTINENTAL HOTEL LAHORE ,101624-101 ,627.99,
DFID,DFID,15/01/2014,Telephone Usage & services ,East and Central Africa ,MTN Uganda Ltd ,101635-101 ,650.54,
DFID,DFID,15/01/2014,Facilities Management payments ,East and Central Africa ,Supplier Name withheld ,101616-101 ,655.12,
DFID,DFID,15/01/2014,Facilities Management payments ,East and Central Africa ,Dream Clean Limited ,101635-101 ,662.76,
DFID,DFID,15/01/2014,Facilities Management payments ,East and Central Africa ,BRITSOURCE INTERNATIONAL ,101628-101 ,677.28,
DFID,DFID,15/01/2014,Project delivery costs - supplier services ,East and Central Africa ,ADAM SMITH INTERNATIONAL  LTD ,200294-105 ,707.84,
DFID,DFID,15/01/2014,Hotels - Accommodation only ,Western Asia and Stabilisation Division ,TOURISM PROMOTION SERVICES/ ISLAMABA ,101624-101 ,728.57,
DFID,DFID,15/01/2014,Air fares ,Policy Division ,Jaya Travels & Tours Pvt Ltd. (US$) ,202419-101 ,731.87,
DFID,DFID,15/01/2014,Project delivery costs - supplier services ,Asia  Caribbean and Overseas Territories , Laxman Acharya ,108538-105 ,734.30,
DFID,DFID,15/01/2014,Mobile telephones & accessories ,Policy Division ,VODAFONE CORPORATE ,100191-101 ,739.85,
DFID,DFID,15/01/2014,Mobile telephones & accessories ,West and Southern Africa ,ECONET ,101638-104 ,747.33,
DFID,DFID,15/01/2014,Training - Travel & Subsistence ,Policy Division ,Mukwa Travel and Tours ,202419-101 ,783.77,
DFID,DFID,15/01/2014,Office Equipment - Maintenance ,West and Southern Africa ,Swissco Properties Ltd ,101637-101 ,784.59,
DFID,DFID,15/01/2014,Hostile Environment Training ,East and Central Africa ,Pilgrims Group ,101630-101 ,802.14,
DFID,DFID,15/01/2014,Project delivery costs - supplier services ,Western Asia and Stabilisation Division ,SHAHID HAFIZ KARDAR ,202378-107 ,830.16,
DFID,DFID,15/01/2014,Project delivery costs - supplier services ,Western Asia and Stabilisation Division ,Crown Agents ,203942-103 ,883.10,
DFID,DFID,15/01/2014,Hotels - Accommodation only ,Western Asia and Stabilisation Division ,PEARL CONTINENTAL HOTEL LAHORE ,101624-101 ,904.31,
DFID,DFID,15/01/2014,Air fares ,West and Southern Africa ,Premier Travel ,101638-105 ,"1,054.71",
DFID,DFID,15/01/2014,Air fares ,International Relations Division ,Recipient name withheld ,202319-102 ,"1,108.19",
DFID,DFID,15/01/2014,Storage & Distribution costs ,Research and Evidence Division ,PICKFORDS LTD ,202392-101 ,"1,161.89",
DFID,DFID,15/01/2014,Storage & Distribution costs ,East and Central Africa ,PICKFORDS LTD ,101630-101 ,"1,166.59",
DFID,DFID,15/01/2014,Project delivery costs - supplier services ,East and Central Africa ,ADAM SMITH INTERNATIONAL  LTD ,202891-103 ,"1,211.10",
DFID,DFID,15/01/2014,Storage & Distribution costs ,East and Central Africa ,PICKFORDS LTD ,101630-101 ,"1,287.58",
DFID,DFID,15/01/2014,Project delivery costs - supplier services ,East and Central Africa ,Oloya Aliker Tebere ,200250-106 ,"1,311.67",
DFID,DFID,15/01/2014,Project delivery costs - supplier services ,East and Central Africa ,Oloya Aliker Tebere ,200250-106 ,"1,311.86",
DFID,DFID,15/01/2014,Gas ,Group Operations ,CORONA ENERGY ,100106-101 ,"1,376.45",
DFID,DFID,15/01/2014,Storage & Distribution costs ,West and Southern Africa ,PICKFORDS LTD ,101622-101 ,"1,386.25",
DFID,DFID,15/01/2014,Project delivery costs - supplier services ,Western Asia and Stabilisation Division ,Assoicates in Development (pvt) Ltd ,202491-104 ,"1,432.21",
DFID,DFID,15/01/2014,Storage & Distribution costs ,West and Southern Africa ,PICKFORDS LTD ,101622-101 ,"1,441.75",
DFID,DFID,15/01/2014,Legal costs ,Finance and Corporate Performance Division ,TREASURY SOLICITORS CASH ACC ,100201-101 ,"1,450.44",
DFID,DFID,15/01/2014,Uniforms ,West and Southern Africa ,Ubeeco Procurement Services Ltd ,100152-110 ,"1,481.33",
DFID,DFID,15/01/2014,Further Education costs ,East and Central Africa ,UNIVERSITY OF LONDON ,101630-101 ,"1,535.00",
DFID,DFID,15/01/2014,Project delivery costs - supplier services ,Research and Evidence Division ,Edward T. Jackson & Associates Ltd. ,202444-101 ,"1,596.05",
DFID,DFID,15/01/2014,Storage & Distribution costs ,West and Southern Africa ,PICKFORDS LTD ,101631-101 ,"1,702.33",
DFID,DFID,15/01/2014,Project delivery costs - supplier services ,East and Central Africa ,ADAM SMITH INTERNATIONAL  LTD ,200294-105 ,"1,816.56",
DFID,DFID,15/01/2014,Facilities Management payments ,West and Southern Africa ,Mr Eze Samson ,101622-105 ,"1,899.43",
DFID,DFID,15/01/2014,Storage & Distribution costs ,West and Southern Africa ,PICKFORDS LTD ,101631-101 ,"1,962.24",
DFID,DFID,15/01/2014,Storage & Distribution costs ,Western Asia and Stabilisation Division ,PICKFORDS LTD ,100185-101 ,"2,170.03",
DFID,DFID,15/01/2014,Project delivery costs - supplier services ,Human Resources ,MidlandHR ,100272-101 ,"2,400.00",
DFID,DFID,15/01/2014,Project delivery costs - supplier services ,Human Resources ,MidlandHR ,100272-101 ,"2,400.00",
DFID,DFID,15/01/2014,Vehicle Petrol & Oil ,Western Asia and Stabilisation Division ,Pakistan State Oil Company Ltd ,101624-101 ,"2,422.51",
DFID,DFID,15/01/2014,Storage & Distribution costs ,West and Southern Africa ,PICKFORDS LTD ,101622-101 ,"2,534.30",
DFID,DFID,15/01/2014,Project delivery costs - supplier services ,West and Southern Africa ,HTSPE LTD ,202554-102 ,"3,009.46",
DFID,DFID,15/01/2014,Project delivery costs - supplier services ,Human Resources ,MidlandHR ,100272-101 ,"3,150.00",
DFID,DFID,15/01/2014,Project delivery costs - supplier services ,East and Central Africa ,Byenkya Julius Atwooki ,200787-108 ,"3,228.71",
DFID,DFID,15/01/2014,Storage & Distribution costs ,West and Southern Africa ,PICKFORDS LTD ,101631-101 ,"3,239.18",
DFID,DFID,15/01/2014,Project delivery costs - supplier services ,Human Resources ,MidlandHR ,100269-160 ,"3,250.00",
DFID,DFID,15/01/2014,Hotels - Accommodation only ,Top Management Group ,Davoshome ,100232-102 ,"3,377.50",
DFID,DFID,15/01/2014,Contract & Agency Staff ,Business Solutions Division Level ,ALLEGIS GROUP LIMITED ,200001-101 ,"3,393.00",
DFID,DFID,15/01/2014,Postage Costs ,Group Operations ,ROYAL MAIL GROUP PLC ,203717-101 ,"3,654.00",
DFID,DFID,15/01/2014,Project delivery costs - supplier services ,Human Resources ,MidlandHR ,100272-101 ,"3,825.00",
DFID,DFID,15/01/2014,Storage & Distribution costs ,Western Asia and Stabilisation Division ,PICKFORDS LTD ,101624-101 ,"3,944.32",
DFID,DFID,15/01/2014,Project delivery costs - supplier services ,Western Asia and Stabilisation Division ,Pearson PLC ,203297-101 ,"4,158.06",
DFID,DFID,15/01/2014,Facilities Management payments ,East and Central Africa ,BRITSOURCE INTERNATIONAL ,101628-101 ,"4,289.44",
DFID,DFID,15/01/2014,DFID Purchased Relief Supplies ,East and Central Africa ,IPA-International Procurement Agency (BV) ,202693-103 ,"4,364.80",
DFID,DFID,15/01/2014,Further Education costs ,West and Southern Africa ,University Of Leicester ,101622-106 ,"4,412.00",
DFID,DFID,15/01/2014,Storage & Distribution costs ,East and Central Africa ,PICKFORDS LTD ,101616-101 ,"4,666.37",
DFID,DFID,15/01/2014,Secure Staff Accommodation ,West and Southern Africa ,Supplier Name withheld ,101637-101 ,"4,752.21",
DFID,DFID,15/01/2014,Project delivery costs - supplier services ,Human Resources ,MidlandHR ,100272-101 ,"4,800.00",
DFID,DFID,15/01/2014,Storage & Distribution costs ,East and Central Africa ,PICKFORDS LTD ,101616-101 ,"5,150.34",
DFID,DFID,15/01/2014,Storage & Distribution costs ,Western Asia and Stabilisation Division ,PICKFORDS LTD ,101624-101 ,"5,767.46",
DFID,DFID,15/01/2014,Project delivery costs - supplier services ,East and Central Africa ,KISAKA & COMPANY CPA ,101635-101 ,"7,042.74",
DFID,DFID,15/01/2014,Project delivery costs - supplier services ,Human Resources ,MidlandHR ,100269-160 ,"7,200.00",
DFID,DFID,15/01/2014,Storage & Distribution costs ,Western Asia and Stabilisation Division ,PICKFORDS LTD ,100185-101 ,"7,325.05",
DFID,DFID,15/01/2014,Storage & Distribution costs ,West and Southern Africa ,PICKFORDS LTD ,101622-101 ,"7,885.44",
DFID,DFID,15/01/2014,Storage & Distribution costs ,Western Asia and Stabilisation Division ,PICKFORDS LTD ,101624-101 ,"7,987.25",
DFID,DFID,15/01/2014,Storage & Distribution costs ,Asia  Caribbean and Overseas Territories ,PICKFORDS LTD ,101615-101 ,"9,225.69",
DFID,DFID,15/01/2014,Storage & Distribution costs ,West and Southern Africa ,PICKFORDS LTD ,101622-101 ,"9,772.90",
DFID,DFID,15/01/2014,Project delivery costs - supplier services ,Research and Evidence Division ,Wits University CLEAR ,203069-109 ,"10,000.00",
DFID,DFID,15/01/2014,Storage & Distribution costs ,West and Southern Africa ,PICKFORDS LTD ,101620-101 ,"12,885.52",
DFID,DFID,15/01/2014,DFID Purchased Relief Supplies ,West and Southern Africa ,CHARLES KENDALL & PARTNERS LIMITED (PROCUREMENT) ,202214-106 ,"14,894.66",
DFID,DFID,15/01/2014,DFID Purchased Relief Supplies ,West and Southern Africa ,CHARLES KENDALL & PARTNERS LIMITED (PROCUREMENT) ,202214-106 ,"15,773.37",
DFID,DFID,15/01/2014,Project delivery costs - supplier services ,Western Asia and Stabilisation Division ,Ipsos MORI ,202491-104 ,"18,600.00",
DFID,DFID,15/01/2014,Project delivery costs - supplier services ,Asia  Caribbean and Overseas Territories ,SIDBI MUMBAI ,114293-103 ,"19,591.20",
DFID,DFID,15/01/2014,Project delivery costs - supplier services ,East and Central Africa ,PwC Rwanda Limited ,200292-103 ,"21,331.90",
DFID,DFID,15/01/2014,Project delivery costs - supplier services ,Western Asia and Stabilisation Division ,Supplier Name withheld ,203497-102 ,"23,323.03",
DFID,DFID,15/01/2014,Project delivery costs - supplier services ,Middle East & North Africa Division (MENAD) ,COFFEY INTERNATIONAL DEVELOPMENT LTD ,202486-118 ,"26,048.00",
DFID,DFID,15/01/2014,Aid Programme - Humanitarian Material Relief Assistance and Services ,Conflict Humanitarian and Security Division , ACTED ,204351-101 ,"40,000.00",
DFID,DFID,15/01/2014,other information and communication technologies ,Business Solutions Division Level ,VODAFONE LIMITED ,200004-121 ,"50,917.00",
DFID,DFID,15/01/2014,Aid Programme - Accountable Grant Payments ,Asia  Caribbean and Overseas Territories ,CARE INTERNATIONAL UK ,202660-106 ,"57,362.00",
DFID,DFID,15/01/2014,Aid Programme - Accountable Grant Payments ,West and Southern Africa ,Christian Health Association of Ghana (CHAG) ,203536-104 ,"59,959.77",
DFID,DFID,15/01/2014,Project delivery costs - supplier services ,Middle East & North Africa Division (MENAD) ,COFFEY INTERNATIONAL DEVELOPMENT LTD ,202486-118 ,"70,599.40",
DFID,DFID,15/01/2014,Project delivery costs - supplier services ,East and Central Africa ,ATOS CONSULTING LIMITED ,113400-103 ,"84,534.08",
DFID,DFID,15/01/2014,Project delivery costs - supplier services ,East and Central Africa ,Mennonite Economic Development Associates of Canada ,202481-104 ,"84,551.67",
DFID,DFID,15/01/2014,Project delivery costs - supplier services ,Western Asia and Stabilisation Division ,Supplier Name withheld ,203497-102 ,"133,889.00",
DFID,DFID,15/01/2014,Project delivery costs - supplier services ,West and Southern Africa ,ADAM SMITH INTERNATIONAL  LTD ,202539-106 ,"158,074.93",
DFID,DFID,15/01/2014,Project delivery costs - supplier services ,West and Southern Africa ,DAI Europe ,201958-102 ,"384,132.96",
DFID,DFID,15/01/2014,Project delivery costs - supplier services ,East and Central Africa ,Mennonite Economic Development Associates of Canada ,202481-104 ,"497,741.41",
DFID,DFID,15/01/2014,Aid Programme - Partnership Programme Arrangements ,International Finance Division ,BILL & MELINDA GATES FOUNDATION (USD) ,201101-111 ,"920,850.00",
DFID,DFID,15/01/2014,Aid Programme - Joint programme contribution ,East and Central Africa ,TRADEMARK EAST AFRICA ,203307-102 ,"1,000,000.00",
DFID,DFID,15/01/2014,Aid Programme - Core contributions ,Research and Evidence Division , BILL & MELINDA GATES FOUNDATION (GBP) ,202044-101 ,"1,184,878.00",
DFID,DFID,15/01/2014,Aid Programme - Voluntary contributions ,Policy Division ,WHO (GENEVA) ,202926-101 ,"1,500,000.00",
DFID,DFID,15/01/2014,Aid Programme - Other Financial Aid to Government ,Asia  Caribbean and Overseas Territories , The Government of India ,114158-101 ,"2,465,290.00",
DFID,DFID,16/01/2014,Data Network - land lines ,Business Solutions Division Level ,Foreign & Commonwealth Office ,200002-121 ,578.75,
DFID,DFID,16/01/2014,Facilities Management payments ,East and Central Africa ,Edmund D.Tarimo ,101634-101 ,585.95,
DFID,DFID,16/01/2014,Contract & Agency Staff ,Human Resources ,Anderson Knight Ltd ,100270-104 ,597.18,
DFID,DFID,16/01/2014,Contract & Agency Staff ,Human Resources ,Anderson Knight Ltd ,100270-104 ,597.18,
DFID,DFID,16/01/2014,Contract & Agency Staff ,Human Resources ,Anderson Knight Ltd ,100270-104 ,597.18,
DFID,DFID,16/01/2014,Hotels - Accommodation only ,Western Asia and Stabilisation Division ,Foreign & Commonwealth Office ,201699-101 ,602.47,
DFID,DFID,16/01/2014,Electricity ,West and Southern Africa ,Power Holding co of Nigeria ,101622-105 ,621.38,
DFID,DFID,16/01/2014,Training - Travel & Subsistence ,Western Asia and Stabilisation Division ,Pace Travels ,101624-101 ,629.60,
DFID,DFID,16/01/2014,Training - Travel & Subsistence ,Western Asia and Stabilisation Division ,Pace Travels ,101624-101 ,629.60,
DFID,DFID,16/01/2014,Electricity ,West and Southern Africa ,Power Holding co of Nigeria ,101622-105 ,668.17,
DFID,DFID,16/01/2014,Hotels - Accommodation only ,Policy Division ,Recipient name withheld ,100191-101 ,685.87,
DFID,DFID,16/01/2014,Electricity ,West and Southern Africa ,Power Holding co of Nigeria ,101622-105 ,717.58,
DFID,DFID,16/01/2014,Air fares ,East and Central Africa ,Bon Voyage Travel Centre Ltd(USD) ,101634-101 ,736.65,
DFID,DFID,16/01/2014,Electricity ,West and Southern Africa ,ESCOM ,101618-101 ,768.33,
DFID,DFID,16/01/2014,Project delivery costs - supplier services ,Western Asia and Stabilisation Division ,Supplier Name withheld ,201023-104 ,845.10,
DFID,DFID,16/01/2014,Electricity ,West and Southern Africa ,Power Holding co of Nigeria ,101622-105 ,854.51,
DFID,DFID,16/01/2014,Repairs  Maintenance and Alterations - Other Building Costs ,Group Operations ,MITIE Technical Facilities Management Ltd ,203717-101 ,900.00,
DFID,DFID,16/01/2014,Facilities Management payments ,East and Central Africa ,Davis and shirtliff ,100212-101 ,953.15,
DFID,DFID,16/01/2014,Vehicle Purchase Costs ,West and Southern Africa ,Dal Enterprise ,203714-103 ,"1,015.43",
DFID,DFID,16/01/2014,Electricity ,Asia  Caribbean and Overseas Territories ,Dhaka Electric Supply Company Ltd ,101603-101 ,"1,041.97",
DFID,DFID,16/01/2014,Data Network - land lines ,Business Solutions Division Level ,COLT TELECOMMUNICATIONS ,200002-124 ,"1,125.00",
DFID,DFID,16/01/2014,Hardware -monitors ,Business Solutions Division Level ,Foreign & Commonwealth Office ,200003-168 ,"1,358.11",
DFID,DFID,16/01/2014,Relocation costs ,East and Central Africa ,PICKFORDS LTD ,202594-101 ,"1,362.56",
DFID,DFID,16/01/2014,Electricity ,West and Southern Africa ,Power Holding co of Nigeria ,101622-105 ,"1,379.90",
DFID,DFID,16/01/2014,Gas ,Group Operations ,CORONA ENERGY ,100106-101 ,"1,400.53",
DFID,DFID,16/01/2014,Hotels - Accommodation only ,East and Central Africa ,SORAS ,101628-101 ,"1,463.41",
DFID,DFID,16/01/2014,Secure Staff Accommodation ,Asia  Caribbean and Overseas Territories ,Supplier Name withheld ,100025-101 ,"1,474.40",
DFID,DFID,16/01/2014,Secure Staff Accommodation ,Asia  Caribbean and Overseas Territories ,Supplier Name withheld ,101603-101 ,"1,618.95",
DFID,DFID,16/01/2014,Electricity ,Asia  Caribbean and Overseas Territories ,British High Commission (Dhaka) ,101603-101 ,"1,688.84",
DFID,DFID,16/01/2014,Storage & Distribution costs ,Western Asia and Stabilisation Division ,Supplier Name withheld ,101601-110 ,"1,898.41",
DFID,DFID,16/01/2014,Secure Staff Accommodation ,International Relations Division ,Foreign & Commonwealth Office ,100262-101 ,"1,941.63",
DFID,DFID,16/01/2014,Storage & Distribution costs ,Western Asia and Stabilisation Division ,Supplier Name withheld ,101601-110 ,"2,040.16",
DFID,DFID,16/01/2014,Electricity ,Asia  Caribbean and Overseas Territories ,British High Commission (Dhaka) ,100025-101 ,"2,063.81",
DFID,DFID,16/01/2014,Project delivery costs - supplier services ,Asia  Caribbean and Overseas Territories ,SPC MANAGEMENT SERVICES PRIVATE LIMI ,114177-101 ,"2,076.05",
DFID,DFID,16/01/2014,Storage & Distribution costs ,Western Asia and Stabilisation Division ,Supplier Name withheld ,101601-110 ,"2,131.11",
DFID,DFID,16/01/2014,Project delivery costs - supplier services ,Asia  Caribbean and Overseas Territories ,Mercados Energy Markets India Private Limited ,114320-122 ,"2,419.00",
DFID,DFID,16/01/2014,Other non-passenger transportation ,Asia  Caribbean and Overseas Territories ,G4S FACILITY SERVICES (INDIA) PVT. L ,201689-105 ,"2,784.15",
DFID,DFID,16/01/2014,Secure Staff Accommodation ,International Relations Division ,Foreign & Commonwealth Office ,100236-101 ,"2,880.05",
DFID,DFID,16/01/2014,Project delivery costs - supplier services ,Asia  Caribbean and Overseas Territories ,PricewaterhouseCoopers Pvt.Ltd ,114320-122 ,"3,397.00",
DFID,DFID,16/01/2014,Facilities Management payments ,West and Southern Africa ,S R Nicolaou ,101637-101 ,"3,522.14",
DFID,DFID,16/01/2014,Project delivery costs - supplier services ,East and Central Africa ,ADAM SMITH INTERNATIONAL  LTD ,202698-101 ,"3,682.01",
DFID,DFID,16/01/2014,Medical/Health Services ,West and Southern Africa ,HYGEIA HMO Ltd ,100152-114 ,"3,708.73",
DFID,DFID,16/01/2014,Storage & Distribution costs ,Western Asia and Stabilisation Division ,Supplier Name withheld ,101601-110 ,"3,899.41",
DFID,DFID,16/01/2014,Storage & Distribution costs ,West and Southern Africa ,PICKFORDS LTD ,101631-101 ,"3,995.61",
DFID,DFID,16/01/2014,Storage & Distribution costs ,East and Central Africa ,PICKFORDS LTD ,101635-101 ,"4,060.81",
DFID,DFID,16/01/2014,Project delivery costs - supplier services ,Western Asia and Stabilisation Division ,The Metropolitan Police Service ,204309-101 ,"4,459.47",
DFID,DFID,16/01/2014,Aid Programme - Joint programme contribution ,Asia  Caribbean and Overseas Territories ,PICKFORDS LTD ,203478-101 ,"4,520.56",
DFID,DFID,16/01/2014,Storage & Distribution costs ,Asia  Caribbean and Overseas Territories ,PICKFORDS LTD ,101621-101 ,"5,640.97",
DFID,DFID,16/01/2014,Storage & Distribution costs ,West and Southern Africa ,PICKFORDS LTD ,101618-101 ,"5,923.20",
DFID,DFID,16/01/2014,Storage & Distribution costs ,West and Southern Africa ,PICKFORDS LTD ,101631-101 ,"5,957.86",
DFID,DFID,16/01/2014,Storage & Distribution costs ,East and Central Africa ,PICKFORDS LTD ,202594-101 ,"6,194.58",
DFID,DFID,16/01/2014,Relocation costs ,West and Southern Africa ,PICKFORDS LTD ,101638-101 ,"6,259.56",
DFID,DFID,16/01/2014,Project delivery costs - supplier services ,Western Asia and Stabilisation Division ,Crown Agents ,203941-102 ,"6,363.00",
DFID,DFID,16/01/2014,Medical/Health Services ,West and Southern Africa ,HYGEIA HMO Ltd ,101622-106 ,"7,881.05",
DFID,DFID,16/01/2014,Project delivery costs - supplier services ,Non-Departmental Public Body ,NATIONAL AUDIT OFFICE ,203064-101 ,"8,254.31",
DFID,DFID,16/01/2014,Storage & Distribution costs ,East and Central Africa ,PICKFORDS LTD ,101635-101 ,"8,349.96",
DFID,DFID,16/01/2014,Project delivery costs - supplier services ,East and Central Africa ,ADAM SMITH INTERNATIONAL  LTD ,200294-105 ,"9,684.60",
DFID,DFID,16/01/2014,Subscriptions ,Research and Evidence Division ,John Wiley & Sons Ltd ,202348-103 ,"9,759.29",
DFID,DFID,16/01/2014,Aid Programme - Accountable Grant Payments ,Middle East & North Africa Division (MENAD) ,OXFAM INSTITUTIONAL INCOME ACCOUNT ,203929-102 ,"10,447.00",
DFID,DFID,16/01/2014,Recruitment costs ,Human Resources ,Syme Drummond Ltd ,100268-101 ,"10,672.56",
DFID,DFID,16/01/2014,Relocation costs ,East and Central Africa ,PICKFORDS LTD ,202594-101 ,"13,857.49",
DFID,DFID,16/01/2014,Storage & Distribution costs ,West and Southern Africa ,PICKFORDS LTD ,101618-101 ,"14,948.57",
DFID,DFID,16/01/2014,Project delivery costs - supplier services ,Policy Division ,HTSPE LTD ,202921-101 ,"16,502.65",
DFID,DFID,16/01/2014,Project delivery costs - supplier services ,Asia  Caribbean and Overseas Territories ,J M R & N N Cameron ,114186-101 ,"17,690.06",
DFID,DFID,16/01/2014,Project delivery costs - supplier services ,Western Asia and Stabilisation Division ,Ipsos MORI ,202491-104 ,"18,600.00",
DFID,DFID,16/01/2014,Project delivery costs - supplier services ,West and Southern Africa ,LTS International Ltd. ,201196-108 ,"20,035.20",
DFID,DFID,16/01/2014,Carbon Offset travel contribution ,Group Operations ,EDF Trading Ltd ,203717-101 ,"22,552.62",
DFID,DFID,16/01/2014,Aid Programme - Aid and Trade Provision ,Asia  Caribbean and Overseas Territories ,ECGD ACCOUNT ,108239-101 ,"23,796.75",
DFID,DFID,16/01/2014,Project delivery costs - supplier services ,Middle East & North Africa Division (MENAD) ,IOD PARC ,203236-115 ,"38,808.00",
DFID,DFID,16/01/2014,Project delivery costs - supplier services ,West and Southern Africa ,SCHOOL OF ORIENTAL & AFRICAN STUDIES ,202524-107 ,"56,993.00",
DFID,DFID,16/01/2014,Aid Programme - Accountable Grant Payments ,West and Southern Africa ,BasicNeeds-GHANA ,203536-105 ,"60,306.60",
DFID,DFID,16/01/2014,Vehicle Purchase Costs ,East and Central Africa ,IPA-International Procurement Agency (BV) ,100235-101 ,"71,954.05",
DFID,DFID,16/01/2014,Project delivery costs - supplier services ,West and Southern Africa ,HTSPE LTD ,202051-102 ,"76,932.56",
DFID,DFID,16/01/2014,Project delivery costs - supplier services ,West and Southern Africa ,PRICEWATERHOUSECOOPERS ,203824-104 ,"82,202.00",
DFID,DFID,16/01/2014,Project delivery costs - supplier services ,Policy Division ,PRICEWATERHOUSECOOPERS ,202948-114 ,"93,508.80",
DFID,DFID,16/01/2014,Aid Programme - Accountable Grant Payments ,East and Central Africa ,CRANFIELD UNIVERSITY ,203510-101 ,"114,246.75",
DFID,DFID,16/01/2014,Project delivery costs - supplier services ,West and Southern Africa ,MOTT MACDONALD LTD ,202942-102 ,"160,916.25",
DFID,DFID,16/01/2014,Project delivery costs - supplier services ,Asia  Caribbean and Overseas Territories ,FAMILY HEALTH INTERNATIONAL ,113707-101 ,"180,000.00",
DFID,DFID,16/01/2014,Project delivery costs - supplier services ,Asia  Caribbean and Overseas Territories ,OXFAM INSTITUTIONAL INCOME ACCOUNT ,202951-102 ,"208,112.00",
DFID,DFID,16/01/2014,Project delivery costs - supplier services ,West and Southern Africa ,MOTT MACDONALD LTD ,202942-102 ,"281,454.00",
DFID,DFID,16/01/2014,Project delivery costs - supplier services ,East and Central Africa ,ADAM SMITH INTERNATIONAL  LTD ,202851-102 ,"477,268.43",
DFID,DFID,16/01/2014,Aid Programme - Humanitarian Material Relief Assistance and Services ,Conflict Humanitarian and Security Division ,IOM ,204351-101 ,"1,560,000.00",
DFID,DFID,16/01/2014,Aid Programme - Contributions to Debt Relief ,International Finance Division ,AFRICAN  DEVELOPMENT BANK GROUP ,110990-101 ,"5,593,104.13",
DFID,DFID,16/01/2014,Aid Programme - Contributions to Debt Relief ,International Finance Division ,INTERNATIONAL DEVELOPMENT ASSOCIATION 'B ACC' ,110951-101 ,"76,180,000.00",
DFID,DFID,17/01/2014,other information and communication technologies ,Business Solutions Division Level ,NAYATEL (PVT) LTD ,203329-102 ,522.19,
DFID,DFID,17/01/2014,Telephone Usage & services ,West and Southern Africa ,Scancom Limited ,101613-101 ,528.74,
DFID,DFID,17/01/2014,Training - Travel & Subsistence ,Western Asia and Stabilisation Division ,BONDS TRAVEL BUREAU ,101624-101 ,539.41,
DFID,DFID,17/01/2014,Training - Course Fees ,Western Asia and Stabilisation Division ,FIREBRAND TRAINING LTD ,203944-102 ,560.00,
DFID,DFID,17/01/2014,Training - Travel & Subsistence ,Western Asia and Stabilisation Division ,Supplier Name withheld ,203939-103 ,578.44,
DFID,DFID,17/01/2014,Hotels - Accommodation only ,Western Asia and Stabilisation Division ,Recipient name withheld ,203944-106 ,583.66,
DFID,DFID,17/01/2014,Contract & Agency Staff ,Human Resources ,Anderson Knight Ltd ,100270-104 ,597.18,
DFID,DFID,17/01/2014,Contract & Agency Staff ,Human Resources ,Anderson Knight Ltd ,100270-104 ,597.18,
DFID,DFID,17/01/2014,Hotels - Accommodation only ,Research and Evidence Division ,Recipient name withheld ,202348-101 ,619.92,
DFID,DFID,17/01/2014,Repairs  Maintenance and Alterations - Other Building Costs ,Group Operations ,MITIE Technical Facilities Management Ltd ,203717-101 ,642.95,
DFID,DFID,17/01/2014,Repairs  Maintenance and Alterations - Other Building Costs ,Group Operations ,MITIE Technical Facilities Management Ltd ,203717-101 ,643.50,
DFID,DFID,17/01/2014,Repairs  Maintenance and Alterations - Other Building Costs ,Group Operations ,MITIE Technical Facilities Management Ltd ,203717-101 ,644.56,
DFID,DFID,17/01/2014,Hotels - Accommodation only ,East and Central Africa ,Supplier name withheld ,202594-101 ,680.00,
DFID,DFID,17/01/2014,Contract & Agency Staff ,Finance and Corporate Performance Division ,Anderson Knight Ltd ,200173-103 ,716.62,
DFID,DFID,17/01/2014,Repairs  Maintenance and Alterations - Other Building Costs ,Group Operations ,MITIE Technical Facilities Management Ltd ,203717-101 ,730.40,
DFID,DFID,17/01/2014,Water charges ,West and Southern Africa ,Venida Water ,101622-105 ,736.40,
DFID,DFID,17/01/2014,Project delivery costs - supplier services ,East and Central Africa ,Crown Agents ,203928-101 ,751.20,
DFID,DFID,17/01/2014,Repairs  Maintenance and Alterations - Other Building Costs ,Group Operations ,MITIE Technical Facilities Management Ltd ,203717-101 ,786.72,
DFID,DFID,17/01/2014,Project delivery costs - supplier services ,Human Resources ,MidlandHR ,100272-101 ,800.00,
DFID,DFID,17/01/2014,Repairs  Maintenance and Alterations - Other Building Costs ,Group Operations ,MITIE Technical Facilities Management Ltd ,203717-101 ,803.46,
DFID,DFID,17/01/2014,Repairs  Maintenance and Alterations - Other Building Costs ,Group Operations ,MITIE Technical Facilities Management Ltd ,100106-101 ,813.90,
DFID,DFID,17/01/2014,Repairs  Maintenance and Alterations - Other Building Costs ,Group Operations ,MITIE Technical Facilities Management Ltd ,203717-101 ,926.64,
DFID,DFID,17/01/2014,Repairs  Maintenance and Alterations - Other Building Costs ,Group Operations ,MITIE Technical Facilities Management Ltd ,203717-101 ,"1,177.50",
DFID,DFID,17/01/2014,Subscriptions ,Communications Division ,Durrants lTD ,100197-101 ,"1,542.52",
DFID,DFID,17/01/2014,Repairs  Maintenance and Alterations - Other Building Costs ,Group Operations ,MITIE Technical Facilities Management Ltd ,100106-101 ,"1,650.00",
DFID,DFID,17/01/2014,Repairs  Maintenance and Alterations - Other Building Costs ,Group Operations ,MITIE Technical Facilities Management Ltd ,203717-101 ,"1,753.27",
DFID,DFID,17/01/2014,Repairs  Maintenance and Alterations - Other Building Costs ,Group Operations ,MITIE Technical Facilities Management Ltd ,203717-101 ,"1,836.34",
DFID,DFID,17/01/2014,Hotels - Accommodation only ,East and Central Africa ,Supplier name withheld ,202594-101 ,"1,845.70",
DFID,DFID,17/01/2014,Storage & Distribution costs ,West and Southern Africa ,PICKFORDS LTD ,101622-101 ,"2,249.13",
DFID,DFID,17/01/2014,Storage & Distribution costs ,Western Asia and Stabilisation Division ,PICKFORDS LTD ,101624-101 ,"2,327.76",
DFID,DFID,17/01/2014,Storage & Distribution costs ,Western Asia and Stabilisation Division ,PICKFORDS LTD ,101624-101 ,"2,564.77",
DFID,DFID,17/01/2014,Repairs  Maintenance and Alterations - Other Building Costs ,Group Operations ,MITIE Technical Facilities Management Ltd ,203717-101 ,"2,709.52",
DFID,DFID,17/01/2014,Project delivery costs - supplier services ,Western Asia and Stabilisation Division ,Crown Agents ,203939-101 ,"2,727.00",
DFID,DFID,17/01/2014,Project delivery costs - supplier services ,Western Asia and Stabilisation Division ,Crown Agents ,203939-102 ,"3,030.00",
DFID,DFID,17/01/2014,Vehicle Purchase Costs ,East and Central Africa ,IPA-International Procurement Agency (BV) ,100235-101 ,"3,597.70",
DFID,DFID,17/01/2014,Project delivery costs - supplier services ,Western Asia and Stabilisation Division ,Crown Agents ,203942-101 ,"3,946.80",
DFID,DFID,17/01/2014,Storage & Distribution costs ,West and Southern Africa ,PICKFORDS LTD ,101638-101 ,"4,822.98",
DFID,DFID,17/01/2014,Project delivery costs - supplier services ,Western Asia and Stabilisation Division ,Crown Agents ,203942-101 ,"5,768.40",
DFID,DFID,17/01/2014,Project delivery costs - supplier services ,Western Asia and Stabilisation Division ,Crown Agents ,203939-107 ,"5,950.80",
DFID,DFID,17/01/2014,Project delivery costs - supplier services ,Western Asia and Stabilisation Division ,Crown Agents ,203939-103 ,"6,363.00",
DFID,DFID,17/01/2014,Project delivery costs - supplier services ,East and Central Africa ,Crown Agents ,203928-101 ,"7,878.00",
DFID,DFID,17/01/2014,Storage & Distribution costs ,West and Southern Africa ,PICKFORDS LTD ,101631-101 ,"7,957.58",
DFID,DFID,17/01/2014,Project delivery costs - supplier services ,Western Asia and Stabilisation Division ,Crown Agents ,203944-101 ,"9,504.00",
DFID,DFID,17/01/2014,Project delivery costs - supplier services ,West and Southern Africa ,Crown Agents ,113961-109 ,"11,985.60",
DFID,DFID,17/01/2014,Project delivery costs - supplier services ,Western Asia and Stabilisation Division ,Crown Agents ,203938-103 ,"12,474.00",
DFID,DFID,17/01/2014,Project delivery costs - supplier services ,East and Central Africa ,PEMconsult A/S ,204010-102 ,"13,969.20",
DFID,DFID,17/01/2014,Project delivery costs - supplier services ,Western Asia and Stabilisation Division ,Crown Agents ,203939-108 ,"14,544.00",
DFID,DFID,17/01/2014,Project delivery costs - supplier services ,Asia  Caribbean and Overseas Territories ,COFFEY INTERNATIONAL DEVELOPMENT LTD ,203600-104 ,"14,998.00",
DFID,DFID,17/01/2014,Repairs  Maintenance and Alterations - Other Building Costs ,Group Operations ,MITIE Technical Facilities Management Ltd ,203717-101 ,"16,500.00",
DFID,DFID,17/01/2014,Project delivery costs - supplier services ,Western Asia and Stabilisation Division ,Crown Agents ,203939-102 ,"18,028.80",
DFID,DFID,17/01/2014,Storage & Distribution costs ,West and Southern Africa ,PICKFORDS LTD ,101613-101 ,"21,147.80",
DFID,DFID,17/01/2014,Aid Programme - Voluntary contributions ,Finance and Corporate Performance Division ,UNOPS ,204292-101 ,"26,356.00",
DFID,DFID,17/01/2014,Project delivery costs - supplier services ,Western Asia and Stabilisation Division ,Crown Agents ,203943-101 ,"26,469.98",
DFID,DFID,17/01/2014,Aid Programme - Aid and Trade Provision ,Asia  Caribbean and Overseas Territories ,ECGD ACCOUNT ,108238-101 ,"28,240.06",
DFID,DFID,17/01/2014,Project delivery costs - supplier services ,Western Asia and Stabilisation Division ,Crown Agents ,203939-108 ,"29,335.20",
DFID,DFID,17/01/2014,Project delivery costs - supplier services ,Western Asia and Stabilisation Division ,Crown Agents ,204308-105 ,"35,451.00",
DFID,DFID,17/01/2014,Aid Programme - Accountable Grant Payments ,Asia  Caribbean and Overseas Territories ,WATERAID ,202871-104 ,"38,120.99",
DFID,DFID,17/01/2014,Project delivery costs - supplier services ,Asia  Caribbean and Overseas Territories ,TURNER & TOWNSEND ,202433-108 ,"49,428.56",
DFID,DFID,17/01/2014,Project delivery costs - supplier services ,Western Asia and Stabilisation Division ,Supplier Name withheld ,202336-101 ,"52,238.11",
DFID,DFID,17/01/2014,Repairs  Maintenance and Alterations - Other Building Costs ,Group Operations ,MITIE Technical Facilities Management Ltd ,100106-101 ,"58,926.28",Essential Building Repairs � DFID HQ Abercrombie House
DFID,DFID,17/01/2014,Computer software maintenance  ,Human Resources ,MidlandHR ,100269-158 ,"72,840.00",Annual maintenance & licence costs for DFID HR System
DFID,DFID,17/01/2014,Aid Programme - Accountable Grant Payments ,West and Southern Africa ,Paralegal Advisory Service Institute ,202559-102 ,"87,456.47",
DFID,DFID,17/01/2014,Aid Programme - Accountable Grant Payments ,East and Central Africa ,SAVE THE CHILDREN ,202619-110 ,"91,309.00",
DFID,DFID,17/01/2014,Research & Development costs ,Research and Evidence Division ,LONDON SCHOOL OF ECONOMICS AND POLITICAL SCIENCE ,201006-101 ,"100,654.14",
DFID,DFID,17/01/2014,Aid Programme - Voluntary contributions ,Finance and Corporate Performance Division ,UNOPS ,204292-101 ,"100,871.00",
DFID,DFID,17/01/2014,Project delivery costs - supplier services ,East and Central Africa ,Mennonite Economic Development Associates of Canada ,202481-104 ,"185,730.79",
DFID,DFID,17/01/2014,Project delivery costs - supplier services ,Middle East & North Africa Division (MENAD) ,UPPER QUARTILE ,203620-103 ,"221,008.00",
DFID,DFID,17/01/2014,Aid Programme - Accountable Grant Payments ,Western Asia and Stabilisation Division ,Supplier Name withheld ,203748-101 ,"359,474.00",
DFID,DFID,17/01/2014,Research & Development costs ,Research and Evidence Division ,President and Fellows of Harvard College ,202006-101 ,"413,566.00",
DFID,DFID,17/01/2014,Aid Programme - Other Financial Aid to Government ,Asia  Caribbean and Overseas Territories ,Government of Nepal RRRSDP NPR ,114453-101 ,"1,171,536.54",
DFID,DFID,18/01/2014,Storage & Distribution costs ,Western Asia and Stabilisation Division ,PICKFORDS LTD ,101624-101 ,"4,638.30",
DFID,DFID,18/01/2014,Storage & Distribution costs ,West and Southern Africa ,PICKFORDS LTD ,100152-101 ,"4,638.31",
DFID,DFID,19/01/2014,Contract & Agency Staff ,Human Resources ,Anderson Knight Ltd ,100270-104 ,597.18,
DFID,DFID,19/01/2014,Contract & Agency Staff ,Human Resources ,Anderson Knight Ltd ,100270-104 ,597.18,
DFID,DFID,19/01/2014,Contract & Agency Staff ,Human Resources ,Anderson Knight Ltd ,100270-104 ,597.18,
DFID,DFID,19/01/2014,Conferences  Seminars & Meeting/Event Resource ,Western Asia and Stabilisation Division ,CIMA ,100020-101 ,625.00,
DFID,DFID,19/01/2014,Other Building Products ,Group Operations ,Brophy Grounds Maintenance Ltd ,203717-101 ,642.00,
DFID,DFID,19/01/2014,Contract & Agency Staff ,Finance and Corporate Performance Division ,Search Consultancy Ltd ,100201-101 ,665.28,
DFID,DFID,19/01/2014,Professional member subscriptions ,Human Resources ,Reed Elsevier (UK) Ltd T/A LN ,100270-102 ,690.00,
DFID,DFID,19/01/2014,Project delivery costs - supplier services ,Business Solutions Division Level ,SCC Ltd ,200005-112 ,855.89,
DFID,DFID,19/01/2014,Project delivery costs - supplier services ,Asia  Caribbean and Overseas Territories ,FCO SERVICES ,100114-104 ,"1,021.63",
DFID,DFID,19/01/2014,Project delivery costs - supplier services ,Western Asia and Stabilisation Division ,Crown Agents ,203939-101 ,"1,092.00",
DFID,DFID,19/01/2014,Contract & Agency Staff ,Finance and Corporate Performance Division ,Hays Specialist Recruitment Ltd ,100201-101 ,"1,165.50",
DFID,DFID,19/01/2014,Conferences  Seminars & Meeting/Event Resource ,Western Asia and Stabilisation Division ,Crown Agents ,203938-107 ,"1,212.00",
DFID,DFID,19/01/2014,Aid Programme - Accountable Grant Payments ,Asia  Caribbean and Overseas Territories ,SAINT HELENA NATIONAL TRUST ,201049-101 ,"1,457.99",
DFID,DFID,19/01/2014,DFID Purchased Relief Supplies ,West and Southern Africa ,Crown Agents ,202694-103 ,"1,519.04",
DFID,DFID,19/01/2014,Training - Course Fees ,Human Resources ,TONI MCALINDIN ,100269-136 ,"1,549.50",
DFID,DFID,19/01/2014,Project delivery costs - supplier services ,Group Operations ,BRUTON KNOWLES ,203717-101 ,"1,672.80",
DFID,DFID,19/01/2014,Project delivery costs - supplier services ,Human Resources ,Saxton Bampfylde ,100269-128 ,"1,770.00",
DFID,DFID,19/01/2014,Professional member subscriptions ,Research and Evidence Division ,THE ROYAL STATISTICAL SOCIETY ,100039-114 ,"1,798.40",
DFID,DFID,19/01/2014,Project delivery costs - supplier services ,Western Asia and Stabilisation Division ,Crown Agents ,203938-103 ,"1,838.02",
DFID,DFID,19/01/2014,Storage & Distribution costs ,East and Central Africa ,PICKFORDS LTD ,101633-101 ,"2,359.77",
DFID,DFID,19/01/2014,Project delivery costs - supplier services ,West and Southern Africa ,CHARLES KENDALL & PARTNERS LIMITED (PROCUREMENT) ,113961-106 ,"2,416.61",
DFID,DFID,19/01/2014,Project delivery costs - supplier services ,Research and Evidence Division ,Centre for Effective Dispute Resolution ,202242-104 ,"2,730.00",
DFID,DFID,19/01/2014,Hostile Environment Training ,Western Asia and Stabilisation Division ,GroundTruth Consulting ,203940-104 ,"2,880.00",
DFID,DFID,19/01/2014,Hostile Environment Training ,Western Asia and Stabilisation Division ,GroundTruth Consulting ,203940-104 ,"2,880.00",
DFID,DFID,19/01/2014,Contract & Agency Staff ,Group Operations ,MANPOWER PLC ,100161-101 ,"3,016.32",
DFID,DFID,19/01/2014,Oil - Other Utilities ,Group Operations ,Verdo Renewables Ltd ,100106-101 ,"3,045.60",
DFID,DFID,19/01/2014,Project delivery costs - supplier services ,Western Asia and Stabilisation Division ,Crown Agents ,203941-102 ,"3,130.76",
DFID,DFID,19/01/2014,Project delivery costs - supplier services ,East and Central Africa ,OXFORD POLICY MANAGEMENT ,202812-102 ,"3,200.00",
DFID,DFID,19/01/2014,Project delivery costs - supplier services ,Policy Division ,ITAD LTD ,201724-134 ,"3,253.98",
DFID,DFID,19/01/2014,Project delivery costs - supplier services ,Western Asia and Stabilisation Division ,Crown Agents ,203938-102 ,"3,254.66",
DFID,DFID,19/01/2014,Project delivery costs - supplier services ,Asia  Caribbean and Overseas Territories ,OPTIONS CONSULTANCY SERVICES LIMITED ,113963-101 ,"3,387.61",
DFID,DFID,19/01/2014,DFID Purchased Relief Supplies ,West and Southern Africa ,Crown Agents ,114206-102 ,"3,625.91",
DFID,DFID,19/01/2014,Storage & Distribution costs ,Western Asia and Stabilisation Division ,PICKFORDS LTD ,101624-101 ,"3,656.62",
DFID,DFID,19/01/2014,Storage & Distribution costs ,East and Central Africa ,PICKFORDS LTD ,101633-101 ,"3,656.63",
DFID,DFID,19/01/2014,Repairs  Maint  Alter - Removal & waste disposal services ,Group Operations ,BYWATERS ,203717-101 ,"3,767.83",
DFID,DFID,19/01/2014,Project delivery costs - supplier services ,West and Southern Africa ,OXFORD POLICY MANAGEMENT ,202819-106 ,"4,453.01",
DFID,DFID,19/01/2014,Project delivery costs - supplier services ,East and Central Africa ,Isobel Birch ,202619-106 ,"4,725.00",
DFID,DFID,19/01/2014,Conferences  Seminars & Meeting/Event Resource ,Research and Evidence Division ,BIRKBECK UNIVERSITY ,202332-102 ,"5,070.00",
DFID,DFID,19/01/2014,Conferences  Seminars & Meeting/Event Resource ,Research and Evidence Division ,BIRKBECK UNIVERSITY ,202332-102 ,"5,340.08",
DFID,DFID,19/01/2014,Project delivery costs - supplier services ,Business Solutions Division Level ,SCC Ltd ,200005-112 ,"5,689.60",
DFID,DFID,19/01/2014,Project delivery costs - supplier services ,West and Southern Africa ,DSJ Limited ,105851-103 ,"5,999.48",
DFID,DFID,19/01/2014,Office Equipment - Purchases ,Western Asia and Stabilisation Division ,Supplier Name withheld ,100061-101 ,"6,037.74",
DFID,DFID,19/01/2014,Project delivery costs - supplier services ,Asia  Caribbean and Overseas Territories ,OPTIONS CONSULTANCY SERVICES LIMITED ,113963-101 ,"6,619.66",
DFID,DFID,19/01/2014,Oil - Other Utilities ,Group Operations ,Government Procurement Service ,203717-101 ,"7,497.54",
DFID,DFID,19/01/2014,Medical/Health Services ,Western Asia and Stabilisation Division ,INTERHEALTH ,203940-103 ,"7,765.00",
DFID,DFID,19/01/2014,Aid Programme - Core contributions ,Middle East & North Africa Division (MENAD) ,CPS ,201021-105 ,"7,869.06",
DFID,DFID,19/01/2014,Electricity ,Group Operations ,EDF ENERGY ,203717-101 ,"8,421.36",
DFID,DFID,19/01/2014,Aid Programme - Accountable Grant Payments ,Policy Division ,BioClimate Research and Development ,203034-108 ,"8,500.00",
DFID,DFID,19/01/2014,Project delivery costs - supplier services ,Western Asia and Stabilisation Division ,Crown Agents ,203938-101 ,"8,607.17",
DFID,DFID,19/01/2014,Project delivery costs - supplier services ,Asia  Caribbean and Overseas Territories ,Crown Agents ,202660-101 ,"9,165.31",
DFID,DFID,19/01/2014,Project delivery costs - supplier services ,Asia  Caribbean and Overseas Territories ,OPTIONS CONSULTANCY SERVICES LIMITED ,113963-101 ,"9,628.21",
DFID,DFID,19/01/2014,Project delivery costs - supplier services ,Asia  Caribbean and Overseas Territories ,OPTIONS CONSULTANCY SERVICES LIMITED ,113963-101 ,"9,628.21",
DFID,DFID,19/01/2014,Project delivery costs - supplier services ,Western Asia and Stabilisation Division ,Supplier Name withheld ,200898-118 ,"9,645.93",
DFID,DFID,19/01/2014,Project delivery costs - supplier services ,Asia  Caribbean and Overseas Territories ,COFFEY INTERNATIONAL DEVELOPMENT LTD ,203601-108 ,"9,662.93",
DFID,DFID,19/01/2014,other information and communication technologies ,Business Solutions Division Level ,NAYATEL (PVT) LTD ,203329-102 ,"10,299.01",
DFID,DFID,19/01/2014,Project delivery costs - supplier services ,Business Solutions Division Level ,SCC Ltd ,200005-112 ,"10,342.80",
DFID,DFID,19/01/2014,DFID Purchased Relief Supplies ,West and Southern Africa ,Crown Agents ,202978-106 ,"10,821.00",
DFID,DFID,19/01/2014,Project delivery costs - supplier services ,East and Central Africa ,Philip White ,203473-101 ,"12,587.65",
DFID,DFID,19/01/2014,Electricity ,Group Operations ,EDF ENERGY ,203717-101 ,"12,704.54",
DFID,DFID,19/01/2014,Project delivery costs - supplier services ,Western Asia and Stabilisation Division ,Crown Agents ,203942-103 ,"12,792.60",
DFID,DFID,19/01/2014,Project delivery costs - supplier services ,West and Southern Africa ,Supplier name withheld ,204315-101 ,"15,233.02",
DFID,DFID,19/01/2014,Aid Programme - Accountable Grant Payments ,Policy Division ,Triple Line Crown Agents JV ,202035-101 ,"15,454.00",
DFID,DFID,19/01/2014,Project delivery costs - supplier services ,Policy Division ,PATH ,202674-101 ,"19,767.36",
DFID,DFID,19/01/2014,Aid Programme - Voluntary contributions ,East and Central Africa ,Sahan Research Ltd ,202974-108 ,"25,351.00",
DFID,DFID,19/01/2014,Oil - Other Utilities ,Group Operations ,Government Procurement Service ,203717-101 ,"28,017.78","Heating consumption charges &  Whitehall Heating Distribution System (WHDS) maintenance. October - December 2013 - DFID HQ 22 Whitehall, London "
DFID,DFID,19/01/2014,Project delivery costs - supplier services ,Asia  Caribbean and Overseas Territories ,Crown Agents Bank ,201645-105 ,"29,239.37",
DFID,DFID,19/01/2014,Conferences  Seminars & Meeting/Event Resource ,International Relations Division ,Wilton Park Executive Agency ,204025-102 ,"30,000.00",
DFID,DFID,19/01/2014,Project delivery costs - supplier services ,East and Central Africa ,HTSPE LTD ,202994-104 ,"30,552.30",
DFID,DFID,19/01/2014,Aid Programme - Accountable Grant Payments ,Asia  Caribbean and Overseas Territories ,OXFAM INSTITUTIONAL INCOME ACCOUNT ,202433-107 ,"30,894.00",
DFID,DFID,19/01/2014,Project delivery costs - supplier services ,West and Southern Africa ,Crown Agents ,203551-102 ,"36,000.00",
DFID,DFID,19/01/2014,Project delivery costs - supplier services ,Asia  Caribbean and Overseas Territories ,OPTIONS CONSULTANCY SERVICES LIMITED ,202871-101 ,"36,170.85",
DFID,DFID,19/01/2014,Project delivery costs - supplier services ,East and Central Africa ,OXFORD POLICY MANAGEMENT ,101635-101 ,"37,403.43",UN Joint Programme on Population - 2013 - Independent Project Review costs 
DFID,DFID,19/01/2014,Recruitment costs ,Human Resources ,HM REVENUE AND CUSTOMS,100269-117 ,"38,648.00",DFID funding for the European Faststreamer Programme 2013/2014 
DFID,DFID,19/01/2014,Project delivery costs - supplier services ,Western Asia and Stabilisation Division ,MOTT MACDONALD LTD ,201846-102 ,"41,236.36",
DFID,DFID,19/01/2014,Project delivery costs - supplier services ,East and Central Africa ,COFFEY INTERNATIONAL DEVELOPMENT LTD ,202974-105 ,"44,043.45",
DFID,DFID,19/01/2014,Project delivery costs - supplier services ,Asia  Caribbean and Overseas Territories ,Crown Agents ,203275-102 ,"44,428.60",
DFID,DFID,19/01/2014,Project delivery costs - supplier services ,East and Central Africa ,COFFEY INTERNATIONAL DEVELOPMENT LTD ,200284-105 ,"47,428.28",
DFID,DFID,19/01/2014,Project delivery costs - supplier services ,Asia  Caribbean and Overseas Territories ,SIDBI MUMBAI ,114293-103 ,"49,004.23",
DFID,DFID,19/01/2014,Project delivery costs - supplier services ,West and Southern Africa ,OXFORD POLICY MANAGEMENT ,202643-103 ,"65,807.34",
DFID,DFID,19/01/2014,Project delivery costs - supplier services ,Policy Division ,KPMG LLP ,202035-101 ,"66,475.68",
DFID,DFID,19/01/2014,Project delivery costs - supplier services ,East and Central Africa ,Crown Agents ,200221-107 ,"68,776.63",
DFID,DFID,19/01/2014,Project delivery costs - supplier services ,Asia  Caribbean and Overseas Territories ,Crown Agents ,201645-105 ,"70,464.45",
DFID,DFID,19/01/2014,Project delivery costs - supplier services ,Asia  Caribbean and Overseas Territories ,OPTIONS CONSULTANCY SERVICES LIMITED ,202871-101 ,"70,680.65",
DFID,DFID,19/01/2014,Project delivery costs - supplier services ,Policy Division ,Crown Agents Bank ,201724-129 ,"75,663.35",
DFID,DFID,19/01/2014,Project delivery costs - supplier services ,Asia  Caribbean and Overseas Territories ,Montrose International ,202759-102 ,"89,240.40",
DFID,DFID,19/01/2014,Project delivery costs - supplier services ,Asia  Caribbean and Overseas Territories ,OPTIONS CONSULTANCY SERVICES LIMITED ,202871-101 ,"102,804.13",
DFID,DFID,19/01/2014,Project delivery costs - supplier services ,Asia  Caribbean and Overseas Territories ,OPTIONS CONSULTANCY SERVICES LIMITED ,202871-101 ,"102,804.13",
DFID,DFID,19/01/2014,Aid Programme - Challenge Fund payments ,Western Asia and Stabilisation Division ,Supplier Name withheld ,200898-116 ,"116,942.61",
DFID,DFID,19/01/2014,Aid Programme - Accountable Grant Payments ,East and Central Africa , Overseas Development Institute ,103022-107 ,"124,422.28",
DFID,DFID,19/01/2014,Aid Programme - Accountable Grant Payments ,Asia  Caribbean and Overseas Territories ,THE SAVE THE CHILDREN FUND ,203400-103 ,"160,638.00",
DFID,DFID,19/01/2014,Project delivery costs - supplier services ,Asia  Caribbean and Overseas Territories ,IMC Worldwide Ltd. ,203186-103 ,"170,565.53",
DFID,DFID,19/01/2014,Project delivery costs - supplier services ,West and Southern Africa ,DAI EUROPE LIMITED ,113961-104 ,"174,693.54",
DFID,DFID,19/01/2014,Project delivery costs - supplier services ,East and Central Africa ,Crown Agents ,200498-101 ,"205,356.85",
DFID,DFID,19/01/2014,Project delivery costs - supplier services ,Asia  Caribbean and Overseas Territories ,SIDBI MUMBAI ,114293-103 ,"243,817.99",
DFID,DFID,19/01/2014,Project delivery costs - supplier services ,West and Southern Africa ,Abt Associates ,202342-102 ,"266,336.10",
DFID,DFID,19/01/2014,Project delivery costs - supplier services ,Asia  Caribbean and Overseas Territories ,SIDBI MUMBAI ,114293-103 ,"277,953.83",
DFID,DFID,19/01/2014,Project delivery costs - supplier services ,East and Central Africa ,Crown Agents ,200498-105 ,"290,494.49",
DFID,DFID,19/01/2014,Aid Programme - Other Financial Aid to Government ,Asia  Caribbean and Overseas Territories ,St Helena Department of Finance ,203139-101 ,"366,323.00",
DFID,DFID,19/01/2014,Aid Programme - Trust Funds contributions ,East and Central Africa ,IBRD (HSBC)  C/O THE WORLD BANK ,200221-102 ,"500,000.00",
DFID,DFID,19/01/2014,Aid Programme - Accountable Grant Payments ,Policy Division ,OVERSEAS DEVELOPMENT INSTITUTE ,202814-101 ,"555,226.15",
DFID,DFID,19/01/2014,Project delivery costs - supplier services ,West and Southern Africa ,HTSPE LTD ,104189-101 ,"557,656.62",
DFID,DFID,19/01/2014,Project delivery costs - supplier services ,East and Central Africa ,   THE WORLD BANK ,202698-106 ,"600,000.00",
DFID,DFID,19/01/2014,Aid Programme - Partnership Programme Arrangements ,Policy Division ,MALARIA CONSORTIUM ,202700-101 ,"667,567.25",
DFID,DFID,19/01/2014,Aid Programme - Accountable Grant Payments ,East and Central Africa ,INTERNATIONAL RESCUE COMMITTEE ,202994-103 ,"751,076.00",
DFID,DFID,19/01/2014,Aid Programme - Accountable Grant Payments ,Communications Division ,CAFOD ,202197-101 ,"765,690.19",
DFID,DFID,19/01/2014,Aid Programme - Partnership Programme Arrangements ,Policy Division ,FARM-Africa ,202624-101 ,"769,567.50",
DFID,DFID,19/01/2014,Aid Programme - Trust Funds contributions ,West and Southern Africa ,IBRD HSBC T ,204090-101 ,"1,000,000.00",
DFID,DFID,19/01/2014,Project delivery costs - supplier services ,Communications Division ,VOLUNTARY SERVICE OVERSEAS ,202883-101 ,"1,643,455.20",
DFID,DFID,19/01/2014,Project delivery costs - supplier services ,Asia  Caribbean and Overseas Territories ,IMC Worldwide Ltd. ,203186-102 ,"1,795,519.05",
DFID,DFID,20/01/2014,Recruitment costs ,Research and Evidence Division ,Nation Media Group Limited ,202392-111 ,504.47,
DFID,DFID,20/01/2014,Hotels - Accommodation only ,International Relations Division ,Corporate Travel Provider ,100240-101 ,509.16,
DFID,DFID,20/01/2014,Air fares ,Finance and Corporate Performance Division ,Corporate Travel Provider ,100008-103 ,512.22,
DFID,DFID,20/01/2014,Air fares ,Western Asia and Stabilisation Division ,Corporate Travel Provider ,203939-102 ,515.25,
DFID,DFID,20/01/2014,Air fares ,Western Asia and Stabilisation Division ,Corporate Travel Provider ,203939-102 ,515.25,
DFID,DFID,20/01/2014,Air fares ,Western Asia and Stabilisation Division ,Corporate Travel Provider ,101601-110 ,515.52,
DFID,DFID,20/01/2014,Data Network -Satellite ,Business Solutions Division Level ,Level 3 ,200002-117 ,516.00,
DFID,DFID,20/01/2014,Air fares ,Top Management Group ,Corporate Travel Provider ,100232-106 ,525.70,
DFID,DFID,20/01/2014,Air fares ,Top Management Group ,Corporate Travel Provider ,100232-106 ,525.70,
DFID,DFID,20/01/2014,Hotels - Accommodation only ,Western Asia and Stabilisation Division ,Corporate Travel Provider ,101624-101 ,533.31,
DFID,DFID,20/01/2014,Air fares ,East and Central Africa ,Corporate Travel Provider ,203099-101 ,533.95,
DFID,DFID,20/01/2014,Air fares ,Middle East & North Africa Division (MENAD) ,Corporate Travel Provider ,101619-101 ,540.45,
DFID,DFID,20/01/2014,Recruitment costs ,Research and Evidence Division ,The Standard Ltd ,202392-111 ,546.78,
DFID,DFID,20/01/2014,Hotels - Accommodation only ,International Relations Division ,Corporate Travel Provider ,201711-101 ,552.76,
DFID,DFID,20/01/2014,Air fares ,Human Resources ,Recipient name withheld ,100269-128 ,562.51,
DFID,DFID,20/01/2014,Air fares ,Asia  Caribbean and Overseas Territories ,Corporate Travel Provider ,201689-106 ,563.95,
DFID,DFID,20/01/2014,Air fares ,Middle East & North Africa Division (MENAD) ,Corporate Travel Provider ,201701-101 ,567.59,
DFID,DFID,20/01/2014,Air fares ,Middle East & North Africa Division (MENAD) ,Corporate Travel Provider ,100307-101 ,571.80,
DFID,DFID,20/01/2014,Air fares ,Business Solutions Division Level ,Corporate Travel Provider ,200001-101 ,576.96,
DFID,DFID,20/01/2014,Training - Travel & Subsistence ,Western Asia and Stabilisation Division ,Recipient name withheld ,203939-103 ,577.30,
DFID,DFID,20/01/2014,Vehicle Petrol & Oil ,Asia  Caribbean and Overseas Territories ,QUTAB SERVICE STATION ,201689-105 ,577.67,
DFID,DFID,20/01/2014,Air fares ,Asia  Caribbean and Overseas Territories ,Corporate Travel Provider ,101605-101 ,577.80,
DFID,DFID,20/01/2014,Air fares ,Western Asia and Stabilisation Division ,Corporate Travel Provider ,101601-110 ,579.20,
DFID,DFID,20/01/2014,Air fares ,Top Management Group ,Corporate Travel Provider ,100232-102 ,592.60,
DFID,DFID,20/01/2014,Air fares ,Top Management Group ,Corporate Travel Provider ,100232-103 ,592.60,
DFID,DFID,20/01/2014,Air fares ,Western Asia and Stabilisation Division ,Corporate Travel Provider ,101601-110 ,595.15,
DFID,DFID,20/01/2014,Air fares ,Business Solutions Division Level ,Corporate Travel Provider ,200001-101 ,596.77,
DFID,DFID,20/01/2014,Hotels - Accommodation only ,Conflict Humanitarian and Security Division ,Corporate Travel Provider ,202410-101 ,603.93,
DFID,DFID,20/01/2014,Air fares ,Western Asia and Stabilisation Division ,Corporate Travel Provider ,101601-110 ,621.10,
DFID,DFID,20/01/2014,Air fares ,Asia  Caribbean and Overseas Territories ,Corporate Travel Provider ,101621-101 ,627.05,
DFID,DFID,20/01/2014,Air fares ,Western Asia and Stabilisation Division ,Recipient name withheld ,201699-101 ,629.24,
DFID,DFID,20/01/2014,Hotels - Accommodation only ,Asia  Caribbean and Overseas Territories ,Corporate Travel Provider ,101604-101 ,629.51,
DFID,DFID,20/01/2014,Hotels - Accommodation only ,Asia  Caribbean and Overseas Territories ,Corporate Travel Provider ,101621-108 ,629.51,
DFID,DFID,20/01/2014,Hotels - Accommodation only ,Asia  Caribbean and Overseas Territories ,Corporate Travel Provider ,101603-102 ,629.51,
DFID,DFID,20/01/2014,Hotels - Accommodation only ,Asia  Caribbean and Overseas Territories ,Corporate Travel Provider ,100084-101 ,629.51,
DFID,DFID,20/01/2014,Air fares ,West and Southern Africa ,Supplier Name withheld ,101622-106 ,637.80,
DFID,DFID,20/01/2014,Project delivery costs - supplier services ,West and Southern Africa ,Nkwachukwu Orji ,203851-101 ,653.00,
DFID,DFID,20/01/2014,Air fares ,Western Asia and Stabilisation Division ,Corporate Travel Provider ,101601-110 ,655.00,
DFID,DFID,20/01/2014,Hotels - Accommodation only ,Asia  Caribbean and Overseas Territories ,Corporate Travel Provider ,100084-101 ,655.10,
DFID,DFID,20/01/2014,Facilities Management payments ,West and Southern Africa ,Lilleker Bros (Nigeria) Ltd ,101622-103 ,680.00,
DFID,DFID,20/01/2014,Training - Course Fees ,Human Resources ,Capita  Business Services ,100269-153 ,692.00,
DFID,DFID,20/01/2014,Air fares ,International Finance Division ,Corporate Travel Provider ,100098-101 ,692.55,
DFID,DFID,20/01/2014,Air fares ,Research and Evidence Division ,Corporate Travel Provider ,202392-106 ,693.39,
DFID,DFID,20/01/2014,Air fares ,Research and Evidence Division ,Corporate Travel Provider ,202392-106 ,693.39,
DFID,DFID,20/01/2014,Air fares ,Policy Division ,Corporate Travel Provider ,202419-103 ,701.45,
DFID,DFID,20/01/2014,Air fares ,Finance and Corporate Performance Division ,Corporate Travel Provider ,200173-101 ,703.14,
DFID,DFID,20/01/2014,Office Supplies ,West and Southern Africa ,Papirus Plus Lda ,101620-101 ,705.06,
DFID,DFID,20/01/2014,Air fares ,International Finance Division ,Corporate Travel Provider ,100098-101 ,718.35,
DFID,DFID,20/01/2014,Air fares ,Finance and Corporate Performance Division ,Corporate Travel Provider ,100008-103 ,719.15,
DFID,DFID,20/01/2014,Air fares ,Finance and Corporate Performance Division ,Corporate Travel Provider ,202836-103 ,724.30,
DFID,DFID,20/01/2014,Air fares ,Western Asia and Stabilisation Division ,Corporate Travel Provider ,101601-110 ,728.40,
DFID,DFID,20/01/2014,Air fares ,Research and Evidence Division ,Corporate Travel Provider ,100088-101 ,749.31,
DFID,DFID,20/01/2014,Hotels - Accommodation only ,Asia  Caribbean and Overseas Territories ,Recipient name withheld ,201689-102 ,751.67,
DFID,DFID,20/01/2014,Air fares ,Asia  Caribbean and Overseas Territories ,Corporate Travel Provider ,100084-101 ,773.92,
DFID,DFID,20/01/2014,Training Providers/Facilitation Services ,Business Solutions Division Level ,Emergn ,200001-101 ,784.76,
DFID,DFID,20/01/2014,Air fares ,Policy Division ,Corporate Travel Provider ,100277-103 ,789.45,
DFID,DFID,20/01/2014,Project delivery costs - supplier services ,Policy Division ,Abbey Community Services ,203326-102 ,800.00,
DFID,DFID,20/01/2014,Air fares ,Conflict Humanitarian and Security Division ,Corporate Travel Provider ,100049-101 ,807.66,
DFID,DFID,20/01/2014,Air fares ,International Finance Division ,Corporate Travel Provider ,202259-101 ,811.24,
DFID,DFID,20/01/2014,Air fares ,East and Central Africa ,Corporate Travel Provider ,202594-101 ,819.90,
DFID,DFID,20/01/2014,Contract Catering Services ,Conflict Humanitarian and Security Division ,MITIE Catering Services Ltd ,100049-101 ,837.60,
DFID,DFID,20/01/2014,Hotels - Accommodation only ,West and Southern Africa ,Corporate Travel Provider ,101620-101 ,839.31,
DFID,DFID,20/01/2014,Air fares ,Human Resources ,Recipient name withheld ,100269-128 ,843.67,
DFID,DFID,20/01/2014,Air fares ,Western Asia and Stabilisation Division ,Corporate Travel Provider ,101601-110 ,859.39,
DFID,DFID,20/01/2014,Hotels - Accommodation only ,Research and Evidence Division ,Corporate Travel Provider ,202392-101 ,859.78,
DFID,DFID,20/01/2014,Air fares ,Top Management Group ,Corporate Travel Provider ,100232-102 ,867.15,
DFID,DFID,20/01/2014,Air fares ,Top Management Group ,Corporate Travel Provider ,100232-102 ,867.15,
DFID,DFID,20/01/2014,Air fares ,Policy Division ,Corporate Travel Provider ,201724-102 ,872.15,
DFID,DFID,20/01/2014,Air fares ,Policy Division ,Corporate Travel Provider ,100277-102 ,877.39,
DFID,DFID,20/01/2014,Air fares ,Policy Division ,Corporate Travel Provider ,202419-103 ,889.52,
DFID,DFID,20/01/2014,Air fares ,Western Asia and Stabilisation Division ,Corporate Travel Provider ,101601-110 ,893.86,
DFID,DFID,20/01/2014,Hotels - Accommodation only ,Middle East & North Africa Division (MENAD) ,Corporate Travel Provider ,204084-101 ,895.27,
DFID,DFID,20/01/2014,Air fares ,Finance and Corporate Performance Division ,Corporate Travel Provider ,202836-102 ,895.73,
DFID,DFID,20/01/2014,Air fares ,Western Asia and Stabilisation Division ,Corporate Travel Provider ,100011-110 ,908.87,
DFID,DFID,20/01/2014,Air fares ,East and Central Africa ,Corporate Travel Provider ,100227-101 ,909.77,
DFID,DFID,20/01/2014,Hotels - Accommodation only ,Asia  Caribbean and Overseas Territories ,Corporate Travel Provider ,100084-101 ,910.95,
DFID,DFID,20/01/2014,Air fares ,Policy Division ,Corporate Travel Provider ,202419-102 ,915.83,
DFID,DFID,20/01/2014,Air fares ,Western Asia and Stabilisation Division ,Corporate Travel Provider ,101601-110 ,920.19,
DFID,DFID,20/01/2014,Rail Transport ,Human Resources ,Recipient name withheld ,100269-128 ,924.26,
DFID,DFID,20/01/2014,Air fares ,East and Central Africa ,Corporate Travel Provider ,202594-101 ,953.20,
DFID,DFID,20/01/2014,Air fares ,West and Southern Africa ,Corporate Travel Provider ,101613-101 ,956.50,
DFID,DFID,20/01/2014,Air fares ,International Relations Division ,Corporate Travel Provider ,100262-101 ,957.45,
DFID,DFID,20/01/2014,Air fares ,Policy Division ,Corporate Travel Provider ,202419-104 ,971.65,
DFID,DFID,20/01/2014,Air fares ,Asia  Caribbean and Overseas Territories ,Corporate Travel Provider ,201739-101 ,985.57,
DFID,DFID,20/01/2014,Training - Course Fees ,Asia  Caribbean and Overseas Territories ,London School of Hygiene and Tropical Medicine ,101621-108 ,"1,000.00",
DFID,DFID,20/01/2014,Air fares ,Human Resources ,Fiona C Clark ,100269-128 ,"1,029.86",
DFID,DFID,20/01/2014,Training - Course Fees ,Human Resources ,Capita  Business Services ,100269-153 ,"1,033.00",
DFID,DFID,20/01/2014,Air fares ,Western Asia and Stabilisation Division ,Corporate Travel Provider ,101601-110 ,"1,047.40",
DFID,DFID,20/01/2014,Air fares ,Top Management Group ,Corporate Travel Provider ,100232-106 ,"1,055.75",
DFID,DFID,20/01/2014,Contract & Agency Staff ,Finance and Corporate Performance Division ,Hays Specialist Recruitment Ltd ,100201-101 ,"1,106.10",
DFID,DFID,20/01/2014,Air fares ,Western Asia and Stabilisation Division ,Corporate Travel Provider ,101601-110 ,"1,123.82",
DFID,DFID,20/01/2014,Air fares ,Policy Division ,Corporate Travel Provider ,100277-102 ,"1,134.45",
DFID,DFID,20/01/2014,Air fares ,Finance and Corporate Performance Division ,Corporate Travel Provider ,202836-102 ,"1,136.25",
DFID,DFID,20/01/2014,Contract & Agency Staff ,Finance and Corporate Performance Division ,MICHAEL PAGE INTERNATIONAL RECRUITMENT LIMITED ,100201-101 ,"1,161.30",
DFID,DFID,20/01/2014,Air fares ,Western Asia and Stabilisation Division ,Recipient name withheld ,100011-110 ,"1,176.97",
DFID,DFID,20/01/2014,Air fares ,Western Asia and Stabilisation Division ,Corporate Travel Provider ,101601-110 ,"1,178.25",
DFID,DFID,20/01/2014,Vehicle Repairs & Maintenance ,West and Southern Africa ,Agricultural & Auto Supplies ,100144-101 ,"1,180.21",
DFID,DFID,20/01/2014,Air fares ,East and Central Africa ,Corporate Travel Provider ,202594-101 ,"1,248.90",
DFID,DFID,20/01/2014,Air fares ,West and Southern Africa ,Corporate Travel Provider ,101629-101 ,"1,303.64",
DFID,DFID,20/01/2014,Air fares ,Western Asia and Stabilisation Division ,Corporate Travel Provider ,101601-110 ,"1,340.10",
DFID,DFID,20/01/2014,Storage & Distribution costs ,West and Southern Africa ,PICKFORDS LTD ,100152-101 ,"1,347.29",
DFID,DFID,20/01/2014,Project delivery costs - supplier services ,Asia  Caribbean and Overseas Territories ,Bharat M Devkota ,113537-104 ,"1,383.33",
DFID,DFID,20/01/2014,Air fares ,Communications Division ,Corporate Travel Provider ,100154-101 ,"1,441.84",
DFID,DFID,20/01/2014,Air fares ,Finance and Corporate Performance Division ,Corporate Travel Provider ,100201-101 ,"1,496.61",
DFID,DFID,20/01/2014,Data Network - land lines ,Business Solutions Division Level ,BT BACS PAYMENTS ,200002-130 ,"1,536.43",
DFID,DFID,20/01/2014,Project delivery costs - supplier services ,East and Central Africa ,Carree Njeri Ndoka ,204258-101 ,"1,555.84",
DFID,DFID,20/01/2014,Project delivery costs - supplier services ,East and Central Africa ,Susan Amlango Aletia ,204258-101 ,"1,559.94",
DFID,DFID,20/01/2014,Air fares ,Western Asia and Stabilisation Division ,Corporate Travel Provider ,101601-110 ,"1,579.19",
DFID,DFID,20/01/2014,Air fares ,Western Asia and Stabilisation Division ,Corporate Travel Provider ,101601-110 ,"1,609.87",
DFID,DFID,20/01/2014,Project delivery costs - supplier services ,East and Central Africa ,Pauline Akinyi Gogo ,202619-106 ,"1,621.88",
DFID,DFID,20/01/2014,Air fares ,Western Asia and Stabilisation Division ,Corporate Travel Provider ,101601-110 ,"1,649.49",
DFID,DFID,20/01/2014,Air fares ,Western Asia and Stabilisation Division ,Corporate Travel Provider ,101601-110 ,"1,649.49",
DFID,DFID,20/01/2014,Air fares ,Western Asia and Stabilisation Division ,Corporate Travel Provider ,101601-110 ,"1,649.49",
DFID,DFID,20/01/2014,Air fares ,Western Asia and Stabilisation Division ,Corporate Travel Provider ,101601-110 ,"1,664.69",
DFID,DFID,20/01/2014,Air fares ,Western Asia and Stabilisation Division ,Corporate Travel Provider ,101601-110 ,"1,704.51",
DFID,DFID,20/01/2014,Air fares ,Top Management Group ,Corporate Travel Provider ,100232-102 ,"1,785.00",
DFID,DFID,20/01/2014,Air fares ,Top Management Group ,Corporate Travel Provider ,100232-102 ,"1,785.00",
DFID,DFID,20/01/2014,Air fares ,Top Management Group ,Corporate Travel Provider ,100232-102 ,"1,785.00",
DFID,DFID,20/01/2014,Air fares ,Top Management Group ,Corporate Travel Provider ,100232-102 ,"1,785.00",
DFID,DFID,20/01/2014,Air fares ,Western Asia and Stabilisation Division ,Corporate Travel Provider ,203944-106 ,"1,850.15",
DFID,DFID,20/01/2014,Contract & Agency Staff ,Business Solutions Division Level ,OPIN SYSTEMS LIMITED ,200001-101 ,"1,920.00",
DFID,DFID,20/01/2014,Contract & Agency Staff ,International Finance Division ,Hays Specialist Recruitment Ltd ,100120-101 ,"1,925.52",
DFID,DFID,20/01/2014,Air fares ,Top Management Group ,Corporate Travel Provider ,100232-106 ,"1,983.25",
DFID,DFID,20/01/2014,Air fares ,Top Management Group ,Corporate Travel Provider ,100232-106 ,"1,983.25",
DFID,DFID,20/01/2014,Air fares ,West and Southern Africa ,Corporate Travel Provider ,201763-101 ,"1,991.85",
DFID,DFID,20/01/2014,Other non-passenger transportation ,East and Central Africa ,DMS AFRICA ,202594-101 ,"2,000.00",
DFID,DFID,20/01/2014,Storage & Distribution costs ,Western Asia and Stabilisation Division ,PICKFORDS LTD ,101624-101 ,"2,013.34",
DFID,DFID,20/01/2014,Air fares ,Western Asia and Stabilisation Division ,Corporate Travel Provider ,101601-110 ,"2,079.77",
DFID,DFID,20/01/2014,Air fares ,Western Asia and Stabilisation Division ,Corporate Travel Provider ,101601-110 ,"2,121.90",
DFID,DFID,20/01/2014,Air fares ,Top Management Group ,Corporate Travel Provider ,100232-106 ,"2,405.05",
DFID,DFID,20/01/2014,Air fares ,Top Management Group ,Corporate Travel Provider ,100232-106 ,"2,405.05",
DFID,DFID,20/01/2014,Air fares ,Top Management Group ,Corporate Travel Provider ,100232-106 ,"2,476.50",
DFID,DFID,20/01/2014,Air fares ,Top Management Group ,Corporate Travel Provider ,100232-106 ,"2,476.50",
DFID,DFID,20/01/2014,Air fares ,Top Management Group ,Corporate Travel Provider ,100232-108 ,"2,498.19",
DFID,DFID,20/01/2014,Air fares ,Top Management Group ,Corporate Travel Provider ,100232-108 ,"2,498.19",
DFID,DFID,20/01/2014,Training Providers/Facilitation Services ,Business Solutions Division Level ,Emergn ,200001-101 ,"2,500.00",
DFID,DFID,20/01/2014,Facilities Management payments ,West and Southern Africa ,Lilleker Bros (Nigeria) Ltd ,101622-103 ,"2,565.03",
DFID,DFID,20/01/2014,Air fares ,Asia  Caribbean and Overseas Territories ,Corporate Travel Provider ,100084-101 ,"2,612.02",
DFID,DFID,20/01/2014,Air fares ,Asia  Caribbean and Overseas Territories ,Corporate Travel Provider ,100084-101 ,"2,622.16",
DFID,DFID,20/01/2014,Recruitment costs ,Human Resources ,HM REVENUE AND CUSTOMS,100269-128 ,"2,690.06",
DFID,DFID,20/01/2014,Contract & Agency Staff ,Business Solutions Division Level ,Networkers Recruitment Services Ltd ,200001-101 ,"2,813.88",
DFID,DFID,20/01/2014,Project delivery costs - supplier services ,Business Solutions Division Level ,OPIN SYSTEMS LIMITED ,200002-151 ,"3,021.35",
DFID,DFID,20/01/2014,Project delivery costs - supplier services ,East and Central Africa ,Mazars Certified Public Accountants (K) ,202619-112 ,"3,330.84",
DFID,DFID,20/01/2014,Data Network -Satellite ,Business Solutions Division Level ,Level 3 ,200002-117 ,"3,363.56",
DFID,DFID,20/01/2014,Air fares ,International Relations Division ,Corporate Travel Provider ,100262-101 ,"3,433.90",
DFID,DFID,20/01/2014,Air fares ,International Relations Division ,Corporate Travel Provider ,100262-101 ,"3,460.80",
DFID,DFID,20/01/2014,Training Providers/Facilitation Services ,Business Solutions Division Level ,Emergn ,200001-101 ,"3,500.00",
DFID,DFID,20/01/2014,Project delivery costs - supplier services ,West and Southern Africa ,Crown Agents ,202416-103 ,"3,652.55",
DFID,DFID,20/01/2014,Air fares ,Asia  Caribbean and Overseas Territories ,Corporate Travel Provider ,100084-101 ,"3,687.85",
DFID,DFID,20/01/2014,Air fares ,West and Southern Africa ,Corporate Travel Provider ,100189-101 ,"3,752.85",
DFID,DFID,20/01/2014,Project delivery costs - supplier services ,Policy Division ,IPA-International Procurement Agency (BV) ,201724-144 ,"3,755.26",
DFID,DFID,20/01/2014,Air fares ,West and Southern Africa ,Corporate Travel Provider ,100189-101 ,"3,807.82",
DFID,DFID,20/01/2014,Project delivery costs - supplier services ,Business Solutions Division Level ,Info-Assure LTD ,200003-155 ,"4,135.20",
DFID,DFID,20/01/2014,Storage & Distribution costs ,Western Asia and Stabilisation Division ,PICKFORDS LTD ,101624-101 ,"4,405.90",
DFID,DFID,20/01/2014,Project delivery costs - supplier services ,West and Southern Africa ,IPA-International Procurement Agency (BV) ,203714-103 ,"5,196.24",
DFID,DFID,20/01/2014,Staff Travel - Air Fares ,East and Central Africa ,Mission Aviation Fellowship Kenya ,101616-101 ,"5,528.91",
DFID,DFID,20/01/2014,Project delivery costs - supplier services ,Asia  Caribbean and Overseas Territories ,OPTIONS CONSULTANCY SERVICES LIMITED ,202871-101 ,"5,570.24",
DFID,DFID,20/01/2014,Project delivery costs - supplier services ,Human Resources ,MidlandHR ,100272-101 ,"5,750.00",
DFID,DFID,20/01/2014,Storage & Distribution costs ,West and Southern Africa ,PICKFORDS LTD ,101610-101 ,"5,890.74",
DFID,DFID,20/01/2014,Aid Programme - Humanitarian Material Relief Assistance and Services ,Conflict Humanitarian and Security Division ,Crown Agents ,204351-101 ,"6,056.83",
DFID,DFID,20/01/2014,Project delivery costs - supplier services ,East and Central Africa ,KPMG Kenya ,202995-105 ,"6,101.60",
DFID,DFID,20/01/2014,Recruitment costs ,Human Resources ,Penna Barkers ,100269-127 ,"6,173.89",
DFID,DFID,20/01/2014,Project delivery costs - supplier services ,East and Central Africa ,Mazars Certified Public Accountants (K) ,202619-112 ,"6,664.60",
DFID,DFID,20/01/2014,Aid Programme - Voluntary contributions ,East and Central Africa ,Crown Agents ,202974-108 ,"6,760.80",
DFID,DFID,20/01/2014,Aid Programme - Voluntary contributions ,East and Central Africa ,Crown Agents ,202974-108 ,"6,760.80",
DFID,DFID,20/01/2014,Project delivery costs - supplier services ,Business Solutions Division Level ,OPIN SYSTEMS LIMITED ,200002-151 ,"6,989.18",
DFID,DFID,20/01/2014,Aid Programme - Accountable Grant Payments ,Asia  Caribbean and Overseas Territories ,Confederation of Indian Industry-CII ,114320-116 ,"7,022.00",
DFID,DFID,20/01/2014,Project delivery costs - supplier services ,Asia  Caribbean and Overseas Territories , INTERNATIONAL ALERT ,203274-101 ,"7,423.50",
DFID,DFID,20/01/2014,Project delivery costs - supplier services ,Western Asia and Stabilisation Division ,Crown Agents ,203943-101 ,"8,920.80",
DFID,DFID,20/01/2014,Storage & Distribution costs ,Asia  Caribbean and Overseas Territories ,PICKFORDS LTD ,100150-101 ,"9,128.10",
DFID,DFID,20/01/2014,Project delivery costs - supplier services ,West and Southern Africa ,Crown Agents ,113961-108 ,"10,951.00",
DFID,DFID,20/01/2014,Project delivery costs - supplier services ,Western Asia and Stabilisation Division ,Crown Agents ,201846-101 ,"11,052.08",
DFID,DFID,20/01/2014,Project delivery costs - supplier services ,Asia  Caribbean and Overseas Territories ,Tim Bene ,107402-108 ,"11,193.51",
DFID,DFID,20/01/2014,Project delivery costs - supplier services ,Western Asia and Stabilisation Division ,Crown Agents ,201846-101 ,"11,219.29",
DFID,DFID,20/01/2014,Project delivery costs - supplier services ,East and Central Africa ,PRICEWATERHOUSECOOPERS (KENYA) ,200120-120 ,"12,591.80",
DFID,DFID,20/01/2014,Project delivery costs - supplier services ,Western Asia and Stabilisation Division ,Crown Agents ,201846-101 ,"12,687.02",
DFID,DFID,20/01/2014,Project delivery costs - supplier services ,West and Southern Africa ,Crown Agents ,202416-103 ,"12,726.00",
DFID,DFID,20/01/2014,Furniture & Fittings ,East and Central Africa ,DMS AFRICA ,202594-101 ,"13,676.00",
DFID,DFID,20/01/2014,Project delivery costs - supplier services ,Asia  Caribbean and Overseas Territories ,INFRASTRUCTURE PROFESSIONALS ENTERPRISE ,203217-101 ,"16,519.48",
DFID,DFID,20/01/2014,Project delivery costs - supplier services ,Asia  Caribbean and Overseas Territories ,GRM INTERNATIONAL LTD (1) ,113537-104 ,"17,154.00",
DFID,DFID,20/01/2014,Project delivery costs - supplier services ,East and Central Africa ,HTSPE LTD ,202520-104 ,"24,533.82",
DFID,DFID,20/01/2014,Electricity ,Group Operations ,EDF ENERGY ,100106-101 ,"30,322.68","Electricity costs for DFID HQ, Abercrombie House - November & December 2013 instalment."
DFID,DFID,20/01/2014,Project delivery costs - supplier services ,East and Central Africa ,HTSPE LTD ,202520-104 ,"30,863.68",
DFID,DFID,20/01/2014,Project delivery costs - supplier services ,West and Southern Africa ,Crown Agents ,202640-102 ,"32,110.07",
DFID,DFID,20/01/2014,Project delivery costs - supplier services ,East and Central Africa ,HILAS Consulting Pvt. Ent. ,202913-101 ,"32,287.14",
DFID,DFID,20/01/2014,Project delivery costs - supplier services ,Research and Evidence Division ,GRM INTERNATIONAL LTD (1) ,202242-103 ,"35,371.00",
DFID,DFID,20/01/2014,Aid Programme - Accountable Grant Payments ,Asia  Caribbean and Overseas Territories ,Chinadialogue ,202775-104 ,"37,503.00",
DFID,DFID,20/01/2014,Project delivery costs - supplier services ,Human Resources ,MidlandHR ,100272-101 ,"42,195.00",
DFID,DFID,20/01/2014,Project delivery costs - supplier services ,East and Central Africa ,COFFEY INTERNATIONAL DEVELOPMENT LTD ,105423-101 ,"49,745.26",
DFID,DFID,20/01/2014,Aid Programme - Core contributions ,Policy Division ,IBRD HSBC T ,203211-101 ,"67,300.00",
DFID,DFID,20/01/2014,Project delivery costs - supplier services ,Asia  Caribbean and Overseas Territories ,OPTIONS CONSULTANCY SERVICES LIMITED ,113963-101 ,"71,730.07",
DFID,DFID,20/01/2014,Project delivery costs - supplier services ,Policy Division ,ITAD LTD ,201724-134 ,"71,790.00",
DFID,DFID,20/01/2014,Project delivery costs - supplier services ,Western Asia and Stabilisation Division ,Crown Agents ,108793-101 ,"77,662.99",
DFID,DFID,20/01/2014,Project delivery costs - supplier services ,Asia  Caribbean and Overseas Territories ,INFRASTRUCTURE PROFESSIONALS ENTERPRISE ,203217-101 ,"84,427.30",
DFID,DFID,20/01/2014,Project delivery costs - supplier services ,Human Resources ,PRICEWATERHOUSECOOPERS ,100272-101 ,"100,873.07",
DFID,DFID,20/01/2014,Aid Programme - Accountable Grant Payments ,Middle East & North Africa Division (MENAD) ,Innovations for Poverty Action ,203834-101 ,"111,000.00",
DFID,DFID,20/01/2014,Project delivery costs - supplier services ,Western Asia and Stabilisation Division ,McKinsey & Co  Inc UK ,202697-109 ,"124,650.00",
DFID,DFID,20/01/2014,Aid Programme - Accountable Grant Payments ,West and Southern Africa ,Street Child of Sierra Leone ,202857-103 ,"141,407.00",
DFID,DFID,20/01/2014,Project delivery costs - supplier services ,West and Southern Africa ,OXFORD POLICY MANAGEMENT ,200341-101 ,"159,987.51",
DFID,DFID,20/01/2014,Project delivery costs - supplier services ,Policy Division ,COFFEY INTERNATIONAL DEVELOPMENT LTD ,202372-104 ,"163,024.27",
DFID,DFID,20/01/2014,Project delivery costs - supplier services ,Western Asia and Stabilisation Division ,HTSPE LTD ,202491-102 ,"180,876.86",
DFID,DFID,20/01/2014,Aid Programme - Humanitarian Material Relief Assistance and Services ,Conflict Humanitarian and Security Division ,HelpAge International UK ,204351-101 ,"184,414.00",
DFID,DFID,20/01/2014,DFID Purchased Relief Supplies ,Western Asia and Stabilisation Division ,Crown Agents ,201846-101 ,"315,773.69",
